{"text_format":"1","workbook":"xlsx","n_sheets":10,"sheets":["Dateneingabe","Dateneingabe-sortiert","Start","Tabelle1","Tabelle2","Tabelle3","Info","Säulendiagramm","Balkendiagramm","Kreisdiagramm"],"not_rendered":{"charts":7,"images":4,"macros":1,"external_links":0,"defined_names":21,"comments":2,"pivot_tables":0},"unopened":[],"bounds":{"document_bytes":16777216,"sheet_cells":100000,"rows_first":2000,"rows_last":500,"rows_between":2000,"halvings":0,"cell_chars":16384,"cell_head_chars":4096},"cells_cut":0,"cells_raw":0,"read":"whole","date_system":"1900"}

{"sheet":"Dateneingabe","index":0,"n_rows":7,"n_cols":10,"rows_kept":7,"cut":false,"hidden":false,"merged":[[0,0,0,3],[0,6,0,8]]}
["Stammdaten-Dateneingabeblatt",null,null,null,null,null,"Eingabe der Kriterien"]
[null,"1.Wochentag","2.Wochentag","3.Wochentag","4.Wochentag",null,"Arbeitsstunden","Krank mit Lfz","Stundenkonto"]
["Eingabe Geltungsjahr","So",{"$f":"IF(B3=\"Mo\",\"Di\",IF(B3=\"Di\",\"Mi\",IF(B3=\"Mi\",\"Do\",IF(B3=\"Do\",\"Fr\",IF(B3=\"Fr\",\"Sa\",IF(B3=\"Sa\",\"So\",IF(B3=\"So\",\"Mo\",\"\")))))))","v":"Mo"},{"$f":"IF(C3=\"Mo\",\"Di\",IF(C3=\"Di\",\"Mi\",IF(C3=\"Mi\",\"Do\",IF(C3=\"Do\",\"Fr\",IF(C3=\"Fr\",\"Sa\",IF(C3=\"Sa\",\"So\",IF(C3=\"So\",\"Mo\",\"\")))))))","v":"Di"},{"$f":"IF(D3=\"Mo\",\"Di\",IF(D3=\"Di\",\"Mi\",IF(D3=\"Mi\",\"Do\",IF(D3=\"Do\",\"Fr\",IF(D3=\"Fr\",\"Sa\",IF(D3=\"Sa\",\"So\",IF(D3=\"So\",\"Mo\",\"\")))))))","v":"Mi"},null,"Kurzarbeit","Krank ohne Lfz"]
[2012,"5.Wochentag","6.Wochentag","7.Wochentag","29.Februar ja/nein",null,"bez. Freistellung","unentsch.Fehlen"]
[null,{"$f":"IF(E3=\"Mo\",\"Di\",IF(E3=\"Di\",\"Mi\",IF(E3=\"Mi\",\"Do\",IF(E3=\"Do\",\"Fr\",IF(E3=\"Fr\",\"Sa\",IF(E3=\"Sa\",\"So\",IF(E3=\"So\",\"Mo\",\"\")))))))","v":"Do"},{"$f":"IF(B5=\"Mo\",\"Di\",IF(B5=\"Di\",\"Mi\",IF(B5=\"Mi\",\"Do\",IF(B5=\"Do\",\"Fr\",IF(B5=\"Fr\",\"Sa\",IF(B5=\"Sa\",\"So\",IF(B5=\"So\",\"Mo\",\"\")))))))","v":"Fr"},{"$f":"IF(C5=\"Mo\",\"Di\",IF(C5=\"Di\",\"Mi\",IF(C5=\"Mi\",\"Do\",IF(C5=\"Do\",\"Fr\",IF(C5=\"Fr\",\"Sa\",IF(C5=\"Sa\",\"So\",IF(C5=\"So\",\"Mo\",\"\")))))))","v":"Sa"},"ja",null,"Urlaub","Weiterbildung"]
["Name, Vorname","Stamm-Nr.","Bemerkung","Abteilung","Geburtstag","PLZ","Wohnort","Straße","Telefon","Funk / E-Mail"]
["Mustermann,Max","0815","3 Schicht","FB1","1966-05-21","12345","Musterhausen","Musterstraße 1","00000 0000000","Mustermann@web.de"]

{"sheet":"Dateneingabe-sortiert","index":1,"n_rows":47,"n_cols":15,"rows_kept":47,"cut":false,"hidden":false,"merged":[]}
[null,"zzz",null,null,null,null,null,{"$f":"NOW()","v":"2013-08-15T23:44:04.720"}]
[]
["NR.","Abteilung","Bemerkung","Name, Vorname","Geburtstag","PLZ","Wohnort","Straße","Pers.-Nr.","Tel.Nr: ","Funk / E-Mail","Alter",null,null,"AP"]
[1,{"$f":"IF(Dateneingabe!D7=0,\"zzz\",Dateneingabe!D7)","v":"FB1"},{"$f":"IF(Dateneingabe!C7=0,\"zzz\",Dateneingabe!C7)","v":"3 Schicht"},{"$f":"IF(Start!B4=0,\"zzz\",Start!B4)","v":"Mustermann,Max"},{"$f":"IF(Dateneingabe!E7=0,\"zzz\",Dateneingabe!E7)","v":"1966-05-21"},{"$f":"IF(Dateneingabe!F7=0,\"zzz\",Dateneingabe!F7)","v":"12345"},{"$f":"IF(Dateneingabe!G7=0,\"zzz\",Dateneingabe!G7)","v":"Musterhausen"},{"$f":"IF(Dateneingabe!H7=0,\"zzz\",Dateneingabe!H7)","v":"Musterstraße 1"},{"$f":"IF(Dateneingabe!B7=0,\"zzz\",Dateneingabe!B7)","v":"0815"},{"$f":"IF(Dateneingabe!I7=0,\"zzz\",Dateneingabe!I7)","v":"00000 0000000"},{"$f":"IF(Dateneingabe!J7=0,\"zzz\",Dateneingabe!J7)","v":"Mustermann@web.de"},{"$f":"IF(D4=\"zzz\",0,IF(E4=\"zzz\",0,($H$1-E4)/365.25))","v":47.238847210180744},{"$f":"IF(D4=\"zzz\",0,1)","v":1},{"$f":"IF(E4=\"zzz\",0,1)","v":1},1]
[2,{"$f":"IF(Dateneingabe!D8=0,\"zzz\",Dateneingabe!D8)","v":"zzz"},{"$f":"IF(Dateneingabe!C8=0,\"zzz\",Dateneingabe!C8)","v":"zzz"},{"$f":"IF(Start!B14=0,\"zzz\",Start!B14)","v":"zzz"},{"$f":"IF(Dateneingabe!E8=0,\"zzz\",Dateneingabe!E8)","v":"zzz"},{"$f":"IF(Dateneingabe!F8=0,\"zzz\",Dateneingabe!F8)","v":"zzz"},{"$f":"IF(Dateneingabe!G8=0,\"zzz\",Dateneingabe!G8)","v":"zzz"},{"$f":"IF(Dateneingabe!H8=0,\"zzz\",Dateneingabe!H8)","v":"zzz"},{"$f":"IF(Dateneingabe!B8=0,\"zzz\",Dateneingabe!B8)","v":"zzz"},{"$f":"IF(Dateneingabe!I8=0,\"zzz\",Dateneingabe!I8)","v":"zzz"},{"$f":"IF(Dateneingabe!J8=0,\"zzz\",Dateneingabe!J8)","v":"zzz"},0,0,0,2]
[3,{"$f":"IF(Dateneingabe!D9=0,\"zzz\",Dateneingabe!D9)","v":"zzz"},{"$f":"IF(Dateneingabe!C9=0,\"zzz\",Dateneingabe!C9)","v":"zzz"},{"$f":"IF(Start!B24=0,\"zzz\",Start!B24)","v":"zzz"},{"$f":"IF(Dateneingabe!E9=0,\"zzz\",Dateneingabe!E9)","v":"zzz"},{"$f":"IF(Dateneingabe!F9=0,\"zzz\",Dateneingabe!F9)","v":"zzz"},{"$f":"IF(Dateneingabe!G9=0,\"zzz\",Dateneingabe!G9)","v":"zzz"},{"$f":"IF(Dateneingabe!H9=0,\"zzz\",Dateneingabe!H9)","v":"zzz"},{"$f":"IF(Dateneingabe!B9=0,\"zzz\",Dateneingabe!B9)","v":"zzz"},{"$f":"IF(Dateneingabe!I9=0,\"zzz\",Dateneingabe!I9)","v":"zzz"},{"$f":"IF(Dateneingabe!J9=0,\"zzz\",Dateneingabe!J9)","v":"zzz"},0,0,0,3]
[4,{"$f":"IF(Dateneingabe!D10=0,\"zzz\",Dateneingabe!D10)","v":"zzz"},{"$f":"IF(Dateneingabe!C10=0,\"zzz\",Dateneingabe!C10)","v":"zzz"},{"$f":"IF(Start!B34=0,\"zzz\",Start!B34)","v":"zzz"},{"$f":"IF(Dateneingabe!E10=0,\"zzz\",Dateneingabe!E10)","v":"zzz"},{"$f":"IF(Dateneingabe!F10=0,\"zzz\",Dateneingabe!F10)","v":"zzz"},{"$f":"IF(Dateneingabe!G10=0,\"zzz\",Dateneingabe!G10)","v":"zzz"},{"$f":"IF(Dateneingabe!H10=0,\"zzz\",Dateneingabe!H10)","v":"zzz"},{"$f":"IF(Dateneingabe!B10=0,\"zzz\",Dateneingabe!B10)","v":"zzz"},{"$f":"IF(Dateneingabe!I10=0,\"zzz\",Dateneingabe!I10)","v":"zzz"},{"$f":"IF(Dateneingabe!J10=0,\"zzz\",Dateneingabe!J10)","v":"zzz"},0,0,0,4]
[5,{"$f":"IF(Dateneingabe!D11=0,\"zzz\",Dateneingabe!D11)","v":"zzz"},{"$f":"IF(Dateneingabe!C11=0,\"zzz\",Dateneingabe!C11)","v":"zzz"},{"$f":"IF(Start!B44=0,\"zzz\",Start!B44)","v":"zzz"},{"$f":"IF(Dateneingabe!E11=0,\"zzz\",Dateneingabe!E11)","v":"zzz"},{"$f":"IF(Dateneingabe!F11=0,\"zzz\",Dateneingabe!F11)","v":"zzz"},{"$f":"IF(Dateneingabe!G11=0,\"zzz\",Dateneingabe!G11)","v":"zzz"},{"$f":"IF(Dateneingabe!H11=0,\"zzz\",Dateneingabe!H11)","v":"zzz"},{"$f":"IF(Dateneingabe!B11=0,\"zzz\",Dateneingabe!B11)","v":"zzz"},{"$f":"IF(Dateneingabe!I11=0,\"zzz\",Dateneingabe!I11)","v":"zzz"},{"$f":"IF(Dateneingabe!J11=0,\"zzz\",Dateneingabe!J11)","v":"zzz"},0,0,0,5]
[6,{"$f":"IF(Dateneingabe!D12=0,\"zzz\",Dateneingabe!D12)","v":"zzz"},{"$f":"IF(Dateneingabe!C12=0,\"zzz\",Dateneingabe!C12)","v":"zzz"},{"$f":"IF(Start!B54=0,\"zzz\",Start!B54)","v":"zzz"},{"$f":"IF(Dateneingabe!E12=0,\"zzz\",Dateneingabe!E12)","v":"zzz"},{"$f":"IF(Dateneingabe!F12=0,\"zzz\",Dateneingabe!F12)","v":"zzz"},{"$f":"IF(Dateneingabe!G12=0,\"zzz\",Dateneingabe!G12)","v":"zzz"},{"$f":"IF(Dateneingabe!H12=0,\"zzz\",Dateneingabe!H12)","v":"zzz"},{"$f":"IF(Dateneingabe!B12=0,\"zzz\",Dateneingabe!B12)","v":"zzz"},{"$f":"IF(Dateneingabe!I12=0,\"zzz\",Dateneingabe!I12)","v":"zzz"},{"$f":"IF(Dateneingabe!J12=0,\"zzz\",Dateneingabe!J12)","v":"zzz"},0,0,0,6]
[7,{"$f":"IF(Dateneingabe!D13=0,\"zzz\",Dateneingabe!D13)","v":"zzz"},{"$f":"IF(Dateneingabe!C13=0,\"zzz\",Dateneingabe!C13)","v":"zzz"},{"$f":"IF(Start!B64=0,\"zzz\",Start!B64)","v":"zzz"},{"$f":"IF(Dateneingabe!E13=0,\"zzz\",Dateneingabe!E13)","v":"zzz"},{"$f":"IF(Dateneingabe!F13=0,\"zzz\",Dateneingabe!F13)","v":"zzz"},{"$f":"IF(Dateneingabe!G13=0,\"zzz\",Dateneingabe!G13)","v":"zzz"},{"$f":"IF(Dateneingabe!H13=0,\"zzz\",Dateneingabe!H13)","v":"zzz"},{"$f":"IF(Dateneingabe!B13=0,\"zzz\",Dateneingabe!B13)","v":"zzz"},{"$f":"IF(Dateneingabe!I13=0,\"zzz\",Dateneingabe!I13)","v":"zzz"},{"$f":"IF(Dateneingabe!J13=0,\"zzz\",Dateneingabe!J13)","v":"zzz"},0,0,0,7]
[8,{"$f":"IF(Dateneingabe!D14=0,\"zzz\",Dateneingabe!D14)","v":"zzz"},{"$f":"IF(Dateneingabe!C14=0,\"zzz\",Dateneingabe!C14)","v":"zzz"},{"$f":"IF(Start!B74=0,\"zzz\",Start!B74)","v":"zzz"},{"$f":"IF(Dateneingabe!E14=0,\"zzz\",Dateneingabe!E14)","v":"zzz"},{"$f":"IF(Dateneingabe!F14=0,\"zzz\",Dateneingabe!F14)","v":"zzz"},{"$f":"IF(Dateneingabe!G14=0,\"zzz\",Dateneingabe!G14)","v":"zzz"},{"$f":"IF(Dateneingabe!H14=0,\"zzz\",Dateneingabe!H14)","v":"zzz"},{"$f":"IF(Dateneingabe!B14=0,\"zzz\",Dateneingabe!B14)","v":"zzz"},{"$f":"IF(Dateneingabe!I14=0,\"zzz\",Dateneingabe!I14)","v":"zzz"},{"$f":"IF(Dateneingabe!J14=0,\"zzz\",Dateneingabe!J14)","v":"zzz"},0,0,0,8]
[9,{"$f":"IF(Dateneingabe!D15=0,\"zzz\",Dateneingabe!D15)","v":"zzz"},{"$f":"IF(Dateneingabe!C15=0,\"zzz\",Dateneingabe!C15)","v":"zzz"},{"$f":"IF(Start!B84=0,\"zzz\",Start!B84)","v":"zzz"},{"$f":"IF(Dateneingabe!E15=0,\"zzz\",Dateneingabe!E15)","v":"zzz"},{"$f":"IF(Dateneingabe!F15=0,\"zzz\",Dateneingabe!F15)","v":"zzz"},{"$f":"IF(Dateneingabe!G15=0,\"zzz\",Dateneingabe!G15)","v":"zzz"},{"$f":"IF(Dateneingabe!H15=0,\"zzz\",Dateneingabe!H15)","v":"zzz"},{"$f":"IF(Dateneingabe!B15=0,\"zzz\",Dateneingabe!B15)","v":"zzz"},{"$f":"IF(Dateneingabe!I15=0,\"zzz\",Dateneingabe!I15)","v":"zzz"},{"$f":"IF(Dateneingabe!J15=0,\"zzz\",Dateneingabe!J15)","v":"zzz"},0,0,0,9]
[10,{"$f":"IF(Dateneingabe!D16=0,\"zzz\",Dateneingabe!D16)","v":"zzz"},{"$f":"IF(Dateneingabe!C16=0,\"zzz\",Dateneingabe!C16)","v":"zzz"},{"$f":"IF(Start!B94=0,\"zzz\",Start!B94)","v":"zzz"},{"$f":"IF(Dateneingabe!E16=0,\"zzz\",Dateneingabe!E16)","v":"zzz"},{"$f":"IF(Dateneingabe!F16=0,\"zzz\",Dateneingabe!F16)","v":"zzz"},{"$f":"IF(Dateneingabe!G16=0,\"zzz\",Dateneingabe!G16)","v":"zzz"},{"$f":"IF(Dateneingabe!H16=0,\"zzz\",Dateneingabe!H16)","v":"zzz"},{"$f":"IF(Dateneingabe!B16=0,\"zzz\",Dateneingabe!B16)","v":"zzz"},{"$f":"IF(Dateneingabe!I16=0,\"zzz\",Dateneingabe!I16)","v":"zzz"},{"$f":"IF(Dateneingabe!J16=0,\"zzz\",Dateneingabe!J16)","v":"zzz"},0,0,0,10]
[11,{"$f":"IF(Dateneingabe!D17=0,\"zzz\",Dateneingabe!D17)","v":"zzz"},{"$f":"IF(Dateneingabe!C17=0,\"zzz\",Dateneingabe!C17)","v":"zzz"},{"$f":"IF(Start!B104=0,\"zzz\",Start!B104)","v":"zzz"},{"$f":"IF(Dateneingabe!E17=0,\"zzz\",Dateneingabe!E17)","v":"zzz"},{"$f":"IF(Dateneingabe!F17=0,\"zzz\",Dateneingabe!F17)","v":"zzz"},{"$f":"IF(Dateneingabe!G17=0,\"zzz\",Dateneingabe!G17)","v":"zzz"},{"$f":"IF(Dateneingabe!H17=0,\"zzz\",Dateneingabe!H17)","v":"zzz"},{"$f":"IF(Dateneingabe!B17=0,\"zzz\",Dateneingabe!B17)","v":"zzz"},{"$f":"IF(Dateneingabe!I17=0,\"zzz\",Dateneingabe!I17)","v":"zzz"},{"$f":"IF(Dateneingabe!J17=0,\"zzz\",Dateneingabe!J17)","v":"zzz"},0,0,0,11]
[12,{"$f":"IF(Dateneingabe!D18=0,\"zzz\",Dateneingabe!D18)","v":"zzz"},{"$f":"IF(Dateneingabe!C18=0,\"zzz\",Dateneingabe!C18)","v":"zzz"},{"$f":"IF(Start!B114=0,\"zzz\",Start!B114)","v":"zzz"},{"$f":"IF(Dateneingabe!E18=0,\"zzz\",Dateneingabe!E18)","v":"zzz"},{"$f":"IF(Dateneingabe!F18=0,\"zzz\",Dateneingabe!F18)","v":"zzz"},{"$f":"IF(Dateneingabe!G18=0,\"zzz\",Dateneingabe!G18)","v":"zzz"},{"$f":"IF(Dateneingabe!H18=0,\"zzz\",Dateneingabe!H18)","v":"zzz"},{"$f":"IF(Dateneingabe!B18=0,\"zzz\",Dateneingabe!B18)","v":"zzz"},{"$f":"IF(Dateneingabe!I18=0,\"zzz\",Dateneingabe!I18)","v":"zzz"},{"$f":"IF(Dateneingabe!J18=0,\"zzz\",Dateneingabe!J18)","v":"zzz"},0,0,0,12]
[13,{"$f":"IF(Dateneingabe!D19=0,\"zzz\",Dateneingabe!D19)","v":"zzz"},{"$f":"IF(Dateneingabe!C19=0,\"zzz\",Dateneingabe!C19)","v":"zzz"},{"$f":"IF(Start!B124=0,\"zzz\",Start!B124)","v":"zzz"},{"$f":"IF(Dateneingabe!E19=0,\"zzz\",Dateneingabe!E19)","v":"zzz"},{"$f":"IF(Dateneingabe!F19=0,\"zzz\",Dateneingabe!F19)","v":"zzz"},{"$f":"IF(Dateneingabe!G19=0,\"zzz\",Dateneingabe!G19)","v":"zzz"},{"$f":"IF(Dateneingabe!H19=0,\"zzz\",Dateneingabe!H19)","v":"zzz"},{"$f":"IF(Dateneingabe!B19=0,\"zzz\",Dateneingabe!B19)","v":"zzz"},{"$f":"IF(Dateneingabe!I19=0,\"zzz\",Dateneingabe!I19)","v":"zzz"},{"$f":"IF(Dateneingabe!J19=0,\"zzz\",Dateneingabe!J19)","v":"zzz"},0,0,0,13]
[14,{"$f":"IF(Dateneingabe!D20=0,\"zzz\",Dateneingabe!D20)","v":"zzz"},{"$f":"IF(Dateneingabe!C20=0,\"zzz\",Dateneingabe!C20)","v":"zzz"},{"$f":"IF(Start!B134=0,\"zzz\",Start!B134)","v":"zzz"},{"$f":"IF(Dateneingabe!E20=0,\"zzz\",Dateneingabe!E20)","v":"zzz"},{"$f":"IF(Dateneingabe!F20=0,\"zzz\",Dateneingabe!F20)","v":"zzz"},{"$f":"IF(Dateneingabe!G20=0,\"zzz\",Dateneingabe!G20)","v":"zzz"},{"$f":"IF(Dateneingabe!H20=0,\"zzz\",Dateneingabe!H20)","v":"zzz"},{"$f":"IF(Dateneingabe!B20=0,\"zzz\",Dateneingabe!B20)","v":"zzz"},{"$f":"IF(Dateneingabe!I20=0,\"zzz\",Dateneingabe!I20)","v":"zzz"},{"$f":"IF(Dateneingabe!J20=0,\"zzz\",Dateneingabe!J20)","v":"zzz"},0,0,0,14]
[15,{"$f":"IF(Dateneingabe!D21=0,\"zzz\",Dateneingabe!D21)","v":"zzz"},{"$f":"IF(Dateneingabe!C21=0,\"zzz\",Dateneingabe!C21)","v":"zzz"},{"$f":"IF(Start!B144=0,\"zzz\",Start!B144)","v":"zzz"},{"$f":"IF(Dateneingabe!E21=0,\"zzz\",Dateneingabe!E21)","v":"zzz"},{"$f":"IF(Dateneingabe!F21=0,\"zzz\",Dateneingabe!F21)","v":"zzz"},{"$f":"IF(Dateneingabe!G21=0,\"zzz\",Dateneingabe!G21)","v":"zzz"},{"$f":"IF(Dateneingabe!H21=0,\"zzz\",Dateneingabe!H21)","v":"zzz"},{"$f":"IF(Dateneingabe!B21=0,\"zzz\",Dateneingabe!B21)","v":"zzz"},{"$f":"IF(Dateneingabe!I21=0,\"zzz\",Dateneingabe!I21)","v":"zzz"},{"$f":"IF(Dateneingabe!J21=0,\"zzz\",Dateneingabe!J21)","v":"zzz"},0,0,0,15]
[16,{"$f":"IF(Dateneingabe!D22=0,\"zzz\",Dateneingabe!D22)","v":"zzz"},{"$f":"IF(Dateneingabe!C22=0,\"zzz\",Dateneingabe!C22)","v":"zzz"},{"$f":"IF(Start!B154=0,\"zzz\",Start!B154)","v":"zzz"},{"$f":"IF(Dateneingabe!E22=0,\"zzz\",Dateneingabe!E22)","v":"zzz"},{"$f":"IF(Dateneingabe!F22=0,\"zzz\",Dateneingabe!F22)","v":"zzz"},{"$f":"IF(Dateneingabe!G22=0,\"zzz\",Dateneingabe!G22)","v":"zzz"},{"$f":"IF(Dateneingabe!H22=0,\"zzz\",Dateneingabe!H22)","v":"zzz"},{"$f":"IF(Dateneingabe!B22=0,\"zzz\",Dateneingabe!B22)","v":"zzz"},{"$f":"IF(Dateneingabe!I22=0,\"zzz\",Dateneingabe!I22)","v":"zzz"},{"$f":"IF(Dateneingabe!J22=0,\"zzz\",Dateneingabe!J22)","v":"zzz"},0,0,0,16]
[17,{"$f":"IF(Dateneingabe!D23=0,\"zzz\",Dateneingabe!D23)","v":"zzz"},{"$f":"IF(Dateneingabe!C23=0,\"zzz\",Dateneingabe!C23)","v":"zzz"},{"$f":"IF(Start!B164=0,\"zzz\",Start!B164)","v":"zzz"},{"$f":"IF(Dateneingabe!E23=0,\"zzz\",Dateneingabe!E23)","v":"zzz"},{"$f":"IF(Dateneingabe!F23=0,\"zzz\",Dateneingabe!F23)","v":"zzz"},{"$f":"IF(Dateneingabe!G23=0,\"zzz\",Dateneingabe!G23)","v":"zzz"},{"$f":"IF(Dateneingabe!H23=0,\"zzz\",Dateneingabe!H23)","v":"zzz"},{"$f":"IF(Dateneingabe!B23=0,\"zzz\",Dateneingabe!B23)","v":"zzz"},{"$f":"IF(Dateneingabe!I23=0,\"zzz\",Dateneingabe!I23)","v":"zzz"},{"$f":"IF(Dateneingabe!J23=0,\"zzz\",Dateneingabe!J23)","v":"zzz"},0,0,0,17]
[18,{"$f":"IF(Dateneingabe!D24=0,\"zzz\",Dateneingabe!D24)","v":"zzz"},{"$f":"IF(Dateneingabe!C24=0,\"zzz\",Dateneingabe!C24)","v":"zzz"},{"$f":"IF(Start!B174=0,\"zzz\",Start!B174)","v":"zzz"},{"$f":"IF(Dateneingabe!E24=0,\"zzz\",Dateneingabe!E24)","v":"zzz"},{"$f":"IF(Dateneingabe!F24=0,\"zzz\",Dateneingabe!F24)","v":"zzz"},{"$f":"IF(Dateneingabe!G24=0,\"zzz\",Dateneingabe!G24)","v":"zzz"},{"$f":"IF(Dateneingabe!H24=0,\"zzz\",Dateneingabe!H24)","v":"zzz"},{"$f":"IF(Dateneingabe!B24=0,\"zzz\",Dateneingabe!B24)","v":"zzz"},{"$f":"IF(Dateneingabe!I24=0,\"zzz\",Dateneingabe!I24)","v":"zzz"},{"$f":"IF(Dateneingabe!J24=0,\"zzz\",Dateneingabe!J24)","v":"zzz"},0,0,0,18]
[19,{"$f":"IF(Dateneingabe!D25=0,\"zzz\",Dateneingabe!D25)","v":"zzz"},{"$f":"IF(Dateneingabe!C25=0,\"zzz\",Dateneingabe!C25)","v":"zzz"},{"$f":"IF(Start!B184=0,\"zzz\",Start!B184)","v":"zzz"},{"$f":"IF(Dateneingabe!E25=0,\"zzz\",Dateneingabe!E25)","v":"zzz"},{"$f":"IF(Dateneingabe!F25=0,\"zzz\",Dateneingabe!F25)","v":"zzz"},{"$f":"IF(Dateneingabe!G25=0,\"zzz\",Dateneingabe!G25)","v":"zzz"},{"$f":"IF(Dateneingabe!H25=0,\"zzz\",Dateneingabe!H25)","v":"zzz"},{"$f":"IF(Dateneingabe!B25=0,\"zzz\",Dateneingabe!B25)","v":"zzz"},{"$f":"IF(Dateneingabe!I25=0,\"zzz\",Dateneingabe!I25)","v":"zzz"},{"$f":"IF(Dateneingabe!J25=0,\"zzz\",Dateneingabe!J25)","v":"zzz"},0,0,0,19]
[20,{"$f":"IF(Dateneingabe!D26=0,\"zzz\",Dateneingabe!D26)","v":"zzz"},{"$f":"IF(Dateneingabe!C26=0,\"zzz\",Dateneingabe!C26)","v":"zzz"},{"$f":"IF(Start!B194=0,\"zzz\",Start!B194)","v":"zzz"},{"$f":"IF(Dateneingabe!E26=0,\"zzz\",Dateneingabe!E26)","v":"zzz"},{"$f":"IF(Dateneingabe!F26=0,\"zzz\",Dateneingabe!F26)","v":"zzz"},{"$f":"IF(Dateneingabe!G26=0,\"zzz\",Dateneingabe!G26)","v":"zzz"},{"$f":"IF(Dateneingabe!H26=0,\"zzz\",Dateneingabe!H26)","v":"zzz"},{"$f":"IF(Dateneingabe!B26=0,\"zzz\",Dateneingabe!B26)","v":"zzz"},{"$f":"IF(Dateneingabe!I26=0,\"zzz\",Dateneingabe!I26)","v":"zzz"},{"$f":"IF(Dateneingabe!J26=0,\"zzz\",Dateneingabe!J26)","v":"zzz"},0,0,0,20]
[21,{"$f":"IF(Dateneingabe!D27=0,\"zzz\",Dateneingabe!D27)","v":"zzz"},{"$f":"IF(Dateneingabe!C27=0,\"zzz\",Dateneingabe!C27)","v":"zzz"},{"$f":"IF(Start!B204=0,\"zzz\",Start!B204)","v":"zzz"},{"$f":"IF(Dateneingabe!E27=0,\"zzz\",Dateneingabe!E27)","v":"zzz"},{"$f":"IF(Dateneingabe!F27=0,\"zzz\",Dateneingabe!F27)","v":"zzz"},{"$f":"IF(Dateneingabe!G27=0,\"zzz\",Dateneingabe!G27)","v":"zzz"},{"$f":"IF(Dateneingabe!H27=0,\"zzz\",Dateneingabe!H27)","v":"zzz"},{"$f":"IF(Dateneingabe!B27=0,\"zzz\",Dateneingabe!B27)","v":"zzz"},{"$f":"IF(Dateneingabe!I27=0,\"zzz\",Dateneingabe!I27)","v":"zzz"},{"$f":"IF(Dateneingabe!J27=0,\"zzz\",Dateneingabe!J27)","v":"zzz"},0,0,0,21]
[22,{"$f":"IF(Dateneingabe!D28=0,\"zzz\",Dateneingabe!D28)","v":"zzz"},{"$f":"IF(Dateneingabe!C28=0,\"zzz\",Dateneingabe!C28)","v":"zzz"},{"$f":"IF(Start!B214=0,\"zzz\",Start!B214)","v":"zzz"},{"$f":"IF(Dateneingabe!E28=0,\"zzz\",Dateneingabe!E28)","v":"zzz"},{"$f":"IF(Dateneingabe!F28=0,\"zzz\",Dateneingabe!F28)","v":"zzz"},{"$f":"IF(Dateneingabe!G28=0,\"zzz\",Dateneingabe!G28)","v":"zzz"},{"$f":"IF(Dateneingabe!H28=0,\"zzz\",Dateneingabe!H28)","v":"zzz"},{"$f":"IF(Dateneingabe!B28=0,\"zzz\",Dateneingabe!B28)","v":"zzz"},{"$f":"IF(Dateneingabe!I28=0,\"zzz\",Dateneingabe!I28)","v":"zzz"},{"$f":"IF(Dateneingabe!J28=0,\"zzz\",Dateneingabe!J28)","v":"zzz"},0,0,0,22]
[23,{"$f":"IF(Dateneingabe!D29=0,\"zzz\",Dateneingabe!D29)","v":"zzz"},{"$f":"IF(Dateneingabe!C29=0,\"zzz\",Dateneingabe!C29)","v":"zzz"},{"$f":"IF(Start!B224=0,\"zzz\",Start!B224)","v":"zzz"},{"$f":"IF(Dateneingabe!E29=0,\"zzz\",Dateneingabe!E29)","v":"zzz"},{"$f":"IF(Dateneingabe!F29=0,\"zzz\",Dateneingabe!F29)","v":"zzz"},{"$f":"IF(Dateneingabe!G29=0,\"zzz\",Dateneingabe!G29)","v":"zzz"},{"$f":"IF(Dateneingabe!H29=0,\"zzz\",Dateneingabe!H29)","v":"zzz"},{"$f":"IF(Dateneingabe!B29=0,\"zzz\",Dateneingabe!B29)","v":"zzz"},{"$f":"IF(Dateneingabe!I29=0,\"zzz\",Dateneingabe!I29)","v":"zzz"},{"$f":"IF(Dateneingabe!J29=0,\"zzz\",Dateneingabe!J29)","v":"zzz"},0,0,0,23]
[24,{"$f":"IF(Dateneingabe!D30=0,\"zzz\",Dateneingabe!D30)","v":"zzz"},{"$f":"IF(Dateneingabe!C30=0,\"zzz\",Dateneingabe!C30)","v":"zzz"},{"$f":"IF(Start!B234=0,\"zzz\",Start!B234)","v":"zzz"},{"$f":"IF(Dateneingabe!E30=0,\"zzz\",Dateneingabe!E30)","v":"zzz"},{"$f":"IF(Dateneingabe!F30=0,\"zzz\",Dateneingabe!F30)","v":"zzz"},{"$f":"IF(Dateneingabe!G30=0,\"zzz\",Dateneingabe!G30)","v":"zzz"},{"$f":"IF(Dateneingabe!H30=0,\"zzz\",Dateneingabe!H30)","v":"zzz"},{"$f":"IF(Dateneingabe!B30=0,\"zzz\",Dateneingabe!B30)","v":"zzz"},{"$f":"IF(Dateneingabe!I30=0,\"zzz\",Dateneingabe!I30)","v":"zzz"},{"$f":"IF(Dateneingabe!J30=0,\"zzz\",Dateneingabe!J30)","v":"zzz"},0,0,0,24]
[25,{"$f":"IF(Dateneingabe!D31=0,\"zzz\",Dateneingabe!D31)","v":"zzz"},{"$f":"IF(Dateneingabe!C31=0,\"zzz\",Dateneingabe!C31)","v":"zzz"},{"$f":"IF(Start!B244=0,\"zzz\",Start!B244)","v":"zzz"},{"$f":"IF(Dateneingabe!E31=0,\"zzz\",Dateneingabe!E31)","v":"zzz"},{"$f":"IF(Dateneingabe!F31=0,\"zzz\",Dateneingabe!F31)","v":"zzz"},{"$f":"IF(Dateneingabe!G31=0,\"zzz\",Dateneingabe!G31)","v":"zzz"},{"$f":"IF(Dateneingabe!H31=0,\"zzz\",Dateneingabe!H31)","v":"zzz"},{"$f":"IF(Dateneingabe!B31=0,\"zzz\",Dateneingabe!B31)","v":"zzz"},{"$f":"IF(Dateneingabe!I31=0,\"zzz\",Dateneingabe!I31)","v":"zzz"},{"$f":"IF(Dateneingabe!J31=0,\"zzz\",Dateneingabe!J31)","v":"zzz"},0,0,0,25]
[26,{"$f":"IF(Dateneingabe!D32=0,\"zzz\",Dateneingabe!D32)","v":"zzz"},{"$f":"IF(Dateneingabe!C32=0,\"zzz\",Dateneingabe!C32)","v":"zzz"},{"$f":"IF(Start!B254=0,\"zzz\",Start!B254)","v":"zzz"},{"$f":"IF(Dateneingabe!E32=0,\"zzz\",Dateneingabe!E32)","v":"zzz"},{"$f":"IF(Dateneingabe!F32=0,\"zzz\",Dateneingabe!F32)","v":"zzz"},{"$f":"IF(Dateneingabe!G32=0,\"zzz\",Dateneingabe!G32)","v":"zzz"},{"$f":"IF(Dateneingabe!H32=0,\"zzz\",Dateneingabe!H32)","v":"zzz"},{"$f":"IF(Dateneingabe!B32=0,\"zzz\",Dateneingabe!B32)","v":"zzz"},{"$f":"IF(Dateneingabe!I32=0,\"zzz\",Dateneingabe!I32)","v":"zzz"},{"$f":"IF(Dateneingabe!J32=0,\"zzz\",Dateneingabe!J32)","v":"zzz"},0,0,0,26]
[27,{"$f":"IF(Dateneingabe!D33=0,\"zzz\",Dateneingabe!D33)","v":"zzz"},{"$f":"IF(Dateneingabe!C33=0,\"zzz\",Dateneingabe!C33)","v":"zzz"},{"$f":"IF(Start!B264=0,\"zzz\",Start!B264)","v":"zzz"},{"$f":"IF(Dateneingabe!E33=0,\"zzz\",Dateneingabe!E33)","v":"zzz"},{"$f":"IF(Dateneingabe!F33=0,\"zzz\",Dateneingabe!F33)","v":"zzz"},{"$f":"IF(Dateneingabe!G33=0,\"zzz\",Dateneingabe!G33)","v":"zzz"},{"$f":"IF(Dateneingabe!H33=0,\"zzz\",Dateneingabe!H33)","v":"zzz"},{"$f":"IF(Dateneingabe!B33=0,\"zzz\",Dateneingabe!B33)","v":"zzz"},{"$f":"IF(Dateneingabe!I33=0,\"zzz\",Dateneingabe!I33)","v":"zzz"},{"$f":"IF(Dateneingabe!J33=0,\"zzz\",Dateneingabe!J33)","v":"zzz"},0,0,0,27]
[28,{"$f":"IF(Dateneingabe!D34=0,\"zzz\",Dateneingabe!D34)","v":"zzz"},{"$f":"IF(Dateneingabe!C34=0,\"zzz\",Dateneingabe!C34)","v":"zzz"},{"$f":"IF(Start!B274=0,\"zzz\",Start!B274)","v":"zzz"},{"$f":"IF(Dateneingabe!E34=0,\"zzz\",Dateneingabe!E34)","v":"zzz"},{"$f":"IF(Dateneingabe!F34=0,\"zzz\",Dateneingabe!F34)","v":"zzz"},{"$f":"IF(Dateneingabe!G34=0,\"zzz\",Dateneingabe!G34)","v":"zzz"},{"$f":"IF(Dateneingabe!H34=0,\"zzz\",Dateneingabe!H34)","v":"zzz"},{"$f":"IF(Dateneingabe!B34=0,\"zzz\",Dateneingabe!B34)","v":"zzz"},{"$f":"IF(Dateneingabe!I34=0,\"zzz\",Dateneingabe!I34)","v":"zzz"},{"$f":"IF(Dateneingabe!J34=0,\"zzz\",Dateneingabe!J34)","v":"zzz"},0,0,0,28]
[29,{"$f":"IF(Dateneingabe!D35=0,\"zzz\",Dateneingabe!D35)","v":"zzz"},{"$f":"IF(Dateneingabe!C35=0,\"zzz\",Dateneingabe!C35)","v":"zzz"},{"$f":"IF(Start!B284=0,\"zzz\",Start!B284)","v":"zzz"},{"$f":"IF(Dateneingabe!E35=0,\"zzz\",Dateneingabe!E35)","v":"zzz"},{"$f":"IF(Dateneingabe!F35=0,\"zzz\",Dateneingabe!F35)","v":"zzz"},{"$f":"IF(Dateneingabe!G35=0,\"zzz\",Dateneingabe!G35)","v":"zzz"},{"$f":"IF(Dateneingabe!H35=0,\"zzz\",Dateneingabe!H35)","v":"zzz"},{"$f":"IF(Dateneingabe!B35=0,\"zzz\",Dateneingabe!B35)","v":"zzz"},{"$f":"IF(Dateneingabe!I35=0,\"zzz\",Dateneingabe!I35)","v":"zzz"},{"$f":"IF(Dateneingabe!J35=0,\"zzz\",Dateneingabe!J35)","v":"zzz"},0,0,0,29]
[30,{"$f":"IF(Dateneingabe!D36=0,\"zzz\",Dateneingabe!D36)","v":"zzz"},{"$f":"IF(Dateneingabe!C36=0,\"zzz\",Dateneingabe!C36)","v":"zzz"},{"$f":"IF(Start!B294=0,\"zzz\",Start!B294)","v":"zzz"},{"$f":"IF(Dateneingabe!E36=0,\"zzz\",Dateneingabe!E36)","v":"zzz"},{"$f":"IF(Dateneingabe!F36=0,\"zzz\",Dateneingabe!F36)","v":"zzz"},{"$f":"IF(Dateneingabe!G36=0,\"zzz\",Dateneingabe!G36)","v":"zzz"},{"$f":"IF(Dateneingabe!H36=0,\"zzz\",Dateneingabe!H36)","v":"zzz"},{"$f":"IF(Dateneingabe!B36=0,\"zzz\",Dateneingabe!B36)","v":"zzz"},{"$f":"IF(Dateneingabe!I36=0,\"zzz\",Dateneingabe!I36)","v":"zzz"},{"$f":"IF(Dateneingabe!J36=0,\"zzz\",Dateneingabe!J36)","v":"zzz"},0,0,0,30]
[31,{"$f":"IF(Dateneingabe!D37=0,\"zzz\",Dateneingabe!D37)","v":"zzz"},{"$f":"IF(Dateneingabe!C37=0,\"zzz\",Dateneingabe!C37)","v":"zzz"},{"$f":"IF(Start!B304=0,\"zzz\",Start!B304)","v":"zzz"},{"$f":"IF(Dateneingabe!E37=0,\"zzz\",Dateneingabe!E37)","v":"zzz"},{"$f":"IF(Dateneingabe!F37=0,\"zzz\",Dateneingabe!F37)","v":"zzz"},{"$f":"IF(Dateneingabe!G37=0,\"zzz\",Dateneingabe!G37)","v":"zzz"},{"$f":"IF(Dateneingabe!H37=0,\"zzz\",Dateneingabe!H37)","v":"zzz"},{"$f":"IF(Dateneingabe!B37=0,\"zzz\",Dateneingabe!B37)","v":"zzz"},{"$f":"IF(Dateneingabe!I37=0,\"zzz\",Dateneingabe!I37)","v":"zzz"},{"$f":"IF(Dateneingabe!J37=0,\"zzz\",Dateneingabe!J37)","v":"zzz"},0,0,0,31]
[32,{"$f":"IF(Dateneingabe!D38=0,\"zzz\",Dateneingabe!D38)","v":"zzz"},{"$f":"IF(Dateneingabe!C38=0,\"zzz\",Dateneingabe!C38)","v":"zzz"},{"$f":"IF(Start!B314=0,\"zzz\",Start!B314)","v":"zzz"},{"$f":"IF(Dateneingabe!E38=0,\"zzz\",Dateneingabe!E38)","v":"zzz"},{"$f":"IF(Dateneingabe!F38=0,\"zzz\",Dateneingabe!F38)","v":"zzz"},{"$f":"IF(Dateneingabe!G38=0,\"zzz\",Dateneingabe!G38)","v":"zzz"},{"$f":"IF(Dateneingabe!H38=0,\"zzz\",Dateneingabe!H38)","v":"zzz"},{"$f":"IF(Dateneingabe!B38=0,\"zzz\",Dateneingabe!B38)","v":"zzz"},{"$f":"IF(Dateneingabe!I38=0,\"zzz\",Dateneingabe!I38)","v":"zzz"},{"$f":"IF(Dateneingabe!J38=0,\"zzz\",Dateneingabe!J38)","v":"zzz"},0,0,0,32]
[33,{"$f":"IF(Dateneingabe!D39=0,\"zzz\",Dateneingabe!D39)","v":"zzz"},{"$f":"IF(Dateneingabe!C39=0,\"zzz\",Dateneingabe!C39)","v":"zzz"},{"$f":"IF(Start!B324=0,\"zzz\",Start!B324)","v":"zzz"},{"$f":"IF(Dateneingabe!E39=0,\"zzz\",Dateneingabe!E39)","v":"zzz"},{"$f":"IF(Dateneingabe!F39=0,\"zzz\",Dateneingabe!F39)","v":"zzz"},{"$f":"IF(Dateneingabe!G39=0,\"zzz\",Dateneingabe!G39)","v":"zzz"},{"$f":"IF(Dateneingabe!H39=0,\"zzz\",Dateneingabe!H39)","v":"zzz"},{"$f":"IF(Dateneingabe!B39=0,\"zzz\",Dateneingabe!B39)","v":"zzz"},{"$f":"IF(Dateneingabe!I39=0,\"zzz\",Dateneingabe!I39)","v":"zzz"},{"$f":"IF(Dateneingabe!J39=0,\"zzz\",Dateneingabe!J39)","v":"zzz"},0,0,0,33]
[34,{"$f":"IF(Dateneingabe!D40=0,\"zzz\",Dateneingabe!D40)","v":"zzz"},{"$f":"IF(Dateneingabe!C40=0,\"zzz\",Dateneingabe!C40)","v":"zzz"},{"$f":"IF(Start!B334=0,\"zzz\",Start!B334)","v":"zzz"},{"$f":"IF(Dateneingabe!E40=0,\"zzz\",Dateneingabe!E40)","v":"zzz"},{"$f":"IF(Dateneingabe!F40=0,\"zzz\",Dateneingabe!F40)","v":"zzz"},{"$f":"IF(Dateneingabe!G40=0,\"zzz\",Dateneingabe!G40)","v":"zzz"},{"$f":"IF(Dateneingabe!H40=0,\"zzz\",Dateneingabe!H40)","v":"zzz"},{"$f":"IF(Dateneingabe!B40=0,\"zzz\",Dateneingabe!B40)","v":"zzz"},{"$f":"IF(Dateneingabe!I40=0,\"zzz\",Dateneingabe!I40)","v":"zzz"},{"$f":"IF(Dateneingabe!J40=0,\"zzz\",Dateneingabe!J40)","v":"zzz"},0,0,0,34]
[35,{"$f":"IF(Dateneingabe!D41=0,\"zzz\",Dateneingabe!D41)","v":"zzz"},{"$f":"IF(Dateneingabe!C41=0,\"zzz\",Dateneingabe!C41)","v":"zzz"},{"$f":"IF(Start!B344=0,\"zzz\",Start!B344)","v":"zzz"},{"$f":"IF(Dateneingabe!E41=0,\"zzz\",Dateneingabe!E41)","v":"zzz"},{"$f":"IF(Dateneingabe!F41=0,\"zzz\",Dateneingabe!F41)","v":"zzz"},{"$f":"IF(Dateneingabe!G41=0,\"zzz\",Dateneingabe!G41)","v":"zzz"},{"$f":"IF(Dateneingabe!H41=0,\"zzz\",Dateneingabe!H41)","v":"zzz"},{"$f":"IF(Dateneingabe!B41=0,\"zzz\",Dateneingabe!B41)","v":"zzz"},{"$f":"IF(Dateneingabe!I41=0,\"zzz\",Dateneingabe!I41)","v":"zzz"},{"$f":"IF(Dateneingabe!J41=0,\"zzz\",Dateneingabe!J41)","v":"zzz"},0,0,0,35]
[36,{"$f":"IF(Dateneingabe!D42=0,\"zzz\",Dateneingabe!D42)","v":"zzz"},{"$f":"IF(Dateneingabe!C42=0,\"zzz\",Dateneingabe!C42)","v":"zzz"},{"$f":"IF(Start!B354=0,\"zzz\",Start!B354)","v":"zzz"},{"$f":"IF(Dateneingabe!E42=0,\"zzz\",Dateneingabe!E42)","v":"zzz"},{"$f":"IF(Dateneingabe!F42=0,\"zzz\",Dateneingabe!F42)","v":"zzz"},{"$f":"IF(Dateneingabe!G42=0,\"zzz\",Dateneingabe!G42)","v":"zzz"},{"$f":"IF(Dateneingabe!H42=0,\"zzz\",Dateneingabe!H42)","v":"zzz"},{"$f":"IF(Dateneingabe!B42=0,\"zzz\",Dateneingabe!B42)","v":"zzz"},{"$f":"IF(Dateneingabe!I42=0,\"zzz\",Dateneingabe!I42)","v":"zzz"},{"$f":"IF(Dateneingabe!J42=0,\"zzz\",Dateneingabe!J42)","v":"zzz"},0,0,0,36]
[37,{"$f":"IF(Dateneingabe!D43=0,\"zzz\",Dateneingabe!D43)","v":"zzz"},{"$f":"IF(Dateneingabe!C43=0,\"zzz\",Dateneingabe!C43)","v":"zzz"},{"$f":"IF(Start!B364=0,\"zzz\",Start!B364)","v":"zzz"},{"$f":"IF(Dateneingabe!E43=0,\"zzz\",Dateneingabe!E43)","v":"zzz"},{"$f":"IF(Dateneingabe!F43=0,\"zzz\",Dateneingabe!F43)","v":"zzz"},{"$f":"IF(Dateneingabe!G43=0,\"zzz\",Dateneingabe!G43)","v":"zzz"},{"$f":"IF(Dateneingabe!H43=0,\"zzz\",Dateneingabe!H43)","v":"zzz"},{"$f":"IF(Dateneingabe!B43=0,\"zzz\",Dateneingabe!B43)","v":"zzz"},{"$f":"IF(Dateneingabe!I43=0,\"zzz\",Dateneingabe!I43)","v":"zzz"},{"$f":"IF(Dateneingabe!J43=0,\"zzz\",Dateneingabe!J43)","v":"zzz"},0,0,0,37]
[38,{"$f":"IF(Dateneingabe!D44=0,\"zzz\",Dateneingabe!D44)","v":"zzz"},{"$f":"IF(Dateneingabe!C44=0,\"zzz\",Dateneingabe!C44)","v":"zzz"},{"$f":"IF(Start!B374=0,\"zzz\",Start!B374)","v":"zzz"},{"$f":"IF(Dateneingabe!E44=0,\"zzz\",Dateneingabe!E44)","v":"zzz"},{"$f":"IF(Dateneingabe!F44=0,\"zzz\",Dateneingabe!F44)","v":"zzz"},{"$f":"IF(Dateneingabe!G44=0,\"zzz\",Dateneingabe!G44)","v":"zzz"},{"$f":"IF(Dateneingabe!H44=0,\"zzz\",Dateneingabe!H44)","v":"zzz"},{"$f":"IF(Dateneingabe!B44=0,\"zzz\",Dateneingabe!B44)","v":"zzz"},{"$f":"IF(Dateneingabe!I44=0,\"zzz\",Dateneingabe!I44)","v":"zzz"},{"$f":"IF(Dateneingabe!J44=0,\"zzz\",Dateneingabe!J44)","v":"zzz"},0,0,0,38]
[39,{"$f":"IF(Dateneingabe!D45=0,\"zzz\",Dateneingabe!D45)","v":"zzz"},{"$f":"IF(Dateneingabe!C45=0,\"zzz\",Dateneingabe!C45)","v":"zzz"},{"$f":"IF(Start!B384=0,\"zzz\",Start!B384)","v":"zzz"},{"$f":"IF(Dateneingabe!E45=0,\"zzz\",Dateneingabe!E45)","v":"zzz"},{"$f":"IF(Dateneingabe!F45=0,\"zzz\",Dateneingabe!F45)","v":"zzz"},{"$f":"IF(Dateneingabe!G45=0,\"zzz\",Dateneingabe!G45)","v":"zzz"},{"$f":"IF(Dateneingabe!H45=0,\"zzz\",Dateneingabe!H45)","v":"zzz"},{"$f":"IF(Dateneingabe!B45=0,\"zzz\",Dateneingabe!B45)","v":"zzz"},{"$f":"IF(Dateneingabe!I45=0,\"zzz\",Dateneingabe!I45)","v":"zzz"},{"$f":"IF(Dateneingabe!J45=0,\"zzz\",Dateneingabe!J45)","v":"zzz"},0,0,0,39]
[40,{"$f":"IF(Dateneingabe!D46=0,\"zzz\",Dateneingabe!D46)","v":"zzz"},{"$f":"IF(Dateneingabe!C46=0,\"zzz\",Dateneingabe!C46)","v":"zzz"},{"$f":"IF(Start!B394=0,\"zzz\",Start!B394)","v":"zzz"},{"$f":"IF(Dateneingabe!E46=0,\"zzz\",Dateneingabe!E46)","v":"zzz"},{"$f":"IF(Dateneingabe!F46=0,\"zzz\",Dateneingabe!F46)","v":"zzz"},{"$f":"IF(Dateneingabe!G46=0,\"zzz\",Dateneingabe!G46)","v":"zzz"},{"$f":"IF(Dateneingabe!H46=0,\"zzz\",Dateneingabe!H46)","v":"zzz"},{"$f":"IF(Dateneingabe!B46=0,\"zzz\",Dateneingabe!B46)","v":"zzz"},{"$f":"IF(Dateneingabe!I46=0,\"zzz\",Dateneingabe!I46)","v":"zzz"},{"$f":"IF(Dateneingabe!J46=0,\"zzz\",Dateneingabe!J46)","v":"zzz"},0,0,0,40]
[41,{"$f":"IF(Dateneingabe!D47=0,\"zzz\",Dateneingabe!D47)","v":"zzz"},{"$f":"IF(Dateneingabe!C47=0,\"zzz\",Dateneingabe!C47)","v":"zzz"},{"$f":"IF(Start!B404=0,\"zzz\",Start!B404)","v":"zzz"},{"$f":"IF(Dateneingabe!E47=0,\"zzz\",Dateneingabe!E47)","v":"zzz"},{"$f":"IF(Dateneingabe!F47=0,\"zzz\",Dateneingabe!F47)","v":"zzz"},{"$f":"IF(Dateneingabe!G47=0,\"zzz\",Dateneingabe!G47)","v":"zzz"},{"$f":"IF(Dateneingabe!H47=0,\"zzz\",Dateneingabe!H47)","v":"zzz"},{"$f":"IF(Dateneingabe!B47=0,\"zzz\",Dateneingabe!B47)","v":"zzz"},{"$f":"IF(Dateneingabe!I47=0,\"zzz\",Dateneingabe!I47)","v":"zzz"},{"$f":"IF(Dateneingabe!J47=0,\"zzz\",Dateneingabe!J47)","v":"zzz"},0,0,0,41]
[42,{"$f":"IF(Dateneingabe!D48=0,\"zzz\",Dateneingabe!D48)","v":"zzz"},{"$f":"IF(Dateneingabe!C48=0,\"zzz\",Dateneingabe!C48)","v":"zzz"},{"$f":"IF(Start!B414=0,\"zzz\",Start!B414)","v":"zzz"},{"$f":"IF(Dateneingabe!E48=0,\"zzz\",Dateneingabe!E48)","v":"zzz"},{"$f":"IF(Dateneingabe!F48=0,\"zzz\",Dateneingabe!F48)","v":"zzz"},{"$f":"IF(Dateneingabe!G48=0,\"zzz\",Dateneingabe!G48)","v":"zzz"},{"$f":"IF(Dateneingabe!H48=0,\"zzz\",Dateneingabe!H48)","v":"zzz"},{"$f":"IF(Dateneingabe!B48=0,\"zzz\",Dateneingabe!B48)","v":"zzz"},{"$f":"IF(Dateneingabe!I48=0,\"zzz\",Dateneingabe!I48)","v":"zzz"},{"$f":"IF(Dateneingabe!J48=0,\"zzz\",Dateneingabe!J48)","v":"zzz"},0,0,0,42]
[null,null,null,null,null,null,{"$f":"L46","v":47.238847210180744},"(= Durchschnittsalter)",{"$f":"M46","v":1},"Mitarbeiter",null,{"$f":"IF(M46=0,0,(SUM(L4:L45))/N46)","v":47.238847210180744},{"$f":"SUM(M4:M45)","v":1},{"$f":"SUM(N4:N45)","v":1}]
[null,null,null,null,null,null,null,"Achtung Hinweis:",{"$f":"M46-N46","v":0},"Geburtsdaten fehlen",null,"Durchschnittsalter"]

{"sheet":"Start","index":2,"n_rows":436,"n_cols":18,"rows_kept":436,"cut":false,"hidden":false,"merged":[[33,0,42,0],[43,0,52,0],[53,0,62,0],[63,0,72,0],[0,13,1,13],[3,0,12,0],[13,0,22,0],[23,0,32,0],[0,0,1,0],[0,7,1,12],[0,5,0,6],[1,5,1,6],[113,0,122,0],[123,0,132,0],[133,0,142,0],[143,0,152,0],[73,0,82,0],[83,0,92,0],[93,0,102,0],[103,0,112,0],[193,0,202,0],[203,0,212,0],[213,0,222,0],[223,0,232,0],[153,0,162,0],[163,0,172,0],[173,0,182,0],[183,0,192,0],[273,0,282,0],[283,0,292,0],[293,0,302,0],[303,0,312,0],[233,0,242,0],[243,0,252,0],[253,0,262,0],[263,0,272,0],[313,0,322,0],[323,0,332,0],[333,0,342,0],[343,0,352,0],[424,1,424,5],[393,0,402,0],[353,0,362,0],[363,0,372,0],[373,0,382,0],[383,0,392,0],[425,3,425,5],[426,3,426,5],[427,3,427,5],[403,0,412,0],[413,0,422,0],[432,3,432,5],[433,3,433,5],[428,3,428,5],[429,3,429,5],[430,3,430,5],[431,3,431,5]]}
[null,{"$f":"Dateneingabe!A4","v":2012},{"$f":"IF(B2=\"Mo\",\"Di\",IF(B2=\"Di\",\"Mi\",IF(B2=\"Mi\",\"Do\",IF(B2=\"Do\",\"Fr\",IF(B2=\"Fr\",\"Sa\",IF(B2=\"Sa\",\"So\",IF(B2=\"So\",\"Mo\",\"?\")))))))","v":"Mo"},{"$f":"IF(C1=\"Mo\",\"Di\",IF(C1=\"Di\",\"Mi\",IF(C1=\"Mi\",\"Do\",IF(C1=\"Do\",\"Fr\",IF(C1=\"Fr\",\"Sa\",IF(C1=\"Sa\",\"So\",IF(C1=\"So\",\"Mo\",\"?\")))))))","v":"Di"},{"$f":"IF(D1=\"Mo\",\"Di\",IF(D1=\"Di\",\"Mi\",IF(D1=\"Mi\",\"Do\",IF(D1=\"Do\",\"Fr\",IF(D1=\"Fr\",\"Sa\",IF(D1=\"Sa\",\"So\",IF(D1=\"So\",\"Mo\",\"?\")))))))","v":"Mi"},null,null,"Anwesenheitsliste"]
[null,{"$f":"Dateneingabe!B3","v":"So"},{"$f":"IF(E1=\"Mo\",\"Di\",IF(E1=\"Di\",\"Mi\",IF(E1=\"Mi\",\"Do\",IF(E1=\"Do\",\"Fr\",IF(E1=\"Fr\",\"Sa\",IF(E1=\"Sa\",\"So\",IF(E1=\"So\",\"Mo\",\"?\")))))))","v":"Do"},{"$f":"IF(C2=\"Mo\",\"Di\",IF(C2=\"Di\",\"Mi\",IF(C2=\"Mi\",\"Do\",IF(C2=\"Do\",\"Fr\",IF(C2=\"Fr\",\"Sa\",IF(C2=\"Sa\",\"So\",IF(C2=\"So\",\"Mo\",\"?\")))))))","v":"Fr"},{"$f":"IF(D2=\"Mo\",\"Di\",IF(D2=\"Di\",\"Mi\",IF(D2=\"Mi\",\"Do\",IF(D2=\"Do\",\"Fr\",IF(D2=\"Fr\",\"Sa\",IF(D2=\"Sa\",\"So\",IF(D2=\"So\",\"Mo\",\"?\")))))))","v":"Sa"},{"$f":"Dateneingabe!E5","v":"ja"},null,null,null,null,null,null,null,null,null,null," "]
["Tabelle","Name","St. Nr.:","Januar","Februar","März","April","Mai","Juni","Juli","August","September","Oktober","November","Dezember","gesamt","Anteil in %","Name"]
[1,{"$f":"Dateneingabe!A7","v":"Mustermann,Max"},{"$f":"Dateneingabe!B7","v":"0815"},"Januar","Februar","März","April","Mai","Juni","Juli","August","September","Oktober","November","Dezember","gesamt",{"$f":"SUM(P5:P13)","v":32},{"$f":"IF(B4=0,$Q$1,B4)","v":"Mustermann,Max"}]
[null,{"$f":"Dateneingabe!G2","v":"Arbeitsstunden"},{"$f":"Q5","v":0},{"$f":"Tabelle1!AG4","v":0},{"$f":"Tabelle1!AG15","v":0},{"$f":"Tabelle1!AG26","v":0},{"$f":"Tabelle1!AG37","v":0},{"$f":"Tabelle1!AG48","v":0},{"$f":"Tabelle1!AG59","v":0},{"$f":"Tabelle1!AG70","v":0},{"$f":"Tabelle1!AG81","v":0},{"$f":"Tabelle1!AG92","v":0},{"$f":"Tabelle1!AG103","v":0},{"$f":"Tabelle1!AG114","v":0},{"$f":"Tabelle1!AG125","v":0},{"$f":"SUM(D5:O5)","v":0},{"$f":"IF(P5=0,$Q$1,P5/$Q$4)","v":0},{"$f":"$B$5","v":"Arbeitsstunden"}]
[null,{"$f":"Dateneingabe!G3","v":"Kurzarbeit"},0,{"$f":"Tabelle1!AG5","v":0},{"$f":"Tabelle1!AG16","v":0},{"$f":"Tabelle1!AG27","v":0},{"$f":"Tabelle1!AG38","v":0},{"$f":"Tabelle1!AG49","v":0},{"$f":"Tabelle1!AG60","v":0},{"$f":"Tabelle1!AG71","v":0},{"$f":"Tabelle1!AG82","v":0},{"$f":"Tabelle1!AG93","v":0},{"$f":"Tabelle1!AG104","v":0},{"$f":"Tabelle1!AG115","v":0},{"$f":"Tabelle1!AG126","v":0},0,{"$f":"IF(P6=0,$Q$1,P6/$Q$4)","v":0},{"$f":"$B$6","v":"Kurzarbeit"}]
[null,{"$f":"Dateneingabe!G4","v":"bez. Freistellung"},0,{"$f":"Tabelle1!AG6","v":0},{"$f":"Tabelle1!AG17","v":0},{"$f":"Tabelle1!AG28","v":0},{"$f":"Tabelle1!AG39","v":0},{"$f":"Tabelle1!AG50","v":0},{"$f":"Tabelle1!AG61","v":0},{"$f":"Tabelle1!AG72","v":0},{"$f":"Tabelle1!AG83","v":0},{"$f":"Tabelle1!AG94","v":0},{"$f":"Tabelle1!AG105","v":0},{"$f":"Tabelle1!AG116","v":0},{"$f":"Tabelle1!AG127","v":0},0,0,{"$f":"$B$7","v":"bez. Freistellung"}]
[null,"Urlaub",1,{"$f":"Tabelle1!AG7","v":32},{"$f":"Tabelle1!AG18","v":0},{"$f":"Tabelle1!AG29","v":0},{"$f":"Tabelle1!AG40","v":0},{"$f":"Tabelle1!AG51","v":0},{"$f":"Tabelle1!AG62","v":0},{"$f":"Tabelle1!AG73","v":0},{"$f":"Tabelle1!AG84","v":0},{"$f":"Tabelle1!AG95","v":0},{"$f":"Tabelle1!AG106","v":0},{"$f":"Tabelle1!AG117","v":0},{"$f":"Tabelle1!AG128","v":0},32,1,{"$f":"$B$8","v":"Urlaub"}]
[null,{"$f":"Dateneingabe!H2","v":"Krank mit Lfz"},0,{"$f":"Tabelle1!AG8","v":0},{"$f":"Tabelle1!AG19","v":0},{"$f":"Tabelle1!AG30","v":0},{"$f":"Tabelle1!AG41","v":0},{"$f":"Tabelle1!AG52","v":0},{"$f":"Tabelle1!AG63","v":0},{"$f":"Tabelle1!AG74","v":0},{"$f":"Tabelle1!AG85","v":0},{"$f":"Tabelle1!AG96","v":0},{"$f":"Tabelle1!AG107","v":0},{"$f":"Tabelle1!AG118","v":0},{"$f":"Tabelle1!AG129","v":0},0,0,{"$f":"$B$9","v":"Krank mit Lfz"}]
[null,{"$f":"Dateneingabe!H3","v":"Krank ohne Lfz"},0,{"$f":"Tabelle1!AG9","v":0},{"$f":"Tabelle1!AG20","v":0},{"$f":"Tabelle1!AG31","v":0},{"$f":"Tabelle1!AG42","v":0},{"$f":"Tabelle1!AG53","v":0},{"$f":"Tabelle1!AG64","v":0},{"$f":"Tabelle1!AG75","v":0},{"$f":"Tabelle1!AG86","v":0},{"$f":"Tabelle1!AG97","v":0},{"$f":"Tabelle1!AG108","v":0},{"$f":"Tabelle1!AG119","v":0},{"$f":"Tabelle1!AG130","v":0},0,0,{"$f":"$B$10","v":"Krank ohne Lfz"}]
[null,{"$f":"Dateneingabe!H4","v":"unentsch.Fehlen"},0,{"$f":"Tabelle1!AG10","v":0},{"$f":"Tabelle1!AG21","v":0},{"$f":"Tabelle1!AG32","v":0},{"$f":"Tabelle1!AG43","v":0},{"$f":"Tabelle1!AG54","v":0},{"$f":"Tabelle1!AG65","v":0},{"$f":"Tabelle1!AG76","v":0},{"$f":"Tabelle1!AG87","v":0},{"$f":"Tabelle1!AG98","v":0},{"$f":"Tabelle1!AG109","v":0},{"$f":"Tabelle1!AG120","v":0},{"$f":"Tabelle1!AG131","v":0},0,0,{"$f":"$B$11","v":"unentsch.Fehlen"}]
[null,{"$f":"Dateneingabe!H5","v":"Weiterbildung"},0,{"$f":"Tabelle1!AG11","v":0},{"$f":"Tabelle1!AG22","v":0},{"$f":"Tabelle1!AG33","v":0},{"$f":"Tabelle1!AG44","v":0},{"$f":"Tabelle1!AG55","v":0},{"$f":"Tabelle1!AG66","v":0},{"$f":"Tabelle1!AG77","v":0},{"$f":"Tabelle1!AG88","v":0},{"$f":"Tabelle1!AG99","v":0},{"$f":"Tabelle1!AG110","v":0},{"$f":"Tabelle1!AG121","v":0},{"$f":"Tabelle1!AG132","v":0},0,0,{"$f":"$B$12","v":"Weiterbildung"}]
[null,{"$f":"Dateneingabe!I2","v":"Stundenkonto"},0,{"$f":"Tabelle1!AG12","v":0},{"$f":"Tabelle1!AG23","v":0},{"$f":"Tabelle1!AG34","v":0},{"$f":"Tabelle1!AG45","v":0},{"$f":"Tabelle1!AG56","v":0},{"$f":"Tabelle1!AG67","v":0},{"$f":"Tabelle1!AG78","v":0},{"$f":"Tabelle1!AG89","v":0},{"$f":"Tabelle1!AG100","v":0},{"$f":"Tabelle1!AG111","v":0},{"$f":"Tabelle1!AG122","v":0},{"$f":"Tabelle1!AG133","v":0},0,0,{"$f":"$B$13","v":"Stundenkonto"}]
[2,{"$f":"Dateneingabe!A8","v":0},{"$f":"Dateneingabe!B8","v":0},"Januar","Februar","März","April","Mai","Juni","Juli","August","September","Oktober","November","Dezember","gesamt",{"$f":"SUM(P15:P23)","v":0},{"$f":"IF(B14=0,$Q$1,B14)","v":0}]
[null,{"$f":"$B$5","v":"Arbeitsstunden"},{"$f":"Q15","v":0},{"$f":"Tabelle2!AG4","v":0},{"$f":"Tabelle2!AG15","v":0},{"$f":"Tabelle2!AG26","v":0},{"$f":"Tabelle2!AG37","v":0},{"$f":"Tabelle2!AG48","v":0},{"$f":"Tabelle2!AG59","v":0},{"$f":"Tabelle2!AG70","v":0},{"$f":"Tabelle2!AG81","v":0},{"$f":"Tabelle2!AG92","v":0},{"$f":"Tabelle2!AG103","v":0},{"$f":"Tabelle2!AG114","v":0},{"$f":"Tabelle2!AG125","v":0},{"$f":"SUM(D15:O15)","v":0},{"$f":"IF(P15=0,$Q$1,P15/$Q$14)","v":0},{"$f":"$B$5","v":"Arbeitsstunden"}]
[null,{"$f":"$B$6","v":"Kurzarbeit"},0,{"$f":"Tabelle2!AG5","v":0},{"$f":"Tabelle2!AG16","v":0},{"$f":"Tabelle2!AG27","v":0},{"$f":"Tabelle2!AG38","v":0},{"$f":"Tabelle2!AG49","v":0},{"$f":"Tabelle2!AG60","v":0},{"$f":"Tabelle2!AG71","v":0},{"$f":"Tabelle2!AG82","v":0},{"$f":"Tabelle2!AG93","v":0},{"$f":"Tabelle2!AG104","v":0},{"$f":"Tabelle2!AG115","v":0},{"$f":"Tabelle2!AG126","v":0},0,{"$f":"IF(P16=0,$Q$1,P16/$Q$14)","v":0},{"$f":"$B$6","v":"Kurzarbeit"}]
[null,{"$f":"$B$7","v":"bez. Freistellung"},0,{"$f":"Tabelle2!AG6","v":0},{"$f":"Tabelle2!AG17","v":0},{"$f":"Tabelle2!AG28","v":0},{"$f":"Tabelle2!AG39","v":0},{"$f":"Tabelle2!AG50","v":0},{"$f":"Tabelle2!AG61","v":0},{"$f":"Tabelle2!AG72","v":0},{"$f":"Tabelle2!AG83","v":0},{"$f":"Tabelle2!AG94","v":0},{"$f":"Tabelle2!AG105","v":0},{"$f":"Tabelle2!AG116","v":0},{"$f":"Tabelle2!AG127","v":0},0,0,{"$f":"$B$7","v":"bez. Freistellung"}]
[null,{"$f":"$B$8","v":"Urlaub"},0,{"$f":"Tabelle2!AG7","v":0},{"$f":"Tabelle2!AG18","v":0},{"$f":"Tabelle2!AG29","v":0},{"$f":"Tabelle2!AG40","v":0},{"$f":"Tabelle2!AG51","v":0},{"$f":"Tabelle2!AG62","v":0},{"$f":"Tabelle2!AG73","v":0},{"$f":"Tabelle2!AG84","v":0},{"$f":"Tabelle2!AG95","v":0},{"$f":"Tabelle2!AG106","v":0},{"$f":"Tabelle2!AG117","v":0},{"$f":"Tabelle2!AG128","v":0},0,0,{"$f":"$B$8","v":"Urlaub"}]
[null,{"$f":"$B$9","v":"Krank mit Lfz"},0,{"$f":"Tabelle2!AG8","v":0},{"$f":"Tabelle2!AG19","v":0},{"$f":"Tabelle2!AG30","v":0},{"$f":"Tabelle2!AG41","v":0},{"$f":"Tabelle2!AG52","v":0},{"$f":"Tabelle2!AG63","v":0},{"$f":"Tabelle2!AG74","v":0},{"$f":"Tabelle2!AG85","v":0},{"$f":"Tabelle2!AG96","v":0},{"$f":"Tabelle2!AG107","v":0},{"$f":"Tabelle2!AG118","v":0},{"$f":"Tabelle2!AG129","v":0},0,0,{"$f":"$B$9","v":"Krank mit Lfz"}]
[null,{"$f":"$B$10","v":"Krank ohne Lfz"},0,{"$f":"Tabelle2!AG9","v":0},{"$f":"Tabelle2!AG20","v":0},{"$f":"Tabelle2!AG31","v":0},{"$f":"Tabelle2!AG42","v":0},{"$f":"Tabelle2!AG53","v":0},{"$f":"Tabelle2!AG64","v":0},{"$f":"Tabelle2!AG75","v":0},{"$f":"Tabelle2!AG86","v":0},{"$f":"Tabelle2!AG97","v":0},{"$f":"Tabelle2!AG108","v":0},{"$f":"Tabelle2!AG119","v":0},{"$f":"Tabelle2!AG130","v":0},0,0,{"$f":"$B$10","v":"Krank ohne Lfz"}]
[null,{"$f":"$B$11","v":"unentsch.Fehlen"},0,{"$f":"Tabelle2!AG10","v":0},{"$f":"Tabelle2!AG21","v":0},{"$f":"Tabelle2!AG32","v":0},{"$f":"Tabelle2!AG43","v":0},{"$f":"Tabelle2!AG54","v":0},{"$f":"Tabelle2!AG65","v":0},{"$f":"Tabelle2!AG76","v":0},{"$f":"Tabelle2!AG87","v":0},{"$f":"Tabelle2!AG98","v":0},{"$f":"Tabelle2!AG109","v":0},{"$f":"Tabelle2!AG120","v":0},{"$f":"Tabelle2!AG131","v":0},0,0,{"$f":"$B$11","v":"unentsch.Fehlen"}]
[null,{"$f":"$B$12","v":"Weiterbildung"},0,{"$f":"Tabelle2!AG11","v":0},{"$f":"Tabelle2!AG22","v":0},{"$f":"Tabelle2!AG33","v":0},{"$f":"Tabelle2!AG44","v":0},{"$f":"Tabelle2!AG55","v":0},{"$f":"Tabelle2!AG66","v":0},{"$f":"Tabelle2!AG77","v":0},{"$f":"Tabelle2!AG88","v":0},{"$f":"Tabelle2!AG99","v":0},{"$f":"Tabelle2!AG110","v":0},{"$f":"Tabelle2!AG121","v":0},{"$f":"Tabelle2!AG132","v":0},0,0,{"$f":"$B$12","v":"Weiterbildung"}]
[null,{"$f":"$B$13","v":"Stundenkonto"},0,{"$f":"Tabelle2!AG12","v":0},{"$f":"Tabelle2!AG23","v":0},{"$f":"Tabelle2!AG34","v":0},{"$f":"Tabelle2!AG45","v":0},{"$f":"Tabelle2!AG56","v":0},{"$f":"Tabelle2!AG67","v":0},{"$f":"Tabelle2!AG78","v":0},{"$f":"Tabelle2!AG89","v":0},{"$f":"Tabelle2!AG100","v":0},{"$f":"Tabelle2!AG111","v":0},{"$f":"Tabelle2!AG122","v":0},{"$f":"Tabelle2!AG133","v":0},0,0,{"$f":"$B$13","v":"Stundenkonto"}]
[3,{"$f":"Dateneingabe!A9","v":0},{"$f":"Dateneingabe!B9","v":0},"Januar","Februar","März","April","Mai","Juni","Juli","August","September","Oktober","November","Dezember","gesamt",{"$f":"SUM(P25:P33)","v":0},{"$f":"IF(B24=0,$Q$1,B24)","v":0}]
[null,{"$f":"$B$5","v":"Arbeitsstunden"},{"$f":"Q25","v":0},{"$f":"Tabelle3!AG4","v":0},{"$f":"Tabelle3!AG15","v":0},{"$f":"Tabelle3!AG26","v":0},{"$f":"Tabelle3!AG37","v":0},{"$f":"Tabelle3!AG48","v":0},{"$f":"Tabelle3!AG59","v":0},{"$f":"Tabelle3!AG70","v":0},{"$f":"Tabelle3!AG81","v":0},{"$f":"Tabelle3!AG92","v":0},{"$f":"Tabelle3!AG103","v":0},{"$f":"Tabelle3!AG114","v":0},{"$f":"Tabelle3!AG125","v":0},{"$f":"SUM(D25:O25)","v":0},{"$f":"IF(P25=0,$Q$1,P25/$Q$24)","v":0},{"$f":"$B$5","v":"Arbeitsstunden"}]
[null,{"$f":"$B$6","v":"Kurzarbeit"},0,{"$f":"Tabelle3!AG5","v":0},{"$f":"Tabelle3!AG16","v":0},{"$f":"Tabelle3!AG27","v":0},{"$f":"Tabelle3!AG38","v":0},{"$f":"Tabelle3!AG49","v":0},{"$f":"Tabelle3!AG60","v":0},{"$f":"Tabelle3!AG71","v":0},{"$f":"Tabelle3!AG82","v":0},{"$f":"Tabelle3!AG93","v":0},{"$f":"Tabelle3!AG104","v":0},{"$f":"Tabelle3!AG115","v":0},{"$f":"Tabelle3!AG126","v":0},0,{"$f":"IF(P26=0,$Q$1,P26/$Q$24)","v":0},{"$f":"$B$6","v":"Kurzarbeit"}]
[null,{"$f":"$B$7","v":"bez. Freistellung"},0,{"$f":"Tabelle3!AG6","v":0},{"$f":"Tabelle3!AG17","v":0},{"$f":"Tabelle3!AG28","v":0},{"$f":"Tabelle3!AG39","v":0},{"$f":"Tabelle3!AG50","v":0},{"$f":"Tabelle3!AG61","v":0},{"$f":"Tabelle3!AG72","v":0},{"$f":"Tabelle3!AG83","v":0},{"$f":"Tabelle3!AG94","v":0},{"$f":"Tabelle3!AG105","v":0},{"$f":"Tabelle3!AG116","v":0},{"$f":"Tabelle3!AG127","v":0},0,0,{"$f":"$B$7","v":"bez. Freistellung"}]
[null,{"$f":"$B$8","v":"Urlaub"},0,{"$f":"Tabelle3!AG7","v":0},{"$f":"Tabelle3!AG18","v":0},{"$f":"Tabelle3!AG29","v":0},{"$f":"Tabelle3!AG40","v":0},{"$f":"Tabelle3!AG51","v":0},{"$f":"Tabelle3!AG62","v":0},{"$f":"Tabelle3!AG73","v":0},{"$f":"Tabelle3!AG84","v":0},{"$f":"Tabelle3!AG95","v":0},{"$f":"Tabelle3!AG106","v":0},{"$f":"Tabelle3!AG117","v":0},{"$f":"Tabelle3!AG128","v":0},0,0,{"$f":"$B$8","v":"Urlaub"}]
[null,{"$f":"$B$9","v":"Krank mit Lfz"},0,{"$f":"Tabelle3!AG8","v":0},{"$f":"Tabelle3!AG19","v":0},{"$f":"Tabelle3!AG30","v":0},{"$f":"Tabelle3!AG41","v":0},{"$f":"Tabelle3!AG52","v":0},{"$f":"Tabelle3!AG63","v":0},{"$f":"Tabelle3!AG74","v":0},{"$f":"Tabelle3!AG85","v":0},{"$f":"Tabelle3!AG96","v":0},{"$f":"Tabelle3!AG107","v":0},{"$f":"Tabelle3!AG118","v":0},{"$f":"Tabelle3!AG129","v":0},0,0,{"$f":"$B$9","v":"Krank mit Lfz"}]
[null,{"$f":"$B$10","v":"Krank ohne Lfz"},0,{"$f":"Tabelle3!AG9","v":0},{"$f":"Tabelle3!AG20","v":0},{"$f":"Tabelle3!AG31","v":0},{"$f":"Tabelle3!AG42","v":0},{"$f":"Tabelle3!AG53","v":0},{"$f":"Tabelle3!AG64","v":0},{"$f":"Tabelle3!AG75","v":0},{"$f":"Tabelle3!AG86","v":0},{"$f":"Tabelle3!AG97","v":0},{"$f":"Tabelle3!AG108","v":0},{"$f":"Tabelle3!AG119","v":0},{"$f":"Tabelle3!AG130","v":0},0,0,{"$f":"$B$10","v":"Krank ohne Lfz"}]
[null,{"$f":"$B$11","v":"unentsch.Fehlen"},0,{"$f":"Tabelle3!AG10","v":0},{"$f":"Tabelle3!AG21","v":0},{"$f":"Tabelle3!AG32","v":0},{"$f":"Tabelle3!AG43","v":0},{"$f":"Tabelle3!AG54","v":0},{"$f":"Tabelle3!AG65","v":0},{"$f":"Tabelle3!AG76","v":0},{"$f":"Tabelle3!AG87","v":0},{"$f":"Tabelle3!AG98","v":0},{"$f":"Tabelle3!AG109","v":0},{"$f":"Tabelle3!AG120","v":0},{"$f":"Tabelle3!AG131","v":0},0,0,{"$f":"$B$11","v":"unentsch.Fehlen"}]
[null,{"$f":"$B$12","v":"Weiterbildung"},0,{"$f":"Tabelle3!AG11","v":0},{"$f":"Tabelle3!AG22","v":0},{"$f":"Tabelle3!AG33","v":0},{"$f":"Tabelle3!AG44","v":0},{"$f":"Tabelle3!AG55","v":0},{"$f":"Tabelle3!AG66","v":0},{"$f":"Tabelle3!AG77","v":0},{"$f":"Tabelle3!AG88","v":0},{"$f":"Tabelle3!AG99","v":0},{"$f":"Tabelle3!AG110","v":0},{"$f":"Tabelle3!AG121","v":0},{"$f":"Tabelle3!AG132","v":0},0,0,{"$f":"$B$12","v":"Weiterbildung"}]
[null,{"$f":"$B$13","v":"Stundenkonto"},0,{"$f":"Tabelle3!AG12","v":0},{"$f":"Tabelle3!AG23","v":0},{"$f":"Tabelle3!AG34","v":0},{"$f":"Tabelle3!AG45","v":0},{"$f":"Tabelle3!AG56","v":0},{"$f":"Tabelle3!AG67","v":0},{"$f":"Tabelle3!AG78","v":0},{"$f":"Tabelle3!AG89","v":0},{"$f":"Tabelle3!AG100","v":0},{"$f":"Tabelle3!AG111","v":0},{"$f":"Tabelle3!AG122","v":0},{"$f":"Tabelle3!AG133","v":0},0,0,{"$f":"$B$13","v":"Stundenkonto"}]
[4,{"$f":"Dateneingabe!A10","v":0}]
[null,{"$f":"$B$5","v":"Arbeitsstunden"}]
[null,{"$f":"$B$6","v":"Kurzarbeit"}]
[null,{"$f":"$B$7","v":"bez. Freistellung"}]
[null,{"$f":"$B$8","v":"Urlaub"}]
[null,{"$f":"$B$9","v":"Krank mit Lfz"}]
[null,{"$f":"$B$10","v":"Krank ohne Lfz"}]
[null,{"$f":"$B$11","v":"unentsch.Fehlen"}]
[null,{"$f":"$B$12","v":"Weiterbildung"}]
[null,{"$f":"$B$13","v":"Stundenkonto"}]
[5,{"$f":"Dateneingabe!A11","v":0}]
[null,{"$f":"$B$5","v":"Arbeitsstunden"}]
[null,{"$f":"$B$6","v":"Kurzarbeit"}]
[null,{"$f":"$B$7","v":"bez. Freistellung"}]
[null,{"$f":"$B$8","v":"Urlaub"}]
[null,{"$f":"$B$9","v":"Krank mit Lfz"}]
[null,{"$f":"$B$10","v":"Krank ohne Lfz"}]
[null,{"$f":"$B$11","v":"unentsch.Fehlen"}]
[null,{"$f":"$B$12","v":"Weiterbildung"}]
[null,{"$f":"$B$13","v":"Stundenkonto"}]
[6,{"$f":"Dateneingabe!A12","v":0}]
[null,{"$f":"$B$5","v":"Arbeitsstunden"}]
[null,{"$f":"$B$6","v":"Kurzarbeit"}]
[null,{"$f":"$B$7","v":"bez. Freistellung"}]
[null,{"$f":"$B$8","v":"Urlaub"}]
[null,{"$f":"$B$9","v":"Krank mit Lfz"}]
[null,{"$f":"$B$10","v":"Krank ohne Lfz"}]
[null,{"$f":"$B$11","v":"unentsch.Fehlen"}]
[null,{"$f":"$B$12","v":"Weiterbildung"}]
[null,{"$f":"$B$13","v":"Stundenkonto"}]
[7,{"$f":"Dateneingabe!A13","v":0}]
[null,{"$f":"$B$5","v":"Arbeitsstunden"}]
[null,{"$f":"$B$6","v":"Kurzarbeit"}]
[null,{"$f":"$B$7","v":"bez. Freistellung"}]
[null,{"$f":"$B$8","v":"Urlaub"}]
[null,{"$f":"$B$9","v":"Krank mit Lfz"}]
[null,{"$f":"$B$10","v":"Krank ohne Lfz"}]
[null,{"$f":"$B$11","v":"unentsch.Fehlen"}]
[null,{"$f":"$B$12","v":"Weiterbildung"}]
[null,{"$f":"$B$13","v":"Stundenkonto"}]
[8,{"$f":"Dateneingabe!A14","v":0}]
[null,{"$f":"$B$5","v":"Arbeitsstunden"}]
[null,{"$f":"$B$6","v":"Kurzarbeit"}]
[null,{"$f":"$B$7","v":"bez. Freistellung"}]
[null,{"$f":"$B$8","v":"Urlaub"}]
[null,{"$f":"$B$9","v":"Krank mit Lfz"}]
[null,{"$f":"$B$10","v":"Krank ohne Lfz"}]
[null,{"$f":"$B$11","v":"unentsch.Fehlen"}]
[null,{"$f":"$B$12","v":"Weiterbildung"}]
[null,{"$f":"$B$13","v":"Stundenkonto"}]
[9,{"$f":"Dateneingabe!A15","v":0}]
[null,{"$f":"$B$5","v":"Arbeitsstunden"}]
[null,{"$f":"$B$6","v":"Kurzarbeit"}]
[null,{"$f":"$B$7","v":"bez. Freistellung"}]
[null,{"$f":"$B$8","v":"Urlaub"}]
[null,{"$f":"$B$9","v":"Krank mit Lfz"}]
[null,{"$f":"$B$10","v":"Krank ohne Lfz"}]
[null,{"$f":"$B$11","v":"unentsch.Fehlen"}]
[null,{"$f":"$B$12","v":"Weiterbildung"}]
[null,{"$f":"$B$13","v":"Stundenkonto"}]
[10,{"$f":"Dateneingabe!A16","v":0}]
[null,{"$f":"$B$5","v":"Arbeitsstunden"}]
[null,{"$f":"$B$6","v":"Kurzarbeit"}]
[null,{"$f":"$B$7","v":"bez. Freistellung"}]
[null,{"$f":"$B$8","v":"Urlaub"}]
[null,{"$f":"$B$9","v":"Krank mit Lfz"}]
[null,{"$f":"$B$10","v":"Krank ohne Lfz"}]
[null,{"$f":"$B$11","v":"unentsch.Fehlen"}]
[null,{"$f":"$B$12","v":"Weiterbildung"}]
[null,{"$f":"$B$13","v":"Stundenkonto"}]
[11,{"$f":"Dateneingabe!A17","v":0}]
[null,{"$f":"$B$5","v":"Arbeitsstunden"}]
[null,{"$f":"$B$6","v":"Kurzarbeit"}]
[null,{"$f":"$B$7","v":"bez. Freistellung"}]
[null,{"$f":"$B$8","v":"Urlaub"}]
[null,{"$f":"$B$9","v":"Krank mit Lfz"}]
[null,{"$f":"$B$10","v":"Krank ohne Lfz"}]
[null,{"$f":"$B$11","v":"unentsch.Fehlen"}]
[null,{"$f":"$B$12","v":"Weiterbildung"}]
[null,{"$f":"$B$13","v":"Stundenkonto"}]
[12,{"$f":"Dateneingabe!A18","v":0}]
[null,{"$f":"$B$5","v":"Arbeitsstunden"}]
[null,{"$f":"$B$6","v":"Kurzarbeit"}]
[null,{"$f":"$B$7","v":"bez. Freistellung"}]
[null,{"$f":"$B$8","v":"Urlaub"}]
[null,{"$f":"$B$9","v":"Krank mit Lfz"}]
[null,{"$f":"$B$10","v":"Krank ohne Lfz"}]
[null,{"$f":"$B$11","v":"unentsch.Fehlen"}]
[null,{"$f":"$B$12","v":"Weiterbildung"}]
[null,{"$f":"$B$13","v":"Stundenkonto"}]
[13,{"$f":"Dateneingabe!A19","v":0}]
[null,{"$f":"$B$5","v":"Arbeitsstunden"}]
[null,{"$f":"$B$6","v":"Kurzarbeit"}]
[null,{"$f":"$B$7","v":"bez. Freistellung"}]
[null,{"$f":"$B$8","v":"Urlaub"}]
[null,{"$f":"$B$9","v":"Krank mit Lfz"}]
[null,{"$f":"$B$10","v":"Krank ohne Lfz"}]
[null,{"$f":"$B$11","v":"unentsch.Fehlen"}]
[null,{"$f":"$B$12","v":"Weiterbildung"}]
[null,{"$f":"$B$13","v":"Stundenkonto"}]
[14,{"$f":"Dateneingabe!A20","v":0}]
[null,{"$f":"$B$5","v":"Arbeitsstunden"}]
[null,{"$f":"$B$6","v":"Kurzarbeit"}]
[null,{"$f":"$B$7","v":"bez. Freistellung"}]
[null,{"$f":"$B$8","v":"Urlaub"}]
[null,{"$f":"$B$9","v":"Krank mit Lfz"}]
[null,{"$f":"$B$10","v":"Krank ohne Lfz"}]
[null,{"$f":"$B$11","v":"unentsch.Fehlen"}]
[null,{"$f":"$B$12","v":"Weiterbildung"}]
[null,{"$f":"$B$13","v":"Stundenkonto"}]
[15,{"$f":"Dateneingabe!A21","v":0}]
[null,{"$f":"$B$5","v":"Arbeitsstunden"}]
[null,{"$f":"$B$6","v":"Kurzarbeit"}]
[null,{"$f":"$B$7","v":"bez. Freistellung"}]
[null,{"$f":"$B$8","v":"Urlaub"}]
[null,{"$f":"$B$9","v":"Krank mit Lfz"}]
[null,{"$f":"$B$10","v":"Krank ohne Lfz"}]
[null,{"$f":"$B$11","v":"unentsch.Fehlen"}]
[null,{"$f":"$B$12","v":"Weiterbildung"}]
[null,{"$f":"$B$13","v":"Stundenkonto"}]
[16,{"$f":"Dateneingabe!A22","v":0}]
[null,{"$f":"$B$5","v":"Arbeitsstunden"}]
[null,{"$f":"$B$6","v":"Kurzarbeit"}]
[null,{"$f":"$B$7","v":"bez. Freistellung"}]
[null,{"$f":"$B$8","v":"Urlaub"}]
[null,{"$f":"$B$9","v":"Krank mit Lfz"}]
[null,{"$f":"$B$10","v":"Krank ohne Lfz"}]
[null,{"$f":"$B$11","v":"unentsch.Fehlen"}]
[null,{"$f":"$B$12","v":"Weiterbildung"}]
[null,{"$f":"$B$13","v":"Stundenkonto"}]
[17,{"$f":"Dateneingabe!A23","v":0}]
[null,{"$f":"$B$5","v":"Arbeitsstunden"}]
[null,{"$f":"$B$6","v":"Kurzarbeit"}]
[null,{"$f":"$B$7","v":"bez. Freistellung"}]
[null,{"$f":"$B$8","v":"Urlaub"}]
[null,{"$f":"$B$9","v":"Krank mit Lfz"}]
[null,{"$f":"$B$10","v":"Krank ohne Lfz"}]
[null,{"$f":"$B$11","v":"unentsch.Fehlen"}]
[null,{"$f":"$B$12","v":"Weiterbildung"}]
[null,{"$f":"$B$13","v":"Stundenkonto"}]
[18,{"$f":"Dateneingabe!A24","v":0}]
[null,{"$f":"$B$5","v":"Arbeitsstunden"}]
[null,{"$f":"$B$6","v":"Kurzarbeit"}]
[null,{"$f":"$B$7","v":"bez. Freistellung"}]
[null,{"$f":"$B$8","v":"Urlaub"}]
[null,{"$f":"$B$9","v":"Krank mit Lfz"}]
[null,{"$f":"$B$10","v":"Krank ohne Lfz"}]
[null,{"$f":"$B$11","v":"unentsch.Fehlen"}]
[null,{"$f":"$B$12","v":"Weiterbildung"}]
[null,{"$f":"$B$13","v":"Stundenkonto"}]
[19,{"$f":"Dateneingabe!A25","v":0}]
[null,{"$f":"$B$5","v":"Arbeitsstunden"}]
[null,{"$f":"$B$6","v":"Kurzarbeit"}]
[null,{"$f":"$B$7","v":"bez. Freistellung"}]
[null,{"$f":"$B$8","v":"Urlaub"}]
[null,{"$f":"$B$9","v":"Krank mit Lfz"}]
[null,{"$f":"$B$10","v":"Krank ohne Lfz"}]
[null,{"$f":"$B$11","v":"unentsch.Fehlen"}]
[null,{"$f":"$B$12","v":"Weiterbildung"}]
[null,{"$f":"$B$13","v":"Stundenkonto"}]
[20,{"$f":"Dateneingabe!A26","v":0}]
[null,{"$f":"$B$5","v":"Arbeitsstunden"}]
[null,{"$f":"$B$6","v":"Kurzarbeit"}]
[null,{"$f":"$B$7","v":"bez. Freistellung"}]
[null,{"$f":"$B$8","v":"Urlaub"}]
[null,{"$f":"$B$9","v":"Krank mit Lfz"}]
[null,{"$f":"$B$10","v":"Krank ohne Lfz"}]
[null,{"$f":"$B$11","v":"unentsch.Fehlen"}]
[null,{"$f":"$B$12","v":"Weiterbildung"}]
[null,{"$f":"$B$13","v":"Stundenkonto"}]
[21,{"$f":"Dateneingabe!A27","v":0}]
[null,{"$f":"$B$5","v":"Arbeitsstunden"}]
[null,{"$f":"$B$6","v":"Kurzarbeit"}]
[null,{"$f":"$B$7","v":"bez. Freistellung"}]
[null,{"$f":"$B$8","v":"Urlaub"}]
[null,{"$f":"$B$9","v":"Krank mit Lfz"}]
[null,{"$f":"$B$10","v":"Krank ohne Lfz"}]
[null,{"$f":"$B$11","v":"unentsch.Fehlen"}]
[null,{"$f":"$B$12","v":"Weiterbildung"}]
[null,{"$f":"$B$13","v":"Stundenkonto"}]
[22,{"$f":"Dateneingabe!A28","v":0}]
[null,{"$f":"$B$5","v":"Arbeitsstunden"}]
[null,{"$f":"$B$6","v":"Kurzarbeit"}]
[null,{"$f":"$B$7","v":"bez. Freistellung"}]
[null,{"$f":"$B$8","v":"Urlaub"}]
[null,{"$f":"$B$9","v":"Krank mit Lfz"}]
[null,{"$f":"$B$10","v":"Krank ohne Lfz"}]
[null,{"$f":"$B$11","v":"unentsch.Fehlen"}]
[null,{"$f":"$B$12","v":"Weiterbildung"}]
[null,{"$f":"$B$13","v":"Stundenkonto"}]
[23,{"$f":"Dateneingabe!A29","v":0}]
[null,{"$f":"$B$5","v":"Arbeitsstunden"}]
[null,{"$f":"$B$6","v":"Kurzarbeit"}]
[null,{"$f":"$B$7","v":"bez. Freistellung"}]
[null,{"$f":"$B$8","v":"Urlaub"}]
[null,{"$f":"$B$9","v":"Krank mit Lfz"}]
[null,{"$f":"$B$10","v":"Krank ohne Lfz"}]
[null,{"$f":"$B$11","v":"unentsch.Fehlen"}]
[null,{"$f":"$B$12","v":"Weiterbildung"}]
[null,{"$f":"$B$13","v":"Stundenkonto"}]
[24,{"$f":"Dateneingabe!A30","v":0}]
[null,{"$f":"$B$5","v":"Arbeitsstunden"}]
[null,{"$f":"$B$6","v":"Kurzarbeit"}]
[null,{"$f":"$B$7","v":"bez. Freistellung"}]
[null,{"$f":"$B$8","v":"Urlaub"}]
[null,{"$f":"$B$9","v":"Krank mit Lfz"}]
[null,{"$f":"$B$10","v":"Krank ohne Lfz"}]
[null,{"$f":"$B$11","v":"unentsch.Fehlen"}]
[null,{"$f":"$B$12","v":"Weiterbildung"}]
[null,{"$f":"$B$13","v":"Stundenkonto"}]
[25,{"$f":"Dateneingabe!A31","v":0}]
[null,{"$f":"$B$5","v":"Arbeitsstunden"}]
[null,{"$f":"$B$6","v":"Kurzarbeit"}]
[null,{"$f":"$B$7","v":"bez. Freistellung"}]
[null,{"$f":"$B$8","v":"Urlaub"}]
[null,{"$f":"$B$9","v":"Krank mit Lfz"}]
[null,{"$f":"$B$10","v":"Krank ohne Lfz"}]
[null,{"$f":"$B$11","v":"unentsch.Fehlen"}]
[null,{"$f":"$B$12","v":"Weiterbildung"}]
[null,{"$f":"$B$13","v":"Stundenkonto"}]
[26,{"$f":"Dateneingabe!A32","v":0}]
[null,{"$f":"$B$5","v":"Arbeitsstunden"}]
[null,{"$f":"$B$6","v":"Kurzarbeit"}]
[null,{"$f":"$B$7","v":"bez. Freistellung"}]
[null,{"$f":"$B$8","v":"Urlaub"}]
[null,{"$f":"$B$9","v":"Krank mit Lfz"}]
[null,{"$f":"$B$10","v":"Krank ohne Lfz"}]
[null,{"$f":"$B$11","v":"unentsch.Fehlen"}]
[null,{"$f":"$B$12","v":"Weiterbildung"}]
[null,{"$f":"$B$13","v":"Stundenkonto"}]
[27,{"$f":"Dateneingabe!A33","v":0}]
[null,{"$f":"$B$5","v":"Arbeitsstunden"}]
[null,{"$f":"$B$6","v":"Kurzarbeit"}]
[null,{"$f":"$B$7","v":"bez. Freistellung"}]
[null,{"$f":"$B$8","v":"Urlaub"}]
[null,{"$f":"$B$9","v":"Krank mit Lfz"}]
[null,{"$f":"$B$10","v":"Krank ohne Lfz"}]
[null,{"$f":"$B$11","v":"unentsch.Fehlen"}]
[null,{"$f":"$B$12","v":"Weiterbildung"}]
[null,{"$f":"$B$13","v":"Stundenkonto"}]
[28,{"$f":"Dateneingabe!A34","v":0}]
[null,{"$f":"$B$5","v":"Arbeitsstunden"}]
[null,{"$f":"$B$6","v":"Kurzarbeit"}]
[null,{"$f":"$B$7","v":"bez. Freistellung"}]
[null,{"$f":"$B$8","v":"Urlaub"}]
[null,{"$f":"$B$9","v":"Krank mit Lfz"}]
[null,{"$f":"$B$10","v":"Krank ohne Lfz"}]
[null,{"$f":"$B$11","v":"unentsch.Fehlen"}]
[null,{"$f":"$B$12","v":"Weiterbildung"}]
[null,{"$f":"$B$13","v":"Stundenkonto"}]
[29,{"$f":"Dateneingabe!A35","v":0}]
[null,{"$f":"$B$5","v":"Arbeitsstunden"}]
[null,{"$f":"$B$6","v":"Kurzarbeit"}]
[null,{"$f":"$B$7","v":"bez. Freistellung"}]
[null,{"$f":"$B$8","v":"Urlaub"}]
[null,{"$f":"$B$9","v":"Krank mit Lfz"}]
[null,{"$f":"$B$10","v":"Krank ohne Lfz"}]
[null,{"$f":"$B$11","v":"unentsch.Fehlen"}]
[null,{"$f":"$B$12","v":"Weiterbildung"}]
[null,{"$f":"$B$13","v":"Stundenkonto"}]
[30,{"$f":"Dateneingabe!A36","v":0}]
[null,{"$f":"$B$5","v":"Arbeitsstunden"}]
[null,{"$f":"$B$6","v":"Kurzarbeit"}]
[null,{"$f":"$B$7","v":"bez. Freistellung"}]
[null,{"$f":"$B$8","v":"Urlaub"}]
[null,{"$f":"$B$9","v":"Krank mit Lfz"}]
[null,{"$f":"$B$10","v":"Krank ohne Lfz"}]
[null,{"$f":"$B$11","v":"unentsch.Fehlen"}]
[null,{"$f":"$B$12","v":"Weiterbildung"}]
[null,{"$f":"$B$13","v":"Stundenkonto"}]
[31,{"$f":"Dateneingabe!A37","v":0}]
[null,{"$f":"$B$5","v":"Arbeitsstunden"}]
[null,{"$f":"$B$6","v":"Kurzarbeit"}]
[null,{"$f":"$B$7","v":"bez. Freistellung"}]
[null,{"$f":"$B$8","v":"Urlaub"}]
[null,{"$f":"$B$9","v":"Krank mit Lfz"}]
[null,{"$f":"$B$10","v":"Krank ohne Lfz"}]
[null,{"$f":"$B$11","v":"unentsch.Fehlen"}]
[null,{"$f":"$B$12","v":"Weiterbildung"}]
[null,{"$f":"$B$13","v":"Stundenkonto"}]
[32,{"$f":"Dateneingabe!A38","v":0}]
[null,{"$f":"$B$5","v":"Arbeitsstunden"}]
[null,{"$f":"$B$6","v":"Kurzarbeit"}]
[null,{"$f":"$B$7","v":"bez. Freistellung"}]
[null,{"$f":"$B$8","v":"Urlaub"}]
[null,{"$f":"$B$9","v":"Krank mit Lfz"}]
[null,{"$f":"$B$10","v":"Krank ohne Lfz"}]
[null,{"$f":"$B$11","v":"unentsch.Fehlen"}]
[null,{"$f":"$B$12","v":"Weiterbildung"}]
[null,{"$f":"$B$13","v":"Stundenkonto"}]
[33,{"$f":"Dateneingabe!A39","v":0}]
[null,{"$f":"$B$5","v":"Arbeitsstunden"}]
[null,{"$f":"$B$6","v":"Kurzarbeit"}]
[null,{"$f":"$B$7","v":"bez. Freistellung"}]
[null,{"$f":"$B$8","v":"Urlaub"}]
[null,{"$f":"$B$9","v":"Krank mit Lfz"}]
[null,{"$f":"$B$10","v":"Krank ohne Lfz"}]
[null,{"$f":"$B$11","v":"unentsch.Fehlen"}]
[null,{"$f":"$B$12","v":"Weiterbildung"}]
[null,{"$f":"$B$13","v":"Stundenkonto"}]
[34,{"$f":"Dateneingabe!A40","v":0}]
[null,{"$f":"$B$5","v":"Arbeitsstunden"}]
[null,{"$f":"$B$6","v":"Kurzarbeit"}]
[null,{"$f":"$B$7","v":"bez. Freistellung"}]
[null,{"$f":"$B$8","v":"Urlaub"}]
[null,{"$f":"$B$9","v":"Krank mit Lfz"}]
[null,{"$f":"$B$10","v":"Krank ohne Lfz"}]
[null,{"$f":"$B$11","v":"unentsch.Fehlen"}]
[null,{"$f":"$B$12","v":"Weiterbildung"}]
[null,{"$f":"$B$13","v":"Stundenkonto"}]
[35,{"$f":"Dateneingabe!A41","v":0}]
[null,{"$f":"$B$5","v":"Arbeitsstunden"}]
[null,{"$f":"$B$6","v":"Kurzarbeit"}]
[null,{"$f":"$B$7","v":"bez. Freistellung"}]
[null,{"$f":"$B$8","v":"Urlaub"}]
[null,{"$f":"$B$9","v":"Krank mit Lfz"}]
[null,{"$f":"$B$10","v":"Krank ohne Lfz"}]
[null,{"$f":"$B$11","v":"unentsch.Fehlen"}]
[null,{"$f":"$B$12","v":"Weiterbildung"}]
[null,{"$f":"$B$13","v":"Stundenkonto"}]
[36,{"$f":"Dateneingabe!A42","v":0}]
[null,{"$f":"$B$5","v":"Arbeitsstunden"}]
[null,{"$f":"$B$6","v":"Kurzarbeit"}]
[null,{"$f":"$B$7","v":"bez. Freistellung"}]
[null,{"$f":"$B$8","v":"Urlaub"}]
[null,{"$f":"$B$9","v":"Krank mit Lfz"}]
[null,{"$f":"$B$10","v":"Krank ohne Lfz"}]
[null,{"$f":"$B$11","v":"unentsch.Fehlen"}]
[null,{"$f":"$B$12","v":"Weiterbildung"}]
[null,{"$f":"$B$13","v":"Stundenkonto"}]
[37,{"$f":"Dateneingabe!A43","v":0}]
[null,{"$f":"$B$5","v":"Arbeitsstunden"}]
[null,{"$f":"$B$6","v":"Kurzarbeit"}]
[null,{"$f":"$B$7","v":"bez. Freistellung"}]
[null,{"$f":"$B$8","v":"Urlaub"}]
[null,{"$f":"$B$9","v":"Krank mit Lfz"}]
[null,{"$f":"$B$10","v":"Krank ohne Lfz"}]
[null,{"$f":"$B$11","v":"unentsch.Fehlen"}]
[null,{"$f":"$B$12","v":"Weiterbildung"}]
[null,{"$f":"$B$13","v":"Stundenkonto"}]
[38,{"$f":"Dateneingabe!A44","v":0}]
[null,{"$f":"$B$5","v":"Arbeitsstunden"}]
[null,{"$f":"$B$6","v":"Kurzarbeit"}]
[null,{"$f":"$B$7","v":"bez. Freistellung"}]
[null,{"$f":"$B$8","v":"Urlaub"}]
[null,{"$f":"$B$9","v":"Krank mit Lfz"}]
[null,{"$f":"$B$10","v":"Krank ohne Lfz"}]
[null,{"$f":"$B$11","v":"unentsch.Fehlen"}]
[null,{"$f":"$B$12","v":"Weiterbildung"}]
[null,{"$f":"$B$13","v":"Stundenkonto"}]
[39,{"$f":"Dateneingabe!A45","v":0}]
[null,{"$f":"$B$5","v":"Arbeitsstunden"}]
[null,{"$f":"$B$6","v":"Kurzarbeit"}]
[null,{"$f":"$B$7","v":"bez. Freistellung"}]
[null,{"$f":"$B$8","v":"Urlaub"}]
[null,{"$f":"$B$9","v":"Krank mit Lfz"}]
[null,{"$f":"$B$10","v":"Krank ohne Lfz"}]
[null,{"$f":"$B$11","v":"unentsch.Fehlen"}]
[null,{"$f":"$B$12","v":"Weiterbildung"}]
[null,{"$f":"$B$13","v":"Stundenkonto"}]
[40,{"$f":"Dateneingabe!A46","v":0}]
[null,{"$f":"$B$5","v":"Arbeitsstunden"}]
[null,{"$f":"$B$6","v":"Kurzarbeit"}]
[null,{"$f":"$B$7","v":"bez. Freistellung"}]
[null,{"$f":"$B$8","v":"Urlaub"}]
[null,{"$f":"$B$9","v":"Krank mit Lfz"}]
[null,{"$f":"$B$10","v":"Krank ohne Lfz"}]
[null,{"$f":"$B$11","v":"unentsch.Fehlen"}]
[null,{"$f":"$B$12","v":"Weiterbildung"}]
[null,{"$f":"$B$13","v":"Stundenkonto"}]
["41",{"$f":"Dateneingabe!A47","v":0}]
[null,{"$f":"$B$5","v":"Arbeitsstunden"}]
[null,{"$f":"$B$6","v":"Kurzarbeit"}]
[null,{"$f":"$B$7","v":"bez. Freistellung"}]
[null,{"$f":"$B$8","v":"Urlaub"}]
[null,{"$f":"$B$9","v":"Krank mit Lfz"}]
[null,{"$f":"$B$10","v":"Krank ohne Lfz"}]
[null,{"$f":"$B$11","v":"unentsch.Fehlen"}]
[null,{"$f":"$B$12","v":"Weiterbildung"}]
[null,{"$f":"$B$13","v":"Stundenkonto"}]
["42",{"$f":"Dateneingabe!A48","v":0}]
[null,{"$f":"$B$5","v":"Arbeitsstunden"}]
[null,{"$f":"$B$6","v":"Kurzarbeit"}]
[null,{"$f":"$B$7","v":"bez. Freistellung"}]
[null,{"$f":"$B$8","v":"Urlaub"}]
[null,{"$f":"$B$9","v":"Krank mit Lfz"}]
[null,{"$f":"$B$10","v":"Krank ohne Lfz"}]
[null,{"$f":"$B$11","v":"unentsch.Fehlen"}]
[null,{"$f":"$B$12","v":"Weiterbildung"}]
[null,{"$f":"$B$13","v":"Stundenkonto"}]
[null,null,null,null,null,null,null,null,null,null,null,null,null,null,null,{"$f":"SUM(P5:P423)","v":32}]
[null,"Statistik: Prozentualer Anteil zur Gesamtzeit "]
[null,{"$f":"$B$5","v":"Arbeitsstunden"},null,{"$f":"IF(P424=0,O424,(P5+P15+P25+P35+P45+P55+P65+P75+P85+P95+P105+P115+P125+P135+P145+P155+P165+P175+P185+P195+P205+P215+P225+P235+P245+P255+P265+P275+P285+P295+P305+P315+P325+P335+P345+P355+P365+P375+P385+P395+P405+P415)/$P$424)","v":0}]
[null,{"$f":"$B$6","v":"Kurzarbeit"},null,{"$f":"IF(P424=0,O424,(P6+P16+P26+P36+P46+P56+P66+P76+P86+P96+P106+P116+P126+P136+P146+P156+P166+P176+P186+P196+P206+P216+P226+P236+P246+P256+P266+P276+P286+P296+P306+P316+P326+P336+P346+P356+P366+P376+P386+P396+P406+P416)/$P$424)","v":0}]
[null,{"$f":"$B$7","v":"bez. Freistellung"},null,{"$f":"IF(P424=0,O424,(P7+P17+P27+P37+P47+P57+P67+P77+P87+P97+P107+P117+P127+P137+P147+P157+P167+P177+P187+P197+P207+P217+P227+P237+P247+P257+P267+P277+P287+P297+P307+P317+P327+P337+P347+P357+P367+P377+P387+P397+P407+P417)/$P$424)","v":0}]
[null,{"$f":"$B$8","v":"Urlaub"},null,{"$f":"IF(P424=0,O424,(P8+P18+P28+P38+P48+P58+P68+P78+P88+P98+P108+P118+P128+P138+P148+P158+P168+P178+P188+P198+P208+P218+P228+P238+P248+P258+P268+P278+P288+P298+P308+P318+P328+P338+P348+P358+P368+P378+P388+P398+P408+P418)/$P$424)","v":1}]
[null,{"$f":"$B$9","v":"Krank mit Lfz"},null,{"$f":"IF(P424=0,O424,(P9+P19+P29+P39+P49+P59+P69+P79+P89+P99+P109+P119+P129+P139+P149+P159+P169+P179+P189+P199+P209+P219+P229+P239+P249+P259+P269+P279+P289+P299+P309+P319+P329+P339+P349+P359+P369+P379+P389+P399+P409+P419)/$P$424)","v":0}]
[null,{"$f":"$B$10","v":"Krank ohne Lfz"},null,{"$f":"IF(P424=0,O424,(P10+P20+P30+P40+P50+P60+P70+P80+P90+P100+P110+P120+P130+P140+P150+P160+P170+P180+P190+P200+P210+P220+P230+P240+P250+P260+P270+P280+P290+P300+P310+P320+P330+P340+P350+P360+P370+P380+P390+P400+P410+P420)/$P$424)","v":0}]
[null,{"$f":"$B$11","v":"unentsch.Fehlen"},null,{"$f":"IF(P424=0,O424,(P11+P21+P31+P41+P51+P61+P71+P81+P91+P101+P111+P121+P131+P141+P151+P161+P171+P181+P191+P201+P211+P221+P231+P241+P251+P261+P271+P281+P291+P301+P311+P321+P331+P341+P351+P361+P371+P381+P391+P401+P411+P421)/$P$424)","v":0}]
[null,{"$f":"$B$12","v":"Weiterbildung"},null,{"$f":"IF(P424=0,O424,(P12+P22+P32+P42+P52+P62+P72+P82+P92+P102+P112+P122+P132+P142+P152+P162+P172+P182+P192+P202+P212+P222+P232+P242+P252+P262+P272+P282+P292+P302+P312+P322+P332+P342+P352+P362+P372+P382+P392+P402+P412+P422)/$P$424)","v":0}]
[null,{"$f":"$B$13","v":"Stundenkonto"},null,{"$f":"IF(P424=0,O424,(P13+P23+P33+P43+P53+P63+P73+P83+P93+P103+P113+P123+P133+P143+P153+P163+P173+P183+P193+P203+P213+P223+P233+P243+P253+P263+P273+P283+P293+P303+P313+P323+P333+P343+P353+P363+P373+P383+P393+P403+P413+P423)/$P$424)","v":0}]
[]
[null,"Autor: U. Daßler (letzte Änderung 28.11.2006)"]

{"sheet":"Tabelle1","index":3,"n_rows":155,"n_cols":33,"rows_kept":155,"cut":false,"hidden":false,"merged":[[138,0,138,6],[135,0,135,6],[134,0,134,31],[135,7,135,32],[136,7,136,32],[138,7,138,32],[137,0,137,6],[137,7,137,32],[0,29,0,32],[0,5,0,9],[0,15,0,23],[0,24,0,28],[136,0,136,6],[12,30,13,31],[0,10,0,13],[0,0,0,3],[139,0,139,6],[142,7,142,32],[143,7,143,32],[143,0,143,6],[140,0,140,6],[141,0,141,6],[140,7,140,32],[141,7,141,32],[139,7,139,32],[142,0,142,6],[150,0,150,3],[150,4,150,9],[151,0,151,3],[151,4,151,9],[145,0,145,9],[148,0,148,3],[148,4,148,9],[149,0,149,3],[149,4,149,9],[144,7,144,32],[146,0,146,3],[146,4,146,9],[147,0,147,3],[147,4,147,9],[154,0,154,3],[154,4,154,9],[155,0,155,3],[155,4,155,9],[152,0,152,3],[152,4,152,9],[153,0,153,3],[153,4,153,9]]}
["Abrechnungsjahr:",null,null,null,null,{"$f":"Start!B1","v":2012},null,null,null,null,"Name:",null,null,null,null,{"$f":"Start!B4","v":"Mustermann,Max"},null,null,null,null,null,null,null,null,{"$f":"Start!C4","v":"0815"},null,null,null,null,"zurück"]
["Monat","1.","2.","3.","4.","5.","6.","7.","8.","9.","10.","11.","12.","13.","14.","15.","16.","17.","18.","19.","20.","21.","22.","23.","24.","25.","26.","27.","28.","29.","30.","31.","Stunden"]
["Januar",{"$f":"Start!B2","v":"So"},{"$f":"Start!C1","v":"Mo"},{"$f":"Start!D1","v":"Di"},{"$f":"Start!E1","v":"Mi"},{"$f":"Start!C2","v":"Do"},{"$f":"Start!D2","v":"Fr"},{"$f":"Start!E2","v":"Sa"},{"$f":"B3","v":"So"},"Mo","Di","Mi","Do","Fr","Sa","So","Mo","Di","Mi","Do","Fr","Sa","So","Mo","Di","Mi","Do","Fr","Sa","So","Mo","Di","gesamt"]
[{"$f":"Start!$B$5","v":"Arbeitsstunden"},null,null,null,null,null,null,null,null,null,null,null,null,null,null,null,null,null,null,null,null,null,null,null,null,null,null,null,null,null,null,null,{"$f":"SUM(B4:AF4)","v":0}]
[{"$f":"Start!$B$6","v":"Kurzarbeit"},null,null,null,null,null,null,null,null,null,null,null,null,null,null,null,null,null,null,null,null,null,null,null,null,null,null,null,null,null,null,null,0]
[{"$f":"Start!$B$7","v":"bez. Freistellung"},null,null,null,null,null,null,null,null,null,null,null,null,null,null,null,null,null,null,null,null,null,null,null,null,null,null,null,null,null,null,null,0]
[{"$f":"Start!$B$8","v":"Urlaub"},8,null,8,8,8,null,null,null,null,null,null,null,null,null,null,null,null,null,null,null,null,null,null,null,null,null,null,null,null,null,null,32]
[{"$f":"Start!$B$9","v":"Krank mit Lfz"},null,null,null,null,null,null,null,null,null,null,null,null,null,null,null,null,null,null,null,null,null,null,null,null,null,null,null,null,null,null,null,0]
[{"$f":"Start!$B$10","v":"Krank ohne Lfz"},null,null,null,null,null,null,null,null,null,null,null,null,null,null,null,null,null,null,null,null,null,null,null,null,null,null,null,null,null,null,null,{"$f":"SUM(B9:AF9)","v":0}]
[{"$f":"Start!$B$11","v":"unentsch.Fehlen"},null,null,null,null,null,null,null,null,null,null,null,null,null,null,null,null,null,null,null,null,null,null,null,null,null,null,null,null,null,null,null,{"$f":"SUM(B10:AF10)","v":0}]
[{"$f":"Start!$B$12","v":"Weiterbildung"},null,null,null,null,null,null,null,null,null,null,null,null,null,null,null,null,null,null,null,null,null,null,null,null,null,null,null,null,null,null,null,0]
[{"$f":"Start!$B$13","v":"Stundenkonto"},null,null,null,null,null,null,null,null,null,null,null,null,null,null,null,null,null,null,null,null,null,null,null,null,null,null,null,null,null,null,null,0]
["Monat","1.","2.","3.","4.","5.","6.","7.","8.","9.","10.","11.","12.","13.","14.","15.","16.","17.","18.","19.","20.","21.","22.","23.","24.","25.","26.","27.","28.",{"$f":"IF(Start!$F$2=\"Ja\",\"29.\",0)","v":"29."},null,null,"Stunden"]
["Februar",{"$f":"Z3","v":"Mi"},"Do","Fr","Sa","So","Mo","Di",{"$f":"B14","v":"Mi"},"Do","Fr","Sa","So","Mo","Di","Mi","Do","Fr","Sa","So","Mo","Di","Mi","Do","Fr","Sa","So","Mo","Di",{"$f":"IF(AD13=0,0,W14)","v":"Mi"},null,null,"gesamt"]
[{"$f":"Start!$B$5","v":"Arbeitsstunden"},null,null,null,null,null,null,null,null,null,null,null,null,null,null,null,null,null,null,null,null,null,null,null,null,null,null,null,null,null,null,null,{"$f":"SUM(B15:AF15)","v":0}]
[{"$f":"Start!$B$6","v":"Kurzarbeit"},null,null,null,null,null,null,null,null,null,null,null,null,null,null,null,null,null,null,null,null,null,null,null,null,null,null,null,null,null,null,null,0]
[{"$f":"Start!$B$7","v":"bez. Freistellung"},null,null,null,null,null,null,null,null,null,null,null,null,null,null,null,null,null,null,null,null,null,null,null,null,null,null,null,null,null,null,null,0]
[{"$f":"Start!$B$8","v":"Urlaub"},null,null,null,null,null,null,null,null,null,null,null,null,null,null,null,null,null,null,null,null,null,null,null,null,null,null,null,null,null,null,null,0]
[{"$f":"Start!$B$9","v":"Krank mit Lfz"},null,null,null,null,null,null,null,null,null,null,null,null,null,null,null,null,null,null,null,null,null,null,null,null,null,null,null,null,null,null,null,0]
[{"$f":"Start!$B$10","v":"Krank ohne Lfz"},null,null,null,null,null,null,null,null,null,null,null,null,null,null,null,null,null,null,null,null,null,null,null,null,null,null,null,null,null,null,null,{"$f":"SUM(B20:AF20)","v":0}]
[{"$f":"Start!$B$11","v":"unentsch.Fehlen"},null,null,null,null,null,null,null,null,null,null,null,null,null,null,null,null,null,null,null,null,null,null,null,null,null,null,null,null,null,null,null,{"$f":"SUM(B21:AF21)","v":0}]
[{"$f":"Start!$B$12","v":"Weiterbildung"},null,null,null,null,null,null,null,null,null,null,null,null,null,null,null,null,null,null,null,null,null,null,null,null,null,null,null,null,null,null,null,0]
[{"$f":"Start!$B$13","v":"Stundenkonto"},null,null,null,null,null,null,null,null,null,null,null,null,null,null,null,null,null,null,null,null,null,null,null,null,null,null,null,null,null,null,null,0]
["Monat","1.","2.","3.","4.","5.","6.","7.","8.","9.","10.","11.","12.","13.","14.","15.","16.","17.","18.","19.","20.","21.","22.","23.","24.","25.","26.","27.","28.","29.","30.","31.","Stunden"]
["März",{"$f":"IF($AD$14=0,W14,X14)","v":"Do"},{"$f":"IF($AD$14=0,X14,Y14)","v":"Fr"},"Sa","So","Mo","Di","Mi",{"$f":"B25","v":"Do"},"Fr","Sa","So","Mo","Di","Mi","Do","Fr","Sa","So","Mo","Di","Mi","Do","Fr","Sa","So","Mo","Di","Mi","Do","Fr","Sa","gesamt"]
[{"$f":"Start!$B$5","v":"Arbeitsstunden"},null,null,null,null,null,null,null,null,null,null,null,null,null,null,null,null,null,null,null,null,null,null,null,null,null,null,null,null,null,null,null,{"$f":"SUM(B26:AF26)","v":0}]
[{"$f":"Start!$B$6","v":"Kurzarbeit"},null,null,null,null,null,null,null,null,null,null,null,null,null,null,null,null,null,null,null,null,null,null,null,null,null,null,null,null,null,null,null,0]
[{"$f":"Start!$B$7","v":"bez. Freistellung"},null,null,null,null,null,null,null,null,null,null,null,null,null,null,null,null,null,null,null,null,null,null,null,null,null,null,null,null,null,null,null,0]
[{"$f":"Start!$B$8","v":"Urlaub"},null,null,null,null,null,null,null,null,null,null,null,null,null,null,null,null,null,null,null,null,null,null,null,null,null,null,null,null,null,null,null,0]
[{"$f":"Start!$B$9","v":"Krank mit Lfz"},null,null,null,null,null,null,null,null,null,null,null,null,null,null,null,null,null,null,null,null,null,null,null,null,null,null,null,null,null,null,null,0]
[{"$f":"Start!$B$10","v":"Krank ohne Lfz"},null,null,null,null,null,null,null,null,null,null,null,null,null,null,null,null,null,null,null,null,null,null,null,null,null,null,null,null,null,null,null,{"$f":"SUM(B31:AF31)","v":0}]
[{"$f":"Start!$B$11","v":"unentsch.Fehlen"},null,null,null,null,null,null,null,null,null,null,null,null,null,null,null,null,null,null,null,null,null,null,null,null,null,null,null,null,null,null,null,{"$f":"SUM(B32:AF32)","v":0}]
[{"$f":"Start!$B$12","v":"Weiterbildung"},null,null,null,null,null,null,null,null,null,null,null,null,null,null,null,null,null,null,null,null,null,null,null,null,null,null,null,null,null,null,null,0]
[{"$f":"Start!$B$13","v":"Stundenkonto"},null,null,null,null,null,null,null,null,null,null,null,null,null,null,null,null,null,null,null,null,null,null,null,null,null,null,null,null,null,null,null,0]
["Monat","1.","2.","3.","4.","5.","6.","7.","8.","9.","10.","11.","12.","13.","14.","15.","16.","17.","18.","19.","20.","21.","22.","23.","24.","25.","26.","27.","28.","29.","30.",null,"Stunden"]
["April",{"$f":"Z25","v":"So"},"Mo","Di","Mi","Do","Fr","Sa",{"$f":"B36","v":"So"},"Mo","Di","Mi","Do","Fr","Sa","So","Mo","Di","Mi","Do","Fr","Sa","So","Mo","Di","Mi","Do","Fr","Sa","So","Mo",null,"gesamt"]
[{"$f":"Start!$B$5","v":"Arbeitsstunden"},null,null,null,null,null,null,null,null,null,null,null,null,null,null,null,null,null,null,null,null,null,null,null,null,null,null,null,null,null,null,null,{"$f":"SUM(B37:AF37)","v":0}]
[{"$f":"Start!$B$6","v":"Kurzarbeit"},null,null,null,null,null,null,null,null,null,null,null,null,null,null,null,null,null,null,null,null,null,null,null,null,null,null,null,null,null,null,null,0]
[{"$f":"Start!$B$7","v":"bez. Freistellung"},null,null,null,null,null,null,null,null,null,null,null,null,null,null,null,null,null,null,null,null,null,null,null,null,null,null,null,null,null,null,null,0]
[{"$f":"Start!$B$8","v":"Urlaub"},null,null,null,null,null,null,null,null,null,null,null,null,null,null,null,null,null,null,null,null,null,null,null,null,null,null,null,null,null,null,null,0]
[{"$f":"Start!$B$9","v":"Krank mit Lfz"},null,null,null,null,null,null,null,null,null,null,null,null,null,null,null,null,null,null,null,null,null,null,null,null,null,null,null,null,null,null,null,0]
[{"$f":"Start!$B$10","v":"Krank ohne Lfz"},null,null,null,null,null,null,null,null,null,null,null,null,null,null,null,null,null,null,null,null,null,null,null,null,null,null,null,null,null,null,null,{"$f":"SUM(B42:AF42)","v":0}]
[{"$f":"Start!$B$11","v":"unentsch.Fehlen"},null,null,null,null,null,null,null,null,null,null,null,null,null,null,null,null,null,null,null,null,null,null,null,null,null,null,null,null,null,null,null,{"$f":"SUM(B43:AF43)","v":0}]
[{"$f":"Start!$B$12","v":"Weiterbildung"},null,null,null,null,null,null,null,null,null,null,null,null,null,null,null,null,null,null,null,null,null,null,null,null,null,null,null,null,null,null,null,0]
[{"$f":"Start!$B$13","v":"Stundenkonto"},null,null,null,null,null,null,null,null,null,null,null,null,null,null,null,null,null,null,null,null,null,null,null,null,null,null,null,null,null,null,null,0]
["Monat","1.","2.","3.","4.","5.","6.","7.","8.","9.","10.","11.","12.","13.","14.","15.","16.","17.","18.","19.","20.","21.","22.","23.","24.","25.","26.","27.","28.","29.","30.","31.","Stunden"]
["Mai",{"$f":"Y36","v":"Di"},{"$f":"Z36","v":"Mi"},"Do","Fr","Sa","So","Mo",{"$f":"B47","v":"Di"},"Mi","Do","Fr","Sa","So","Mo","Di","Mi","Do","Fr","Sa","So","Mo","Di","Mi","Do","Fr","Sa","So","Mo","Di","Mi","Do","gesamt"]
[{"$f":"Start!$B$5","v":"Arbeitsstunden"},null,null,null,null,null,null,null,null,null,null,null,null,null,null,null,null,null,null,null,null,null,null,null,null,null,null,null,null,null,null,null,{"$f":"SUM(B48:AF48)","v":0}]
[{"$f":"Start!$B$6","v":"Kurzarbeit"},null,null,null,null,null,null,null,null,null,null,null,null,null,null,null,null,null,null,null,null,null,null,null,null,null,null,null,null,null,null,null,0]
[{"$f":"Start!$B$7","v":"bez. Freistellung"},null,null,null,null,null,null,null,null,null,null,null,null,null,null,null,null,null,null,null,null,null,null,null,null,null,null,null,null,null,null,null,0]
[{"$f":"Start!$B$8","v":"Urlaub"},null,null,null,null,null,null,null,null,null,null,null,null,null,null,null,null,null,null,null,null,null,null,null,null,null,null,null,null,null,null,null,0]
[{"$f":"Start!$B$9","v":"Krank mit Lfz"},null,null,null,null,null,null,null,null,null,null,null,null,null,null,null,null,null,null,null,null,null,null,null,null,null,null,null,null,null,null,null,0]
[{"$f":"Start!$B$10","v":"Krank ohne Lfz"},null,null,null,null,null,null,null,null,null,null,null,null,null,null,null,null,null,null,null,null,null,null,null,null,null,null,null,null,null,null,null,{"$f":"SUM(B53:AF53)","v":0}]
[{"$f":"Start!$B$11","v":"unentsch.Fehlen"},null,null,null,null,null,null,null,null,null,null,null,null,null,null,null,null,null,null,null,null,null,null,null,null,null,null,null,null,null,null,null,{"$f":"SUM(B54:AF54)","v":0}]
[{"$f":"Start!$B$12","v":"Weiterbildung"},null,null,null,null,null,null,null,null,null,null,null,null,null,null,null,null,null,null,null,null,null,null,null,null,null,null,null,null,null,null,null,0]
[{"$f":"Start!$B$13","v":"Stundenkonto"},null,null,null,null,null,null,null,null,null,null,null,null,null,null,null,null,null,null,null,null,null,null,null,null,null,null,null,null,null,null,null,0]
["Monat","1.","2.","3.","4.","5.","6.","7.","8.","9.","10.","11.","12.","13.","14.","15.","16.","17.","18.","19.","20.","21.","22.","23.","24.","25.","26.","27.","28.","29.","30.",null,"Stunden"]
["Juni",{"$f":"Z47","v":"Fr"},{"$f":"AA47","v":"Sa"},"So","Mo","Di","Mi","Do",{"$f":"B58","v":"Fr"},"Sa","So","Mo","Di","Mi","Do","Fr","Sa","So","Mo","Di","Mi","Do","Fr","Sa","So","Mo","Di","Mi","Do","Fr","Sa",null,"gesamt"]
[{"$f":"Start!$B$5","v":"Arbeitsstunden"},null,null,null,null,null,null,null,null,null,null,null,null,null,null,null,null,null,null,null,null,null,null,null,null,null,null,null,null,null,null,null,{"$f":"SUM(B59:AF59)","v":0}]
[{"$f":"Start!$B$6","v":"Kurzarbeit"},null,null,null,null,null,null,null,null,null,null,null,null,null,null,null,null,null,null,null,null,null,null,null,null,null,null,null,null,null,null,null,0]
[{"$f":"Start!$B$7","v":"bez. Freistellung"},null,null,null,null,null,null,null,null,null,null,null,null,null,null,null,null,null,null,null,null,null,null,null,null,null,null,null,null,null,null,null,0]
[{"$f":"Start!$B$8","v":"Urlaub"},null,null,null,null,null,null,null,null,null,null,null,null,null,null,null,null,null,null,null,null,null,null,null,null,null,null,null,null,null,null,null,0]
[{"$f":"Start!$B$9","v":"Krank mit Lfz"},null,null,null,null,null,null,null,null,null,null,null,null,null,null,null,null,null,null,null,null,null,null,null,null,null,null,null,null,null,null,null,0]
[{"$f":"Start!$B$10","v":"Krank ohne Lfz"},null,null,null,null,null,null,null,null,null,null,null,null,null,null,null,null,null,null,null,null,null,null,null,null,null,null,null,null,null,null,null,{"$f":"SUM(B64:AF64)","v":0}]
[{"$f":"Start!$B$11","v":"unentsch.Fehlen"},null,null,null,null,null,null,null,null,null,null,null,null,null,null,null,null,null,null,null,null,null,null,null,null,null,null,null,null,null,null,null,{"$f":"SUM(B65:AF65)","v":0}]
[{"$f":"Start!$B$12","v":"Weiterbildung"},null,null,null,null,null,null,null,null,null,null,null,null,null,null,null,null,null,null,null,null,null,null,null,null,null,null,null,null,null,null,null,0]
[{"$f":"Start!$B$13","v":"Stundenkonto"},null,null,null,null,null,null,null,null,null,null,null,null,null,null,null,null,null,null,null,null,null,null,null,null,null,null,null,null,null,null,null,0]
["Monat","1.","2.","3.","4.","5.","6.","7.","8.","9.","10.","11.","12.","13.","14.","15.","16.","17.","18.","19.","20.","21.","22.","23.","24.","25.","26.","27.","28.","29.","30.","31.","Stunden"]
["Juli",{"$f":"Y58","v":"So"},"Mo","Di","Mi","Do","Fr","Sa",{"$f":"B69","v":"So"},"Mo","Di","Mi","Do","Fr","Sa","So","Mo","Di","Mi","Do","Fr","Sa","So","Mo","Di","Mi","Do","Fr","Sa","So","Mo","Di","gesamt"]
[{"$f":"Start!$B$5","v":"Arbeitsstunden"},null,null,null,null,null,null,null,null,null,null,null,null,null,null,null,null,null,null,null,null,null,null,null,null,null,null,null,null,null,null,null,{"$f":"SUM(B70:AF70)","v":0}]
[{"$f":"Start!$B$6","v":"Kurzarbeit"},null,null,null,null,null,null,null,null,null,null,null,null,null,null,null,null,null,null,null,null,null,null,null,null,null,null,null,null,null,null,null,0]
[{"$f":"Start!$B$7","v":"bez. Freistellung"},null,null,null,null,null,null,null,null,null,null,null,null,null,null,null,null,null,null,null,null,null,null,null,null,null,null,null,null,null,null,null,0]
[{"$f":"Start!$B$8","v":"Urlaub"},null,null,null,null,null,null,null,null,null,null,null,null,null,null,null,null,null,null,null,null,null,null,null,null,null,null,null,null,null,null,null,0]
[{"$f":"Start!$B$9","v":"Krank mit Lfz"},null,null,null,null,null,null,null,null,null,null,null,null,null,null,null,null,null,null,null,null,null,null,null,null,null,null,null,null,null,null,null,0]
[{"$f":"Start!$B$10","v":"Krank ohne Lfz"},null,null,null,null,null,null,null,null,null,null,null,null,null,null,null,null,null,null,null,null,null,null,null,null,null,null,null,null,null,null,null,{"$f":"SUM(B75:AF75)","v":0}]
[{"$f":"Start!$B$11","v":"unentsch.Fehlen"},null,null,null,null,null,null,null,null,null,null,null,null,null,null,null,null,null,null,null,null,null,null,null,null,null,null,null,null,null,null,null,{"$f":"SUM(B76:AF76)","v":0}]
[{"$f":"Start!$B$12","v":"Weiterbildung"},null,null,null,null,null,null,null,null,null,null,null,null,null,null,null,null,null,null,null,null,null,null,null,null,null,null,null,null,null,null,null,0]
[{"$f":"Start!$B$13","v":"Stundenkonto"},null,null,null,null,null,null,null,null,null,null,null,null,null,null,null,null,null,null,null,null,null,null,null,null,null,null,null,null,null,null,null,0]
["Monat","1.","2.","3.","4.","5.","6.","7.","8.","9.","10.","11.","12.","13.","14.","15.","16.","17.","18.","19.","20.","21.","22.","23.","24.","25.","26.","27.","28.","29.","30.","31.","Stunden"]
["August",{"$f":"Z69","v":"Mi"},"Do","Fr","Sa","So","Mo","Di",{"$f":"B80","v":"Mi"},"Do","Fr","Sa","So","Mo","Di","Mi","Do","Fr","Sa","So","Mo","Di","Mi","Do","Fr","Sa","So","Mo","Di","Mi","Do","Fr","gesamt"]
[{"$f":"Start!$B$5","v":"Arbeitsstunden"},null,null,null,null,null,null,null,null,null,null,null,null,null,null,null,null,null,null,null,null,null,null,null,null,null,null,null,null,null,null,null,{"$f":"SUM(B81:AF81)","v":0}]
[{"$f":"Start!$B$6","v":"Kurzarbeit"},null,null,null,null,null,null,null,null,null,null,null,null,null,null,null,null,null,null,null,null,null,null,null,null,null,null,null,null,null,null,null,0]
[{"$f":"Start!$B$7","v":"bez. Freistellung"},null,null,null,null,null,null,null,null,null,null,null,null,null,null,null,null,null,null,null,null,null,null,null,null,null,null,null,null,null,null,null,0]
[{"$f":"Start!$B$8","v":"Urlaub"},null,null,null,null,null,null,null,null,null,null,null,null,null,null,null,null,null,null,null,null,null,null,null,null,null,null,null,null,null,null,null,0]
[{"$f":"Start!$B$9","v":"Krank mit Lfz"},null,null,null,null,null,null,null,null,null,null,null,null,null,null,null,null,null,null,null,null,null,null,null,null,null,null,null,null,null,null,null,0]
[{"$f":"Start!$B$10","v":"Krank ohne Lfz"},null,null,null,null,null,null,null,null,null,null,null,null,null,null,null,null,null,null,null,null,null,null,null,null,null,null,null,null,null,null,null,{"$f":"SUM(B86:AF86)","v":0}]
[{"$f":"Start!$B$11","v":"unentsch.Fehlen"},null,null,null,null,null,null,null,null,null,null,null,null,null,null,null,null,null,null,null,null,null,null,null,null,null,null,null,null,null,null,null,{"$f":"SUM(B87:AF87)","v":0}]
[{"$f":"Start!$B$12","v":"Weiterbildung"},null,null,null,null,null,null,null,null,null,null,null,null,null,null,null,null,null,null,null,null,null,null,null,null,null,null,null,null,null,null,null,0]
[{"$f":"Start!$B$13","v":"Stundenkonto"},null,null,null,null,null,null,null,null,null,null,null,null,null,null,null,null,null,null,null,null,null,null,null,null,null,null,null,null,null,null,null,0]
["Monat","1.","2.","3.","4.","5.","6.","7.","8.","9.","10.","11.","12.","13.","14.","15.","16.","17.","18.","19.","20.","21.","22.","23.","24.","25.","26.","27.","28.","29.","30.",null,"Stunden"]
["September",{"$f":"Z80","v":"Sa"},"So","Mo","Di","Mi","Do","Fr",{"$f":"B91","v":"Sa"},"So","Mo","Di","Mi","Do","Fr","Sa","So","Mo","Di","Mi","Do","Fr","Sa","So","Mo","Di","Mi","Do","Fr","Sa","So",null,"gesamt"]
[{"$f":"Start!$B$5","v":"Arbeitsstunden"},null,null,null,null,null,null,null,null,null,null,null,null,null,null,null,null,null,null,null,null,null,null,null,null,null,null,null,null,null,null,null,{"$f":"SUM(B92:AF92)","v":0}]
[{"$f":"Start!$B$6","v":"Kurzarbeit"},null,null,null,null,null,null,null,null,null,null,null,null,null,null,null,null,null,null,null,null,null,null,null,null,null,null,null,null,null,null,null,0]
[{"$f":"Start!$B$7","v":"bez. Freistellung"},null,null,null,null,null,null,null,null,null,null,null,null,null,null,null,null,null,null,null,null,null,null,null,null,null,null,null,null,null,null,null,0]
[{"$f":"Start!$B$8","v":"Urlaub"},null,null,null,null,null,null,null,null,null,null,null,null,null,null,null,null,null,null,null,null,null,null,null,null,null,null,null,null,null,null,null,0]
[{"$f":"Start!$B$9","v":"Krank mit Lfz"},null,null,null,null,null,null,null,null,null,null,null,null,null,null,null,null,null,null,null,null,null,null,null,null,null,null,null,null,null,null,null,0]
[{"$f":"Start!$B$10","v":"Krank ohne Lfz"},null,null,null,null,null,null,null,null,null,null,null,null,null,null,null,null,null,null,null,null,null,null,null,null,null,null,null,null,null,null,null,{"$f":"SUM(B97:AF97)","v":0}]
[{"$f":"Start!$B$11","v":"unentsch.Fehlen"},null,null,null,null,null,null,null,null,null,null,null,null,null,null,null,null,null,null,null,null,null,null,null,null,null,null,null,null,null,null,null,{"$f":"SUM(B98:AF98)","v":0}]
[{"$f":"Start!$B$12","v":"Weiterbildung"},null,null,null,null,null,null,null,null,null,null,null,null,null,null,null,null,null,null,null,null,null,null,null,null,null,null,null,null,null,null,null,0]
[{"$f":"Start!$B$13","v":"Stundenkonto"},null,null,null,null,null,null,null,null,null,null,null,null,null,null,null,null,null,null,null,null,null,null,null,null,null,null,null,null,null,null,null,0]
["Monat","1.","2.","3.","4.","5.","6.","7.","8.","9.","10.","11.","12.","13.","14.","15.","16.","17.","18.","19.","20.","21.","22.","23.","24.","25.","26.","27.","28.","29.","30.","31.","Stunden"]
["Oktober",{"$f":"Y91","v":"Mo"},"Di","Mi","Do","Fr","Sa","So",{"$f":"B102","v":"Mo"},"Di","Mi","Do","Fr","Sa","So","Mo","Di","Mi","Do","Fr","Sa","So","Mo","Di","Mi","Do","Fr","Sa","So","Mo","Di","Mi","gesamt"]
[{"$f":"Start!$B$5","v":"Arbeitsstunden"},null,null,null,null,null,null,null,null,null,null,null,null,null,null,null,null,null,null,null,null,null,null,null,null,null,null,null,null,null,null,null,{"$f":"SUM(B103:AF103)","v":0}]
[{"$f":"Start!$B$6","v":"Kurzarbeit"},null,null,null,null,null,null,null,null,null,null,null,null,null,null,null,null,null,null,null,null,null,null,null,null,null,null,null,null,null,null,null,0]
[{"$f":"Start!$B$7","v":"bez. Freistellung"},null,null,null,null,null,null,null,null,null,null,null,null,null,null,null,null,null,null,null,null,null,null,null,null,null,null,null,null,null,null,null,0]
[{"$f":"Start!$B$8","v":"Urlaub"},null,null,null,null,null,null,null,null,null,null,null,null,null,null,null,null,null,null,null,null,null,null,null,null,null,null,null,null,null,null,null,0]
[{"$f":"Start!$B$9","v":"Krank mit Lfz"},null,null,null,null,null,null,null,null,null,null,null,null,null,null,null,null,null,null,null,null,null,null,null,null,null,null,null,null,null,null,null,0]
[{"$f":"Start!$B$10","v":"Krank ohne Lfz"},null,null,null,null,null,null,null,null,null,null,null,null,null,null,null,null,null,null,null,null,null,null,null,null,null,null,null,null,null,null,null,{"$f":"SUM(B108:AF108)","v":0}]
[{"$f":"Start!$B$11","v":"unentsch.Fehlen"},null,null,null,null,null,null,null,null,null,null,null,null,null,null,null,null,null,null,null,null,null,null,null,null,null,null,null,null,null,null,null,{"$f":"SUM(B109:AF109)","v":0}]
[{"$f":"Start!$B$12","v":"Weiterbildung"},null,null,null,null,null,null,null,null,null,null,null,null,null,null,null,null,null,null,null,null,null,null,null,null,null,null,null,null,null,null,null,0]
[{"$f":"Start!$B$13","v":"Stundenkonto"},null,null,null,null,null,null,null,null,null,null,null,null,null,null,null,null,null,null,null,null,null,null,null,null,null,null,null,null,null,null,null,0]
["Monat","1.","2.","3.","4.","5.","6.","7.","8.","9.","10.","11.","12.","13.","14.","15.","16.","17.","18.","19.","20.","21.","22.","23.","24.","25.","26.","27.","28.","29.","30.",null,"Stunden"]
["November",{"$f":"Z102","v":"Do"},"Fr","Sa","So","Mo","Di","Mi",{"$f":"B113","v":"Do"},"Fr","Sa","So","Mo","Di","Mi","Do","Fr","Sa","So","Mo","Di","Mi","Do","Fr","Sa","So","Mo","Di","Mi","Do","Fr",null,"gesamt"]
[{"$f":"Start!$B$5","v":"Arbeitsstunden"},null,null,null,null,null,null,null,null,null,null,null,null,null,null,null,null,null,null,null,null,null,null,null,null,null,null,null,null,null,null,null,{"$f":"SUM(B114:AF114)","v":0}]
[{"$f":"Start!$B$6","v":"Kurzarbeit"},null,null,null,null,null,null,null,null,null,null,null,null,null,null,null,null,null,null,null,null,null,null,null,null,null,null,null,null,null,null,null,0]
[{"$f":"Start!$B$7","v":"bez. Freistellung"},null,null,null,null,null,null,null,null,null,null,null,null,null,null,null,null,null,null,null,null,null,null,null,null,null,null,null,null,null,null,null,0]
[{"$f":"Start!$B$8","v":"Urlaub"},null,null,null,null,null,null,null,null,null,null,null,null,null,null,null,null,null,null,null,null,null,null,null,null,null,null,null,null,null,null,null,0]
[{"$f":"Start!$B$9","v":"Krank mit Lfz"},null,null,null,null,null,null,null,null,null,null,null,null,null,null,null,null,null,null,null,null,null,null,null,null,null,null,null,null,null,null,null,0]
[{"$f":"Start!$B$10","v":"Krank ohne Lfz"},null,null,null,null,null,null,null,null,null,null,null,null,null,null,null,null,null,null,null,null,null,null,null,null,null,null,null,null,null,null,null,{"$f":"SUM(B119:AF119)","v":0}]
[{"$f":"Start!$B$11","v":"unentsch.Fehlen"},null,null,null,null,null,null,null,null,null,null,null,null,null,null,null,null,null,null,null,null,null,null,null,null,null,null,null,null,null,null,null,{"$f":"SUM(B120:AF120)","v":0}]
[{"$f":"Start!$B$12","v":"Weiterbildung"},null,null,null,null,null,null,null,null,null,null,null,null,null,null,null,null,null,null,null,null,null,null,null,null,null,null,null,null,null,null,null,0]
[{"$f":"Start!$B$13","v":"Stundenkonto"},null,null,null,null,null,null,null,null,null,null,null,null,null,null,null,null,null,null,null,null,null,null,null,null,null,null,null,null,null,null,null,0]
["Monat","1.","2.","3.","4.","5.","6.","7.","8.","9.","10.","11.","12.","13.","14.","15.","16.","17.","18.","19.","20.","21.","22.","23.","24.","25.","26.","27.","28.","29.","30.","31.","Stunden"]
["Dezember",{"$f":"Y113","v":"Sa"},"So","Mo","Di","Mi","Do","Fr",{"$f":"B124","v":"Sa"},"So","Mo","Di","Mi","Do","Fr","Sa","So","Mo","Di","Mi","Do","Fr","Sa","So","Mo","Di","Mi","Do","Fr","Sa","So","Mo","gesamt"]
[{"$f":"Start!$B$5","v":"Arbeitsstunden"},null,null,null,null,null,null,null,null,null,null,null,null,null,null,null,null,null,null,null,null,null,null,null,null,null,null,null,null,null,null,null,{"$f":"SUM(B125:AF125)","v":0}]
[{"$f":"Start!$B$6","v":"Kurzarbeit"},null,null,null,null,null,null,null,null,null,null,null,null,null,null,null,null,null,null,null,null,null,null,null,null,null,null,null,null,null,null,null,0]
[{"$f":"Start!$B$7","v":"bez. Freistellung"},null,null,null,null,null,null,null,null,null,null,null,null,null,null,null,null,null,null,null,null,null,null,null,null,null,null,null,null,null,null,null,0]
[{"$f":"Start!$B$8","v":"Urlaub"},null,null,null,null,null,null,null,null,null,null,null,null,null,null,null,null,null,null,null,null,null,null,null,null,null,null,null,null,null,null,null,0]
[{"$f":"Start!$B$9","v":"Krank mit Lfz"},null,null,null,null,null,null,null,null,null,null,null,null,null,null,null,null,null,null,null,null,null,null,null,null,null,null,null,null,null,null,null,0]
[{"$f":"Start!$B$10","v":"Krank ohne Lfz"},null,null,null,null,null,null,null,null,null,null,null,null,null,null,null,null,null,null,null,null,null,null,null,null,null,null,null,null,null,null,null,{"$f":"SUM(B130:AF130)","v":0}]
[{"$f":"Start!$B$11","v":"unentsch.Fehlen"},null,null,null,null,null,null,null,null,null,null,null,null,null,null,null,null,null,null,null,null,null,null,null,null,null,null,null,null,null,null,null,{"$f":"SUM(B131:AF131)","v":0}]
[{"$f":"Start!$B$12","v":"Weiterbildung"},null,null,null,null,null,null,null,null,null,null,null,null,null,null,null,null,null,null,null,null,null,null,null,null,null,null,null,null,null,null,null,0]
[{"$f":"Start!$B$13","v":"Stundenkonto"},null,null,null,null,null,null,null,null,null,null,null,null,null,null,null,null,null,null,null,null,null,null,null,null,null,null,null,null,null,null,null,0]
[]
["Jahresrechnung:"]
[{"$f":"Start!$B$5","v":"Arbeitsstunden"},null,null,null,null,null,null,{"$f":"SUM(AG4+AG15+AG26+AG37+AG48+AG59+AG70+AG81+AG92+AG103+AG114+AG125)","v":0}]
[{"$f":"Start!$B$6","v":"Kurzarbeit"},null,null,null,null,null,null,{"$f":"SUM(AG5+AG16+AG27+AG38+AG49+AG60+AG71+AG82+AG93+AG104+AG115+AG126)","v":0}]
[{"$f":"Start!$B$7","v":"bez. Freistellung"},null,null,null,null,null,null,{"$f":"SUM(AG6+AG17+AG28+AG39+AG50+AG61+AG72+AG83+AG94+AG105+AG116+AG127)","v":0}]
[{"$f":"Start!$B$8","v":"Urlaub"},null,null,null,null,null,null,{"$f":"SUM(AG7+AG18+AG29+AG39+AG51+AG62+AG73+AG84+AG95+AG106+AG117+AG128)","v":32}]
[{"$f":"Start!$B$9","v":"Krank mit Lfz"},null,null,null,null,null,null,{"$f":"SUM(AG8+AG19+AG30+AG41+AG52+AG63+AG74+AG85+AG96+AG107+AG118+AG129)","v":0}]
[{"$f":"Start!$B$10","v":"Krank ohne Lfz"},null,null,null,null,null,null,{"$f":"SUM(AG9+AG20+AG31+AG42+AG53+AG64+AG75+AG86+AG97+AG108+AG119+AG130)","v":0}]
[{"$f":"Start!$B$11","v":"unentsch.Fehlen"},null,null,null,null,null,null,{"$f":"SUM(AG10+AG21+AG32+AG43+AG54+AG65+AG76+AG87+AG98+AG109+AG120+AG131)","v":0}]
[{"$f":"Start!$B$12","v":"Weiterbildung"},null,null,null,null,null,null,{"$f":"SUM(AG11+AG22+AG33+AG44+AG55+AG66+AG77+AG88+AG99+AG110+AG121+AG132)","v":0}]
[{"$f":"Start!$B$13","v":"Stundenkonto"},null,null,null,null,null,null,{"$f":"SUM(AG12+AG23+AG34+AG45+AG56+AG67+AG78+AG89+AG100+AG111+AG122+AG133)","v":0}]
[null,null,null,null,null,null," ",{"$f":"SUM(H136:AG144)","v":32}]
["Statistik: Prozentualer Anteil zur Gesamtzeit "]
[{"$f":"Start!$B$5","v":"Arbeitsstunden"},null,null,null,{"$f":"IF(H145=0,G145,H136/H145)","v":0}]
[{"$f":"Start!$B$6","v":"Kurzarbeit"},null,null,null,{"$f":"IF(H145=0,G145,H137/H145)","v":0}]
[{"$f":"Start!$B$7","v":"bez. Freistellung"},null,null,null,{"$f":"IF(H145=0,G145,H138/H145)","v":0}]
[{"$f":"Start!$B$8","v":"Urlaub"},null,null,null,{"$f":"IF(H145=0,G145,H139/H145)","v":1}]
[{"$f":"Start!$B$9","v":"Krank mit Lfz"},null,null,null,{"$f":"IF(H145=0,G145,H140/H145)","v":0}]
[{"$f":"Start!$B$10","v":"Krank ohne Lfz"},null,null,null,{"$f":"IF(H145=0,G145,H141/H145)","v":0}]
[{"$f":"Start!$B$11","v":"unentsch.Fehlen"},null,null,null,{"$f":"IF(H145=0,G145,H142/H145)","v":0}]
[{"$f":"Start!$B$12","v":"Weiterbildung"},null,null,null,{"$f":"IF(H145=0,G145,H143/H145)","v":0}]
[{"$f":"Start!$B$13","v":"Stundenkonto"},null,null,null,{"$f":"IF(H145=0,G145,H144/H145)","v":0}]

{"sheet":"Tabelle2","index":4,"n_rows":155,"n_cols":33,"rows_kept":155,"cut":false,"hidden":false,"merged":[[0,0,0,4],[136,0,136,6],[136,7,136,32],[137,0,137,6],[137,7,137,32],[134,0,134,31],[135,0,135,6],[135,7,135,32],[0,5,0,9],[0,10,0,13],[0,29,0,32],[0,15,0,23],[0,24,0,28],[12,30,13,30],[12,31,13,31],[140,0,140,6],[140,7,140,32],[141,0,141,6],[141,7,141,32],[138,0,138,6],[138,7,138,32],[139,0,139,6],[139,7,139,32],[144,7,144,32],[145,0,145,9],[146,0,146,3],[146,4,146,9],[142,0,142,6],[142,7,142,32],[143,0,143,6],[143,7,143,32],[149,0,149,3],[149,4,149,9],[150,0,150,3],[150,4,150,9],[147,0,147,3],[147,4,147,9],[148,0,148,3],[148,4,148,9],[153,0,153,3],[153,4,153,9],[154,0,154,3],[154,4,154,9],[151,0,151,3],[151,4,151,9],[152,0,152,3],[152,4,152,9]]}
["Abrechnungsjahr:",null,null,null,null,{"$f":"Start!B1","v":2012},null,null,null,null,"Name:",null,null,null,null,{"$f":"Start!B14","v":0},null,null,null,null,null,null,null,null,{"$f":"Start!C14","v":0},null,null,null,null,"zurück"]
["Monat","1.","2.","3.","4.","5.","6.","7.","8.","9.","10.","11.","12.","13.","14.","15.","16.","17.","18.","19.","20.","21.","22.","23.","24.","25.","26.","27.","28.","29.","30.","31.","Stunden"]
["Januar",{"$f":"Tabelle1!B3","v":"So"},{"$f":"Tabelle1!C3","v":"Mo"},{"$f":"Tabelle1!D3","v":"Di"},{"$f":"Tabelle1!E3","v":"Mi"},{"$f":"Tabelle1!F3","v":"Do"},{"$f":"Tabelle1!G3","v":"Fr"},{"$f":"Tabelle1!H3","v":"Sa"},{"$f":"B3","v":"So"},"Mo","Di","Mi","Do","Fr","Sa","So","Mo","Di","Mi","Do","Fr","Sa","So","Mo","Di","Mi","Do","Fr","Sa","So","Mo","Di","gesamt"]
[{"$f":"Start!$B$5","v":"Arbeitsstunden"},null,null,null,null,null,null,null,null,null,null,null,null,null,null,null,null,null,null,null,null,null,null,null,null,null,null,null,null,null,null,null,{"$f":"SUM(B4:AF4)","v":0}]
[{"$f":"Start!$B$6","v":"Kurzarbeit"},null,null,null,null,null,null,null,null,null,null,null,null,null,null,null,null,null,null,null,null,null,null,null,null,null,null,null,null,null,null,null,0]
[{"$f":"Start!$B$7","v":"bez. Freistellung"},null,null,null,null,null,null,null,null,null,null,null,null,null,null,null,null,null,null,null,null,null,null,null,null,null,null,null,null,null,null,null,0]
[{"$f":"Start!$B$8","v":"Urlaub"},null,null,null,null,null,null,null,null,null,null,null,null,null,null,null,null,null,null,null,null,null,null,null,null,null,null,null,null,null,null,null,0]
[{"$f":"Start!$B$9","v":"Krank mit Lfz"},null,null,null,null,null,null,null,null,null,null,null,null,null,null,null,null,null,null,null,null,null,null,null,null,null,null,null,null,null,null,null,0]
[{"$f":"Start!$B$10","v":"Krank ohne Lfz"},null,null,null,null,null,null,null,null,null,null,null,null,null,null,null,null,null,null,null,null,null,null,null,null,null,null,null,null,null,null,null,{"$f":"SUM(B9:AF9)","v":0}]
[{"$f":"Start!$B$11","v":"unentsch.Fehlen"},null,null,null,null,null,null,null,null,null,null,null,null,null,null,null,null,null,null,null,null,null,null,null,null,null,null,null,null,null,null,null,{"$f":"SUM(B10:AF10)","v":0}]
[{"$f":"Start!$B$12","v":"Weiterbildung"},null,null,null,null,null,null,null,null,null,null,null,null,null,null,null,null,null,null,null,null,null,null,null,null,null,null,null,null,null,null,null,0]
[{"$f":"Start!$B$13","v":"Stundenkonto"},null,null,null,null,null,null,null,null,null,null,null,null,null,null,null,null,null,null,null,null,null,null,null,null,null,null,null,null,null,null,null,0]
["Monat","1.","2.","3.","4.","5.","6.","7.","8.","9.","10.","11.","12.","13.","14.","15.","16.","17.","18.","19.","20.","21.","22.","23.","24.","25.","26.","27.","28.",{"$f":"Tabelle1!AD13","v":"29."},null,null,"Stunden"]
["Februar",{"$f":"Tabelle1!B14","v":"Mi"},{"$f":"Tabelle1!C14","v":"Do"},{"$f":"Tabelle1!D14","v":"Fr"},{"$f":"Tabelle1!E14","v":"Sa"},{"$f":"Tabelle1!F14","v":"So"},{"$f":"Tabelle1!G14","v":"Mo"},{"$f":"Tabelle1!H14","v":"Di"},{"$f":"B14","v":"Mi"},"Do","Fr","Sa","So","Mo","Di","Mi","Do","Fr","Sa","So","Mo","Di","Mi","Do","Fr","Sa","So","Mo","Di",{"$f":"Tabelle1!AD14","v":"Mi"},null,null,"gesamt"]
[{"$f":"Start!$B$5","v":"Arbeitsstunden"},null,null,null,null,null,null,null,null,null,null,null,null,null,null,null,null,null,null,null,null,null,null,null,null,null,null,null,null,null,null,null,{"$f":"SUM(B15:AF15)","v":0}]
[{"$f":"Start!$B$6","v":"Kurzarbeit"},null,null,null,null,null,null,null,null,null,null,null,null,null,null,null,null,null,null,null,null,null,null,null,null,null,null,null,null,null,null,null,0]
[{"$f":"Start!$B$7","v":"bez. Freistellung"},null,null,null,null,null,null,null,null,null,null,null,null,null,null,null,null,null,null,null,null,null,null,null,null,null,null,null,null,null,null,null,0]
[{"$f":"Start!$B$8","v":"Urlaub"},null,null,null,null,null,null,null,null,null,null,null,null,null,null,null,null,null,null,null,null,null,null,null,null,null,null,null,null,null,null,null,0]
[{"$f":"Start!$B$9","v":"Krank mit Lfz"},null,null,null,null,null,null,null,null,null,null,null,null,null,null,null,null,null,null,null,null,null,null,null,null,null,null,null,null,null,null,null,0]
[{"$f":"Start!$B$10","v":"Krank ohne Lfz"},null,null,null,null,null,null,null,null,null,null,null,null,null,null,null,null,null,null,null,null,null,null,null,null,null,null,null,null,null,null,null,{"$f":"SUM(B20:AF20)","v":0}]
[{"$f":"Start!$B$11","v":"unentsch.Fehlen"},null,null,null,null,null,null,null,null,null,null,null,null,null,null,null,null,null,null,null,null,null,null,null,null,null,null,null,null,null,null,null,{"$f":"SUM(B21:AF21)","v":0}]
[{"$f":"Start!$B$12","v":"Weiterbildung"},null,null,null,null,null,null,null,null,null,null,null,null,null,null,null,null,null,null,null,null,null,null,null,null,null,null,null,null,null,null,null,0]
[{"$f":"Start!$B$13","v":"Stundenkonto"},null,null,null,null,null,null,null,null,null,null,null,null,null,null,null,null,null,null,null,null,null,null,null,null,null,null,null,null,null,null,null,0]
["Monat","1.","2.","3.","4.","5.","6.","7.","8.","9.","10.","11.","12.","13.","14.","15.","16.","17.","18.","19.","20.","21.","22.","23.","24.","25.","26.","27.","28.","29.","30.","31.","Stunden"]
["März",{"$f":"Tabelle1!B25","v":"Do"},{"$f":"Tabelle1!C25","v":"Fr"},{"$f":"Tabelle1!D25","v":"Sa"},{"$f":"Tabelle1!E25","v":"So"},{"$f":"Tabelle1!F25","v":"Mo"},{"$f":"Tabelle1!G25","v":"Di"},{"$f":"Tabelle1!H25","v":"Mi"},{"$f":"B25","v":"Do"},"Fr","Sa","So","Mo","Di","Mi","Do","Fr","Sa","So","Mo","Di","Mi","Do","Fr","Sa","So","Mo","Di","Mi","Do","Fr","Sa","gesamt"]
[{"$f":"Start!$B$5","v":"Arbeitsstunden"},null,null,null,null,null,null,null,null,null,null,null,null,null,null,null,null,null,null,null,null,null,null,null,null,null,null,null,null,null,null,null,{"$f":"SUM(B26:AF26)","v":0}]
[{"$f":"Start!$B$6","v":"Kurzarbeit"},null,null,null,null,null,null,null,null,null,null,null,null,null,null,null,null,null,null,null,null,null,null,null,null,null,null,null,null,null,null,null,0]
[{"$f":"Start!$B$7","v":"bez. Freistellung"},null,null,null,null,null,null,null,null,null,null,null,null,null,null,null,null,null,null,null,null,null,null,null,null,null,null,null,null,null,null,null,0]
[{"$f":"Start!$B$8","v":"Urlaub"},null,null,null,null,null,null,null,null,null,null,null,null,null,null,null,null,null,null,null,null,null,null,null,null,null,null,null,null,null,null,null,0]
[{"$f":"Start!$B$9","v":"Krank mit Lfz"},null,null,null,null,null,null,null,null,null,null,null,null,null,null,null,null,null,null,null,null,null,null,null,null,null,null,null,null,null,null,null,0]
[{"$f":"Start!$B$10","v":"Krank ohne Lfz"},null,null,null,null,null,null,null,null,null,null,null,null,null,null,null,null,null,null,null,null,null,null,null,null,null,null,null,null,null,null,null,{"$f":"SUM(B31:AF31)","v":0}]
[{"$f":"Start!$B$11","v":"unentsch.Fehlen"},null,null,null,null,null,null,null,null,null,null,null,null,null,null,null,null,null,null,null,null,null,null,null,null,null,null,null,null,null,null,null,{"$f":"SUM(B32:AF32)","v":0}]
[{"$f":"Start!$B$12","v":"Weiterbildung"},null,null,null,null,null,null,null,null,null,null,null,null,null,null,null,null,null,null,null,null,null,null,null,null,null,null,null,null,null,null,null,0]
[{"$f":"Start!$B$13","v":"Stundenkonto"},null,null,null,null,null,null,null,null,null,null,null,null,null,null,null,null,null,null,null,null,null,null,null,null,null,null,null,null,null,null,null,0]
["Monat","1.","2.","3.","4.","5.","6.","7.","8.","9.","10.","11.","12.","13.","14.","15.","16.","17.","18.","19.","20.","21.","22.","23.","24.","25.","26.","27.","28.","29.","30.",null,"Stunden"]
["April",{"$f":"Tabelle1!B36","v":"So"},{"$f":"Tabelle1!C36","v":"Mo"},{"$f":"Tabelle1!D36","v":"Di"},{"$f":"Tabelle1!E36","v":"Mi"},{"$f":"Tabelle1!F36","v":"Do"},{"$f":"Tabelle1!G36","v":"Fr"},{"$f":"Tabelle1!H36","v":"Sa"},{"$f":"B36","v":"So"},"Mo","Di","Mi","Do","Fr","Sa","So","Mo","Di","Mi","Do","Fr","Sa","So","Mo","Di","Mi","Do","Fr","Sa","So","Mo",null,"gesamt"]
[{"$f":"Start!$B$5","v":"Arbeitsstunden"},null,null,null,null,null,null,null,null,null,null,null,null,null,null,null,null,null,null,null,null,null,null,null,null,null,null,null,null,null,null,null,{"$f":"SUM(B37:AF37)","v":0}]
[{"$f":"Start!$B$6","v":"Kurzarbeit"},null,null,null,null,null,null,null,null,null,null,null,null,null,null,null,null,null,null,null,null,null,null,null,null,null,null,null,null,null,null,null,0]
[{"$f":"Start!$B$7","v":"bez. Freistellung"},null,null,null,null,null,null,null,null,null,null,null,null,null,null,null,null,null,null,null,null,null,null,null,null,null,null,null,null,null,null,null,0]
[{"$f":"Start!$B$8","v":"Urlaub"},null,null,null,null,null,null,null,null,null,null,null,null,null,null,null,null,null,null,null,null,null,null,null,null,null,null,null,null,null,null,null,0]
[{"$f":"Start!$B$9","v":"Krank mit Lfz"},null,null,null,null,null,null,null,null,null,null,null,null,null,null,null,null,null,null,null,null,null,null,null,null,null,null,null,null,null,null,null,0]
[{"$f":"Start!$B$10","v":"Krank ohne Lfz"},null,null,null,null,null,null,null,null,null,null,null,null,null,null,null,null,null,null,null,null,null,null,null,null,null,null,null,null,null,null,null,{"$f":"SUM(B42:AF42)","v":0}]
[{"$f":"Start!$B$11","v":"unentsch.Fehlen"},null,null,null,null,null,null,null,null,null,null,null,null,null,null,null,null,null,null,null,null,null,null,null,null,null,null,null,null,null,null,null,{"$f":"SUM(B43:AF43)","v":0}]
[{"$f":"Start!$B$12","v":"Weiterbildung"},null,null,null,null,null,null,null,null,null,null,null,null,null,null,null,null,null,null,null,null,null,null,null,null,null,null,null,null,null,null,null,0]
[{"$f":"Start!$B$13","v":"Stundenkonto"},null,null,null,null,null,null,null,null,null,null,null,null,null,null,null,null,null,null,null,null,null,null,null,null,null,null,null,null,null,null,null,0]
["Monat","1.","2.","3.","4.","5.","6.","7.","8.","9.","10.","11.","12.","13.","14.","15.","16.","17.","18.","19.","20.","21.","22.","23.","24.","25.","26.","27.","28.","29.","30.","31.","Stunden"]
["Mai",{"$f":"Tabelle1!B47","v":"Di"},{"$f":"Tabelle1!C47","v":"Mi"},{"$f":"Tabelle1!D47","v":"Do"},{"$f":"Tabelle1!E47","v":"Fr"},{"$f":"Tabelle1!F47","v":"Sa"},{"$f":"Tabelle1!G47","v":"So"},{"$f":"Tabelle1!H47","v":"Mo"},{"$f":"B47","v":"Di"},"Mi","Do","Fr","Sa","So","Mo","Di","Mi","Do","Fr","Sa","So","Mo","Di","Mi","Do","Fr","Sa","So","Mo","Di","Mi","Do","gesamt"]
[{"$f":"Start!$B$5","v":"Arbeitsstunden"},null,null,null,null,null,null,null,null,null,null,null,null,null,null,null,null,null,null,null,null,null,null,null,null,null,null,null,null,null,null,null,{"$f":"SUM(B48:AF48)","v":0}]
[{"$f":"Start!$B$6","v":"Kurzarbeit"},null,null,null,null,null,null,null,null,null,null,null,null,null,null,null,null,null,null,null,null,null,null,null,null,null,null,null,null,null,null,null,0]
[{"$f":"Start!$B$7","v":"bez. Freistellung"},null,null,null,null,null,null,null,null,null,null,null,null,null,null,null,null,null,null,null,null,null,null,null,null,null,null,null,null,null,null,null,0]
[{"$f":"Start!$B$8","v":"Urlaub"},null,null,null,null,null,null,null,null,null,null,null,null,null,null,null,null,null,null,null,null,null,null,null,null,null,null,null,null,null,null,null,0]
[{"$f":"Start!$B$9","v":"Krank mit Lfz"},null,null,null,null,null,null,null,null,null,null,null,null,null,null,null,null,null,null,null,null,null,null,null,null,null,null,null,null,null,null,null,0]
[{"$f":"Start!$B$10","v":"Krank ohne Lfz"},null,null,null,null,null,null,null,null,null,null,null,null,null,null,null,null,null,null,null,null,null,null,null,null,null,null,null,null,null,null,null,{"$f":"SUM(B53:AF53)","v":0}]
[{"$f":"Start!$B$11","v":"unentsch.Fehlen"},null,null,null,null,null,null,null,null,null,null,null,null,null,null,null,null,null,null,null,null,null,null,null,null,null,null,null,null,null,null,null,{"$f":"SUM(B54:AF54)","v":0}]
[{"$f":"Start!$B$12","v":"Weiterbildung"},null,null,null,null,null,null,null,null,null,null,null,null,null,null,null,null,null,null,null,null,null,null,null,null,null,null,null,null,null,null,null,0]
[{"$f":"Start!$B$13","v":"Stundenkonto"},null,null,null,null,null,null,null,null,null,null,null,null,null,null,null,null,null,null,null,null,null,null,null,null,null,null,null,null,null,null,null,0]
["Monat","1.","2.","3.","4.","5.","6.","7.","8.","9.","10.","11.","12.","13.","14.","15.","16.","17.","18.","19.","20.","21.","22.","23.","24.","25.","26.","27.","28.","29.","30.",null,"Stunden"]
["Juni",{"$f":"Tabelle1!B58","v":"Fr"},{"$f":"Tabelle1!C58","v":"Sa"},{"$f":"Tabelle1!D58","v":"So"},{"$f":"Tabelle1!E58","v":"Mo"},{"$f":"Tabelle1!F58","v":"Di"},{"$f":"Tabelle1!G58","v":"Mi"},{"$f":"Tabelle1!H58","v":"Do"},{"$f":"B58","v":"Fr"},"Sa","So","Mo","Di","Mi","Do","Fr","Sa","So","Mo","Di","Mi","Do","Fr","Sa","So","Mo","Di","Mi","Do","Fr","Sa",null,"gesamt"]
[{"$f":"Start!$B$5","v":"Arbeitsstunden"},null,null,null,null,null,null,null,null,null,null,null,null,null,null,null,null,null,null,null,null,null,null,null,null,null,null,null,null,null,null,null,{"$f":"SUM(B59:AF59)","v":0}]
[{"$f":"Start!$B$6","v":"Kurzarbeit"},null,null,null,null,null,null,null,null,null,null,null,null,null,null,null,null,null,null,null,null,null,null,null,null,null,null,null,null,null,null,null,0]
[{"$f":"Start!$B$7","v":"bez. Freistellung"},null,null,null,null,null,null,null,null,null,null,null,null,null,null,null,null,null,null,null,null,null,null,null,null,null,null,null,null,null,null,null,0]
[{"$f":"Start!$B$8","v":"Urlaub"},null,null,null,null,null,null,null,null,null,null,null,null,null,null,null,null,null,null,null,null,null,null,null,null,null,null,null,null,null,null,null,0]
[{"$f":"Start!$B$9","v":"Krank mit Lfz"},null,null,null,null,null,null,null,null,null,null,null,null,null,null,null,null,null,null,null,null,null,null,null,null,null,null,null,null,null,null,null,0]
[{"$f":"Start!$B$10","v":"Krank ohne Lfz"},null,null,null,null,null,null,null,null,null,null,null,null,null,null,null,null,null,null,null,null,null,null,null,null,null,null,null,null,null,null,null,{"$f":"SUM(B64:AF64)","v":0}]
[{"$f":"Start!$B$11","v":"unentsch.Fehlen"},null,null,null,null,null,null,null,null,null,null,null,null,null,null,null,null,null,null,null,null,null,null,null,null,null,null,null,null,null,null,null,{"$f":"SUM(B65:AF65)","v":0}]
[{"$f":"Start!$B$12","v":"Weiterbildung"},null,null,null,null,null,null,null,null,null,null,null,null,null,null,null,null,null,null,null,null,null,null,null,null,null,null,null,null,null,null,null,0]
[{"$f":"Start!$B$13","v":"Stundenkonto"},null,null,null,null,null,null,null,null,null,null,null,null,null,null,null,null,null,null,null,null,null,null,null,null,null,null,null,null,null,null,null,0]
["Monat","1.","2.","3.","4.","5.","6.","7.","8.","9.","10.","11.","12.","13.","14.","15.","16.","17.","18.","19.","20.","21.","22.","23.","24.","25.","26.","27.","28.","29.","30.","31.","Stunden"]
["Juli",{"$f":"Tabelle1!B69","v":"So"},{"$f":"Tabelle1!C69","v":"Mo"},{"$f":"Tabelle1!D69","v":"Di"},{"$f":"Tabelle1!E69","v":"Mi"},{"$f":"Tabelle1!F69","v":"Do"},{"$f":"Tabelle1!G69","v":"Fr"},{"$f":"Tabelle1!H69","v":"Sa"},{"$f":"B69","v":"So"},"Mo","Di","Mi","Do","Fr","Sa","So","Mo","Di","Mi","Do","Fr","Sa","So","Mo","Di","Mi","Do","Fr","Sa","So","Mo","Di","gesamt"]
[{"$f":"Start!$B$5","v":"Arbeitsstunden"},null,null,null,null,null,null,null,null,null,null,null,null,null,null,null,null,null,null,null,null,null,null,null,null,null,null,null,null,null,null,null,{"$f":"SUM(B70:AF70)","v":0}]
[{"$f":"Start!$B$6","v":"Kurzarbeit"},null,null,null,null,null,null,null,null,null,null,null,null,null,null,null,null,null,null,null,null,null,null,null,null,null,null,null,null,null,null,null,0]
[{"$f":"Start!$B$7","v":"bez. Freistellung"},null,null,null,null,null,null,null,null,null,null,null,null,null,null,null,null,null,null,null,null,null,null,null,null,null,null,null,null,null,null,null,0]
[{"$f":"Start!$B$8","v":"Urlaub"},null,null,null,null,null,null,null,null,null,null,null,null,null,null,null,null,null,null,null,null,null,null,null,null,null,null,null,null,null,null,null,0]
[{"$f":"Start!$B$9","v":"Krank mit Lfz"},null,null,null,null,null,null,null,null,null,null,null,null,null,null,null,null,null,null,null,null,null,null,null,null,null,null,null,null,null,null,null,0]
[{"$f":"Start!$B$10","v":"Krank ohne Lfz"},null,null,null,null,null,null,null,null,null,null,null,null,null,null,null,null,null,null,null,null,null,null,null,null,null,null,null,null,null,null,null,{"$f":"SUM(B75:AF75)","v":0}]
[{"$f":"Start!$B$11","v":"unentsch.Fehlen"},null,null,null,null,null,null,null,null,null,null,null,null,null,null,null,null,null,null,null,null,null,null,null,null,null,null,null,null,null,null,null,{"$f":"SUM(B76:AF76)","v":0}]
[{"$f":"Start!$B$12","v":"Weiterbildung"},null,null,null,null,null,null,null,null,null,null,null,null,null,null,null,null,null,null,null,null,null,null,null,null,null,null,null,null,null,null,null,0]
[{"$f":"Start!$B$13","v":"Stundenkonto"},null,null,null,null,null,null,null,null,null,null,null,null,null,null,null,null,null,null,null,null,null,null,null,null,null,null,null,null,null,null,null,0]
["Monat","1.","2.","3.","4.","5.","6.","7.","8.","9.","10.","11.","12.","13.","14.","15.","16.","17.","18.","19.","20.","21.","22.","23.","24.","25.","26.","27.","28.","29.","30.","31.","Stunden"]
["August",{"$f":"Tabelle1!B80","v":"Mi"},{"$f":"Tabelle1!C80","v":"Do"},{"$f":"Tabelle1!D80","v":"Fr"},{"$f":"Tabelle1!E80","v":"Sa"},{"$f":"Tabelle1!F80","v":"So"},{"$f":"Tabelle1!G80","v":"Mo"},{"$f":"Tabelle1!H80","v":"Di"},{"$f":"B80","v":"Mi"},"Do","Fr","Sa","So","Mo","Di","Mi","Do","Fr","Sa","So","Mo","Di","Mi","Do","Fr","Sa","So","Mo","Di","Mi","Do","Fr","gesamt"]
[{"$f":"Start!$B$5","v":"Arbeitsstunden"},null,null,null,null,null,null,null,null,null,null,null,null,null,null,null,null,null,null,null,null,null,null,null,null,null,null,null,null,null,null,null,{"$f":"SUM(B81:AF81)","v":0}]
[{"$f":"Start!$B$6","v":"Kurzarbeit"},null,null,null,null,null,null,null,null,null,null,null,null,null,null,null,null,null,null,null,null,null,null,null,null,null,null,null,null,null,null,null,0]
[{"$f":"Start!$B$7","v":"bez. Freistellung"},null,null,null,null,null,null,null,null,null,null,null,null,null,null,null,null,null,null,null,null,null,null,null,null,null,null,null,null,null,null,null,0]
[{"$f":"Start!$B$8","v":"Urlaub"},null,null,null,null,null,null,null,null,null,null,null,null,null,null,null,null,null,null,null,null,null,null,null,null,null,null,null,null,null,null,null,0]
[{"$f":"Start!$B$9","v":"Krank mit Lfz"},null,null,null,null,null,null,null,null,null,null,null,null,null,null,null,null,null,null,null,null,null,null,null,null,null,null,null,null,null,null,null,0]
[{"$f":"Start!$B$10","v":"Krank ohne Lfz"},null,null,null,null,null,null,null,null,null,null,null,null,null,null,null,null,null,null,null,null,null,null,null,null,null,null,null,null,null,null,null,{"$f":"SUM(B86:AF86)","v":0}]
[{"$f":"Start!$B$11","v":"unentsch.Fehlen"},null,null,null,null,null,null,null,null,null,null,null,null,null,null,null,null,null,null,null,null,null,null,null,null,null,null,null,null,null,null,null,{"$f":"SUM(B87:AF87)","v":0}]
[{"$f":"Start!$B$12","v":"Weiterbildung"},null,null,null,null,null,null,null,null,null,null,null,null,null,null,null,null,null,null,null,null,null,null,null,null,null,null,null,null,null,null,null,0]
[{"$f":"Start!$B$13","v":"Stundenkonto"},null,null,null,null,null,null,null,null,null,null,null,null,null,null,null,null,null,null,null,null,null,null,null,null,null,null,null,null,null,null,null,0]
["Monat","1.","2.","3.","4.","5.","6.","7.","8.","9.","10.","11.","12.","13.","14.","15.","16.","17.","18.","19.","20.","21.","22.","23.","24.","25.","26.","27.","28.","29.","30.",null,"Stunden"]
["September",{"$f":"Tabelle1!B91","v":"Sa"},{"$f":"Tabelle1!C91","v":"So"},{"$f":"Tabelle1!D91","v":"Mo"},{"$f":"Tabelle1!E91","v":"Di"},{"$f":"Tabelle1!F91","v":"Mi"},{"$f":"Tabelle1!G91","v":"Do"},{"$f":"Tabelle1!H91","v":"Fr"},{"$f":"B91","v":"Sa"},"So","Mo","Di","Mi","Do","Fr","Sa","So","Mo","Di","Mi","Do","Fr","Sa","So","Mo","Di","Mi","Do","Fr","Sa","So",null,"gesamt"]
[{"$f":"Start!$B$5","v":"Arbeitsstunden"},null,null,null,null,null,null,null,null,null,null,null,null,null,null,null,null,null,null,null,null,null,null,null,null,null,null,null,null,null,null,null,{"$f":"SUM(B92:AF92)","v":0}]
[{"$f":"Start!$B$6","v":"Kurzarbeit"},null,null,null,null,null,null,null,null,null,null,null,null,null,null,null,null,null,null,null,null,null,null,null,null,null,null,null,null,null,null,null,0]
[{"$f":"Start!$B$7","v":"bez. Freistellung"},null,null,null,null,null,null,null,null,null,null,null,null,null,null,null,null,null,null,null,null,null,null,null,null,null,null,null,null,null,null,null,0]
[{"$f":"Start!$B$8","v":"Urlaub"},null,null,null,null,null,null,null,null,null,null,null,null,null,null,null,null,null,null,null,null,null,null,null,null,null,null,null,null,null,null,null,0]
[{"$f":"Start!$B$9","v":"Krank mit Lfz"},null,null,null,null,null,null,null,null,null,null,null,null,null,null,null,null,null,null,null,null,null,null,null,null,null,null,null,null,null,null,null,0]
[{"$f":"Start!$B$10","v":"Krank ohne Lfz"},null,null,null,null,null,null,null,null,null,null,null,null,null,null,null,null,null,null,null,null,null,null,null,null,null,null,null,null,null,null,null,{"$f":"SUM(B97:AF97)","v":0}]
[{"$f":"Start!$B$11","v":"unentsch.Fehlen"},null,null,null,null,null,null,null,null,null,null,null,null,null,null,null,null,null,null,null,null,null,null,null,null,null,null,null,null,null,null,null,{"$f":"SUM(B98:AF98)","v":0}]
[{"$f":"Start!$B$12","v":"Weiterbildung"},null,null,null,null,null,null,null,null,null,null,null,null,null,null,null,null,null,null,null,null,null,null,null,null,null,null,null,null,null,null,null,0]
[{"$f":"Start!$B$13","v":"Stundenkonto"},null,null,null,null,null,null,null,null,null,null,null,null,null,null,null,null,null,null,null,null,null,null,null,null,null,null,null,null,null,null,null,0]
["Monat","1.","2.","3.","4.","5.","6.","7.","8.","9.","10.","11.","12.","13.","14.","15.","16.","17.","18.","19.","20.","21.","22.","23.","24.","25.","26.","27.","28.","29.","30.","31.","Stunden"]
["Oktober",{"$f":"Tabelle1!B102","v":"Mo"},{"$f":"Tabelle1!C102","v":"Di"},{"$f":"Tabelle1!D102","v":"Mi"},{"$f":"Tabelle1!E102","v":"Do"},{"$f":"Tabelle1!F102","v":"Fr"},{"$f":"Tabelle1!G102","v":"Sa"},{"$f":"Tabelle1!H102","v":"So"},{"$f":"B102","v":"Mo"},"Di","Mi","Do","Fr","Sa","So","Mo","Di","Mi","Do","Fr","Sa","So","Mo","Di","Mi","Do","Fr","Sa","So","Mo","Di","Mi","gesamt"]
[{"$f":"Start!$B$5","v":"Arbeitsstunden"},null,null,null,null,null,null,null,null,null,null,null,null,null,null,null,null,null,null,null,null,null,null,null,null,null,null,null,null,null,null,null,{"$f":"SUM(B103:AF103)","v":0}]
[{"$f":"Start!$B$6","v":"Kurzarbeit"},null,null,null,null,null,null,null,null,null,null,null,null,null,null,null,null,null,null,null,null,null,null,null,null,null,null,null,null,null,null,null,0]
[{"$f":"Start!$B$7","v":"bez. Freistellung"},null,null,null,null,null,null,null,null,null,null,null,null,null,null,null,null,null,null,null,null,null,null,null,null,null,null,null,null,null,null,null,0]
[{"$f":"Start!$B$8","v":"Urlaub"},null,null,null,null,null,null,null,null,null,null,null,null,null,null,null,null,null,null,null,null,null,null,null,null,null,null,null,null,null,null,null,0]
[{"$f":"Start!$B$9","v":"Krank mit Lfz"},null,null,null,null,null,null,null,null,null,null,null,null,null,null,null,null,null,null,null,null,null,null,null,null,null,null,null,null,null,null,null,0]
[{"$f":"Start!$B$10","v":"Krank ohne Lfz"},null,null,null,null,null,null,null,null,null,null,null,null,null,null,null,null,null,null,null,null,null,null,null,null,null,null,null,null,null,null,null,{"$f":"SUM(B108:AF108)","v":0}]
[{"$f":"Start!$B$11","v":"unentsch.Fehlen"},null,null,null,null,null,null,null,null,null,null,null,null,null,null,null,null,null,null,null,null,null,null,null,null,null,null,null,null,null,null,null,{"$f":"SUM(B109:AF109)","v":0}]
[{"$f":"Start!$B$12","v":"Weiterbildung"},null,null,null,null,null,null,null,null,null,null,null,null,null,null,null,null,null,null,null,null,null,null,null,null,null,null,null,null,null,null,null,0]
[{"$f":"Start!$B$13","v":"Stundenkonto"},null,null,null,null,null,null,null,null,null,null,null,null,null,null,null,null,null,null,null,null,null,null,null,null,null,null,null,null,null,null,null,0]
["Monat","1.","2.","3.","4.","5.","6.","7.","8.","9.","10.","11.","12.","13.","14.","15.","16.","17.","18.","19.","20.","21.","22.","23.","24.","25.","26.","27.","28.","29.","30.",null,"Stunden"]
["November",{"$f":"Tabelle1!B113","v":"Do"},{"$f":"Tabelle1!C113","v":"Fr"},{"$f":"Tabelle1!D113","v":"Sa"},{"$f":"Tabelle1!E113","v":"So"},{"$f":"Tabelle1!F113","v":"Mo"},{"$f":"Tabelle1!G113","v":"Di"},{"$f":"Tabelle1!H113","v":"Mi"},{"$f":"B113","v":"Do"},"Fr","Sa","So","Mo","Di","Mi","Do","Fr","Sa","So","Mo","Di","Mi","Do","Fr","Sa","So","Mo","Di","Mi","Do","Fr",null,"gesamt"]
[{"$f":"Start!$B$5","v":"Arbeitsstunden"},null,null,null,null,null,null,null,null,null,null,null,null,null,null,null,null,null,null,null,null,null,null,null,null,null,null,null,null,null,null,null,{"$f":"SUM(B114:AF114)","v":0}]
[{"$f":"Start!$B$6","v":"Kurzarbeit"},null,null,null,null,null,null,null,null,null,null,null,null,null,null,null,null,null,null,null,null,null,null,null,null,null,null,null,null,null,null,null,0]
[{"$f":"Start!$B$7","v":"bez. Freistellung"},null,null,null,null,null,null,null,null,null,null,null,null,null,null,null,null,null,null,null,null,null,null,null,null,null,null,null,null,null,null,null,0]
[{"$f":"Start!$B$8","v":"Urlaub"},null,null,null,null,null,null,null,null,null,null,null,null,null,null,null,null,null,null,null,null,null,null,null,null,null,null,null,null,null,null,null,0]
[{"$f":"Start!$B$9","v":"Krank mit Lfz"},null,null,null,null,null,null,null,null,null,null,null,null,null,null,null,null,null,null,null,null,null,null,null,null,null,null,null,null,null,null,null,0]
[{"$f":"Start!$B$10","v":"Krank ohne Lfz"},null,null,null,null,null,null,null,null,null,null,null,null,null,null,null,null,null,null,null,null,null,null,null,null,null,null,null,null,null,null,null,{"$f":"SUM(B119:AF119)","v":0}]
[{"$f":"Start!$B$11","v":"unentsch.Fehlen"},null,null,null,null,null,null,null,null,null,null,null,null,null,null,null,null,null,null,null,null,null,null,null,null,null,null,null,null,null,null,null,{"$f":"SUM(B120:AF120)","v":0}]
[{"$f":"Start!$B$12","v":"Weiterbildung"},null,null,null,null,null,null,null,null,null,null,null,null,null,null,null,null,null,null,null,null,null,null,null,null,null,null,null,null,null,null,null,0]
[{"$f":"Start!$B$13","v":"Stundenkonto"},null,null,null,null,null,null,null,null,null,null,null,null,null,null,null,null,null,null,null,null,null,null,null,null,null,null,null,null,null,null,null,0]
["Monat","1.","2.","3.","4.","5.","6.","7.","8.","9.","10.","11.","12.","13.","14.","15.","16.","17.","18.","19.","20.","21.","22.","23.","24.","25.","26.","27.","28.","29.","30.","31.","Stunden"]
["Dezember",{"$f":"Tabelle1!B124","v":"Sa"},{"$f":"Tabelle1!C124","v":"So"},{"$f":"Tabelle1!D124","v":"Mo"},{"$f":"Tabelle1!E124","v":"Di"},{"$f":"Tabelle1!F124","v":"Mi"},{"$f":"Tabelle1!G124","v":"Do"},{"$f":"Tabelle1!H124","v":"Fr"},{"$f":"B124","v":"Sa"},"So","Mo","Di","Mi","Do","Fr","Sa","So","Mo","Di","Mi","Do","Fr","Sa","So","Mo","Di","Mi","Do","Fr","Sa","So","Mo","gesamt"]
[{"$f":"Start!$B$5","v":"Arbeitsstunden"},null,null,null,null,null,null,null,null,null,null,null,null,null,null,null,null,null,null,null,null,null,null,null,null,null,null,null,null,null,null,null,{"$f":"SUM(B125:AF125)","v":0}]
[{"$f":"Start!$B$6","v":"Kurzarbeit"},null,null,null,null,null,null,null,null,null,null,null,null,null,null,null,null,null,null,null,null,null,null,null,null,null,null,null,null,null,null,null,0]
[{"$f":"Start!$B$7","v":"bez. Freistellung"},null,null,null,null,null,null,null,null,null,null,null,null,null,null,null,null,null,null,null,null,null,null,null,null,null,null,null,null,null,null,null,0]
[{"$f":"Start!$B$8","v":"Urlaub"},null,null,null,null,null,null,null,null,null,null,null,null,null,null,null,null,null,null,null,null,null,null,null,null,null,null,null,null,null,null,null,0]
[{"$f":"Start!$B$9","v":"Krank mit Lfz"},null,null,null,null,null,null,null,null,null,null,null,null,null,null,null,null,null,null,null,null,null,null,null,null,null,null,null,null,null,null,null,0]
[{"$f":"Start!$B$10","v":"Krank ohne Lfz"},null,null,null,null,null,null,null,null,null,null,null,null,null,null,null,null,null,null,null,null,null,null,null,null,null,null,null,null,null,null,null,{"$f":"SUM(B130:AF130)","v":0}]
[{"$f":"Start!$B$11","v":"unentsch.Fehlen"},null,null,null,null,null,null,null,null,null,null,null,null,null,null,null,null,null,null,null,null,null,null,null,null,null,null,null,null,null,null,null,{"$f":"SUM(B131:AF131)","v":0}]
[{"$f":"Start!$B$12","v":"Weiterbildung"},null,null,null,null,null,null,null,null,null,null,null,null,null,null,null,null,null,null,null,null,null,null,null,null,null,null,null,null,null,null,null,0]
[{"$f":"Start!$B$13","v":"Stundenkonto"},null,null,null,null,null,null,null,null,null,null,null,null,null,null,null,null,null,null,null,null,null,null,null,null,null,null,null,null,null,null,null,0]
[]
["Jahresrechnung:"]
[{"$f":"Start!$B$5","v":"Arbeitsstunden"},null,null,null,null,null,null,{"$f":"SUM(AG4+AG15+AG26+AG37+AG48+AG59+AG70+AG81+AG92+AG103+AG114+AG125)","v":0}]
[{"$f":"Start!$B$6","v":"Kurzarbeit"},null,null,null,null,null,null,{"$f":"SUM(AG5+AG16+AG27+AG38+AG49+AG60+AG71+AG82+AG93+AG104+AG115+AG126)","v":0}]
[{"$f":"Start!$B$7","v":"bez. Freistellung"},null,null,null,null,null,null,{"$f":"SUM(AG6+AG17+AG28+AG39+AG50+AG61+AG72+AG83+AG94+AG105+AG116+AG127)","v":0}]
[{"$f":"Start!$B$8","v":"Urlaub"},null,null,null,null,null,null,{"$f":"SUM(AG7+AG18+AG29+AG39+AG51+AG62+AG73+AG84+AG95+AG106+AG117+AG128)","v":0}]
[{"$f":"Start!$B$9","v":"Krank mit Lfz"},null,null,null,null,null,null,{"$f":"SUM(AG8+AG19+AG30+AG41+AG52+AG63+AG74+AG85+AG96+AG107+AG118+AG129)","v":0}]
[{"$f":"Start!$B$10","v":"Krank ohne Lfz"},null,null,null,null,null,null,{"$f":"SUM(AG9+AG20+AG31+AG42+AG53+AG64+AG75+AG86+AG97+AG108+AG119+AG130)","v":0}]
[{"$f":"Start!$B$11","v":"unentsch.Fehlen"},null,null,null,null,null,null,{"$f":"SUM(AG10+AG21+AG32+AG43+AG54+AG65+AG76+AG87+AG98+AG109+AG120+AG131)","v":0}]
[{"$f":"Start!$B$12","v":"Weiterbildung"},null,null,null,null,null,null,{"$f":"SUM(AG11+AG22+AG33+AG44+AG55+AG66+AG77+AG88+AG99+AG110+AG121+AG132)","v":0}]
[{"$f":"Start!$B$13","v":"Stundenkonto"},null,null,null,null,null,null,{"$f":"SUM(AG12+AG23+AG34+AG45+AG56+AG67+AG78+AG89+AG100+AG111+AG122+AG133)","v":0}]
[null,null,null,null,null,null," ",{"$f":"SUM(H136:AG144)","v":0}]
["Statistik: Prozentualer Anteil zur Gesamtzeit "]
[{"$f":"Start!$B$5","v":"Arbeitsstunden"},null,null,null,{"$f":"IF(H145=0,G145,H136/H145)","v":" "}]
[{"$f":"Start!$B$6","v":"Kurzarbeit"},null,null,null,{"$f":"IF(H145=0,G145,H137/H145)","v":" "}]
[{"$f":"Start!$B$7","v":"bez. Freistellung"},null,null,null,{"$f":"IF(H145=0,G145,H138/H145)","v":" "}]
[{"$f":"Start!$B$8","v":"Urlaub"},null,null,null,{"$f":"IF(H145=0,G145,H139/H145)","v":" "}]
[{"$f":"Start!$B$9","v":"Krank mit Lfz"},null,null,null,{"$f":"IF(H145=0,G145,H140/H145)","v":" "}]
[{"$f":"Start!$B$10","v":"Krank ohne Lfz"},null,null,null,{"$f":"IF(H145=0,G145,H141/H145)","v":" "}]
[{"$f":"Start!$B$11","v":"unentsch.Fehlen"},null,null,null,{"$f":"IF(H145=0,G145,H142/H145)","v":" "}]
[{"$f":"Start!$B$12","v":"Weiterbildung"},null,null,null,{"$f":"IF(H145=0,G145,H143/H145)","v":" "}]
[{"$f":"Start!$B$13","v":"Stundenkonto"},null,null,null,{"$f":"IF(H145=0,G145,H144/H145)","v":" "}]

{"sheet":"Tabelle3","index":5,"n_rows":155,"n_cols":33,"rows_kept":155,"cut":false,"hidden":false,"merged":[[138,7,138,32],[12,30,13,30],[12,31,13,31],[143,0,143,6],[143,7,143,32],[141,0,141,6],[141,7,141,32],[142,0,142,6],[142,7,142,32],[139,0,139,6],[134,0,134,31],[135,0,135,6],[135,7,135,32],[136,0,136,6],[136,7,136,32],[144,7,144,32],[145,0,145,9],[146,0,146,3],[146,4,146,9],[0,0,0,4],[0,5,0,9],[0,10,0,13],[0,29,0,32],[0,15,0,23],[0,24,0,28],[140,0,140,6],[140,7,140,32],[137,0,137,6],[137,7,137,32],[138,0,138,6],[139,7,139,32],[149,0,149,3],[149,4,149,9],[150,0,150,3],[150,4,150,9],[147,0,147,3],[147,4,147,9],[148,0,148,3],[148,4,148,9],[153,0,153,3],[153,4,153,9],[154,0,154,3],[154,4,154,9],[151,0,151,3],[151,4,151,9],[152,0,152,3],[152,4,152,9]]}
["Abrechnungsjahr:",null,null,null,null,{"$f":"Start!B1","v":2012},null,null,null,null,"Name:",null,null,null,null,{"$f":"Start!B24","v":0},null,null,null,null,null,null,null,null,{"$f":"Start!C24","v":0},null,null,null,null,"zurück"]
["Monat","1.","2.","3.","4.","5.","6.","7.","8.","9.","10.","11.","12.","13.","14.","15.","16.","17.","18.","19.","20.","21.","22.","23.","24.","25.","26.","27.","28.","29.","30.","31.","Stunden"]
["Januar",{"$f":"Tabelle1!B3","v":"So"},{"$f":"Tabelle1!C3","v":"Mo"},{"$f":"Tabelle1!D3","v":"Di"},{"$f":"Tabelle1!E3","v":"Mi"},{"$f":"Tabelle1!F3","v":"Do"},{"$f":"Tabelle1!G3","v":"Fr"},{"$f":"Tabelle1!H3","v":"Sa"},{"$f":"B3","v":"So"},"Mo","Di","Mi","Do","Fr","Sa","So","Mo","Di","Mi","Do","Fr","Sa","So","Mo","Di","Mi","Do","Fr","Sa","So","Mo","Di","gesamt"]
[{"$f":"Start!$B$5","v":"Arbeitsstunden"},null,null,null,null,null,null,null,null,null,null,null,null,null,null,null,null,null,null,null,null,null,null,null,null,null,null,null,null,null,null,null,{"$f":"SUM(B4:AF4)","v":0}]
[{"$f":"Start!$B$6","v":"Kurzarbeit"},null,null,null,null,null,null,null,null,null,null,null,null,null,null,null,null,null,null,null,null,null,null,null,null,null,null,null,null,null,null,null,0]
[{"$f":"Start!$B$7","v":"bez. Freistellung"},null,null,null,null,null,null,null,null,null,null,null,null,null,null,null,null,null,null,null,null,null,null,null,null,null,null,null,null,null,null,null,0]
[{"$f":"Start!$B$8","v":"Urlaub"},null,null,null,null,null,null,null,null,null,null,null,null,null,null,null,null,null,null,null,null,null,null,null,null,null,null,null,null,null,null,null,0]
[{"$f":"Start!$B$9","v":"Krank mit Lfz"},null,null,null,null,null,null,null,null,null,null,null,null,null,null,null,null,null,null,null,null,null,null,null,null,null,null,null,null,null,null,null,0]
[{"$f":"Start!$B$10","v":"Krank ohne Lfz"},null,null,null,null,null,null,null,null,null,null,null,null,null,null,null,null,null,null,null,null,null,null,null,null,null,null,null,null,null,null,null,{"$f":"SUM(B9:AF9)","v":0}]
[{"$f":"Start!$B$11","v":"unentsch.Fehlen"},null,null,null,null,null,null,null,null,null,null,null,null,null,null,null,null,null,null,null,null,null,null,null,null,null,null,null,null,null,null,null,{"$f":"SUM(B10:AF10)","v":0}]
[{"$f":"Start!$B$12","v":"Weiterbildung"},null,null,null,null,null,null,null,null,null,null,null,null,null,null,null,null,null,null,null,null,null,null,null,null,null,null,null,null,null,null,null,0]
[{"$f":"Start!$B$13","v":"Stundenkonto"},null,null,null,null,null,null,null,null,null,null,null,null,null,null,null,null,null,null,null,null,null,null,null,null,null,null,null,null,null,null,null,0]
["Monat","1.","2.","3.","4.","5.","6.","7.","8.","9.","10.","11.","12.","13.","14.","15.","16.","17.","18.","19.","20.","21.","22.","23.","24.","25.","26.","27.","28.",{"$f":"Tabelle1!AD13","v":"29."},null,null,"Stunden"]
["Februar",{"$f":"Tabelle1!B14","v":"Mi"},{"$f":"Tabelle1!C14","v":"Do"},{"$f":"Tabelle1!D14","v":"Fr"},{"$f":"Tabelle1!E14","v":"Sa"},{"$f":"Tabelle1!F14","v":"So"},{"$f":"Tabelle1!G14","v":"Mo"},{"$f":"Tabelle1!H14","v":"Di"},{"$f":"B14","v":"Mi"},"Do","Fr","Sa","So","Mo","Di","Mi","Do","Fr","Sa","So","Mo","Di","Mi","Do","Fr","Sa","So","Mo","Di",{"$f":"Tabelle1!AD14","v":"Mi"},null,null,"gesamt"]
[{"$f":"Start!$B$5","v":"Arbeitsstunden"},null,null,null,null,null,null,null,null,null,null,null,null,null,null,null,null,null,null,null,null,null,null,null,null,null,null,null,null,null,null,null,{"$f":"SUM(B15:AF15)","v":0}]
[{"$f":"Start!$B$6","v":"Kurzarbeit"},null,null,null,null,null,null,null,null,null,null,null,null,null,null,null,null,null,null,null,null,null,null,null,null,null,null,null,null,null,null,null,0]
[{"$f":"Start!$B$7","v":"bez. Freistellung"},null,null,null,null,null,null,null,null,null,null,null,null,null,null,null,null,null,null,null,null,null,null,null,null,null,null,null,null,null,null,null,0]
[{"$f":"Start!$B$8","v":"Urlaub"},null,null,null,null,null,null,null,null,null,null,null,null,null,null,null,null,null,null,null,null,null,null,null,null,null,null,null,null,null,null,null,0]
[{"$f":"Start!$B$9","v":"Krank mit Lfz"},null,null,null,null,null,null,null,null,null,null,null,null,null,null,null,null,null,null,null,null,null,null,null,null,null,null,null,null,null,null,null,0]
[{"$f":"Start!$B$10","v":"Krank ohne Lfz"},null,null,null,null,null,null,null,null,null,null,null,null,null,null,null,null,null,null,null,null,null,null,null,null,null,null,null,null,null,null,null,{"$f":"SUM(B20:AF20)","v":0}]
[{"$f":"Start!$B$11","v":"unentsch.Fehlen"},null,null,null,null,null,null,null,null,null,null,null,null,null,null,null,null,null,null,null,null,null,null,null,null,null,null,null,null,null,null,null,{"$f":"SUM(B21:AF21)","v":0}]
[{"$f":"Start!$B$12","v":"Weiterbildung"},null,null,null,null,null,null,null,null,null,null,null,null,null,null,null,null,null,null,null,null,null,null,null,null,null,null,null,null,null,null,null,0]
[{"$f":"Start!$B$13","v":"Stundenkonto"},null,null,null,null,null,null,null,null,null,null,null,null,null,null,null,null,null,null,null,null,null,null,null,null,null,null,null,null,null,null,null,0]
["Monat","1.","2.","3.","4.","5.","6.","7.","8.","9.","10.","11.","12.","13.","14.","15.","16.","17.","18.","19.","20.","21.","22.","23.","24.","25.","26.","27.","28.","29.","30.","31.","Stunden"]
["März",{"$f":"Tabelle1!B25","v":"Do"},{"$f":"Tabelle1!C25","v":"Fr"},{"$f":"Tabelle1!D25","v":"Sa"},{"$f":"Tabelle1!E25","v":"So"},{"$f":"Tabelle1!F25","v":"Mo"},{"$f":"Tabelle1!G25","v":"Di"},{"$f":"Tabelle1!H25","v":"Mi"},{"$f":"B25","v":"Do"},"Fr","Sa","So","Mo","Di","Mi","Do","Fr","Sa","So","Mo","Di","Mi","Do","Fr","Sa","So","Mo","Di","Mi","Do","Fr","Sa","gesamt"]
[{"$f":"Start!$B$5","v":"Arbeitsstunden"},null,null,null,null,null,null,null,null,null,null,null,null,null,null,null,null,null,null,null,null,null,null,null,null,null,null,null,null,null,null,null,{"$f":"SUM(B26:AF26)","v":0}]
[{"$f":"Start!$B$6","v":"Kurzarbeit"},null,null,null,null,null,null,null,null,null,null,null,null,null,null,null,null,null,null,null,null,null,null,null,null,null,null,null,null,null,null,null,0]
[{"$f":"Start!$B$7","v":"bez. Freistellung"},null,null,null,null,null,null,null,null,null,null,null,null,null,null,null,null,null,null,null,null,null,null,null,null,null,null,null,null,null,null,null,0]
[{"$f":"Start!$B$8","v":"Urlaub"},null,null,null,null,null,null,null,null,null,null,null,null,null,null,null,null,null,null,null,null,null,null,null,null,null,null,null,null,null,null,null,0]
[{"$f":"Start!$B$9","v":"Krank mit Lfz"},null,null,null,null,null,null,null,null,null,null,null,null,null,null,null,null,null,null,null,null,null,null,null,null,null,null,null,null,null,null,null,0]
[{"$f":"Start!$B$10","v":"Krank ohne Lfz"},null,null,null,null,null,null,null,null,null,null,null,null,null,null,null,null,null,null,null,null,null,null,null,null,null,null,null,null,null,null,null,{"$f":"SUM(B31:AF31)","v":0}]
[{"$f":"Start!$B$11","v":"unentsch.Fehlen"},null,null,null,null,null,null,null,null,null,null,null,null,null,null,null,null,null,null,null,null,null,null,null,null,null,null,null,null,null,null,null,{"$f":"SUM(B32:AF32)","v":0}]
[{"$f":"Start!$B$12","v":"Weiterbildung"},null,null,null,null,null,null,null,null,null,null,null,null,null,null,null,null,null,null,null,null,null,null,null,null,null,null,null,null,null,null,null,0]
[{"$f":"Start!$B$13","v":"Stundenkonto"},null,null,null,null,null,null,null,null,null,null,null,null,null,null,null,null,null,null,null,null,null,null,null,null,null,null,null,null,null,null,null,0]
["Monat","1.","2.","3.","4.","5.","6.","7.","8.","9.","10.","11.","12.","13.","14.","15.","16.","17.","18.","19.","20.","21.","22.","23.","24.","25.","26.","27.","28.","29.","30.",null,"Stunden"]
["April",{"$f":"Tabelle1!B36","v":"So"},{"$f":"Tabelle1!C36","v":"Mo"},{"$f":"Tabelle1!D36","v":"Di"},{"$f":"Tabelle1!E36","v":"Mi"},{"$f":"Tabelle1!F36","v":"Do"},{"$f":"Tabelle1!G36","v":"Fr"},{"$f":"Tabelle1!H36","v":"Sa"},{"$f":"B36","v":"So"},"Mo","Di","Mi","Do","Fr","Sa","So","Mo","Di","Mi","Do","Fr","Sa","So","Mo","Di","Mi","Do","Fr","Sa","So","Mo",null,"gesamt"]
[{"$f":"Start!$B$5","v":"Arbeitsstunden"},null,null,null,null,null,null,null,null,null,null,null,null,null,null,null,null,null,null,null,null,null,null,null,null,null,null,null,null,null,null,null,{"$f":"SUM(B37:AF37)","v":0}]
[{"$f":"Start!$B$6","v":"Kurzarbeit"},null,null,null,null,null,null,null,null,null,null,null,null,null,null,null,null,null,null,null,null,null,null,null,null,null,null,null,null,null,null,null,0]
[{"$f":"Start!$B$7","v":"bez. Freistellung"},null,null,null,null,null,null,null,null,null,null,null,null,null,null,null,null,null,null,null,null,null,null,null,null,null,null,null,null,null,null,null,0]
[{"$f":"Start!$B$8","v":"Urlaub"},null,null,null,null,null,null,null,null,null,null,null,null,null,null,null,null,null,null,null,null,null,null,null,null,null,null,null,null,null,null,null,0]
[{"$f":"Start!$B$9","v":"Krank mit Lfz"},null,null,null,null,null,null,null,null,null,null,null,null,null,null,null,null,null,null,null,null,null,null,null,null,null,null,null,null,null,null,null,0]
[{"$f":"Start!$B$10","v":"Krank ohne Lfz"},null,null,null,null,null,null,null,null,null,null,null,null,null,null,null,null,null,null,null,null,null,null,null,null,null,null,null,null,null,null,null,{"$f":"SUM(B42:AF42)","v":0}]
[{"$f":"Start!$B$11","v":"unentsch.Fehlen"},null,null,null,null,null,null,null,null,null,null,null,null,null,null,null,null,null,null,null,null,null,null,null,null,null,null,null,null,null,null,null,{"$f":"SUM(B43:AF43)","v":0}]
[{"$f":"Start!$B$12","v":"Weiterbildung"},null,null,null,null,null,null,null,null,null,null,null,null,null,null,null,null,null,null,null,null,null,null,null,null,null,null,null,null,null,null,null,0]
[{"$f":"Start!$B$13","v":"Stundenkonto"},null,null,null,null,null,null,null,null,null,null,null,null,null,null,null,null,null,null,null,null,null,null,null,null,null,null,null,null,null,null,null,0]
["Monat","1.","2.","3.","4.","5.","6.","7.","8.","9.","10.","11.","12.","13.","14.","15.","16.","17.","18.","19.","20.","21.","22.","23.","24.","25.","26.","27.","28.","29.","30.","31.","Stunden"]
["Mai",{"$f":"Tabelle1!B47","v":"Di"},{"$f":"Tabelle1!C47","v":"Mi"},{"$f":"Tabelle1!D47","v":"Do"},{"$f":"Tabelle1!E47","v":"Fr"},{"$f":"Tabelle1!F47","v":"Sa"},{"$f":"Tabelle1!G47","v":"So"},{"$f":"Tabelle1!H47","v":"Mo"},{"$f":"B47","v":"Di"},"Mi","Do","Fr","Sa","So","Mo","Di","Mi","Do","Fr","Sa","So","Mo","Di","Mi","Do","Fr","Sa","So","Mo","Di","Mi","Do","gesamt"]
[{"$f":"Start!$B$5","v":"Arbeitsstunden"},null,null,null,null,null,null,null,null,null,null,null,null,null,null,null,null,null,null,null,null,null,null,null,null,null,null,null,null,null,null,null,{"$f":"SUM(B48:AF48)","v":0}]
[{"$f":"Start!$B$6","v":"Kurzarbeit"},null,null,null,null,null,null,null,null,null,null,null,null,null,null,null,null,null,null,null,null,null,null,null,null,null,null,null,null,null,null,null,0]
[{"$f":"Start!$B$7","v":"bez. Freistellung"},null,null,null,null,null,null,null,null,null,null,null,null,null,null,null,null,null,null,null,null,null,null,null,null,null,null,null,null,null,null,null,0]
[{"$f":"Start!$B$8","v":"Urlaub"},null,null,null,null,null,null,null,null,null,null,null,null,null,null,null,null,null,null,null,null,null,null,null,null,null,null,null,null,null,null,null,0]
[{"$f":"Start!$B$9","v":"Krank mit Lfz"},null,null,null,null,null,null,null,null,null,null,null,null,null,null,null,null,null,null,null,null,null,null,null,null,null,null,null,null,null,null,null,0]
[{"$f":"Start!$B$10","v":"Krank ohne Lfz"},null,null,null,null,null,null,null,null,null,null,null,null,null,null,null,null,null,null,null,null,null,null,null,null,null,null,null,null,null,null,null,{"$f":"SUM(B53:AF53)","v":0}]
[{"$f":"Start!$B$11","v":"unentsch.Fehlen"},null,null,null,null,null,null,null,null,null,null,null,null,null,null,null,null,null,null,null,null,null,null,null,null,null,null,null,null,null,null,null,{"$f":"SUM(B54:AF54)","v":0}]
[{"$f":"Start!$B$12","v":"Weiterbildung"},null,null,null,null,null,null,null,null,null,null,null,null,null,null,null,null,null,null,null,null,null,null,null,null,null,null,null,null,null,null,null,0]
[{"$f":"Start!$B$13","v":"Stundenkonto"},null,null,null,null,null,null,null,null,null,null,null,null,null,null,null,null,null,null,null,null,null,null,null,null,null,null,null,null,null,null,null,0]
["Monat","1.","2.","3.","4.","5.","6.","7.","8.","9.","10.","11.","12.","13.","14.","15.","16.","17.","18.","19.","20.","21.","22.","23.","24.","25.","26.","27.","28.","29.","30.",null,"Stunden"]
["Juni",{"$f":"Tabelle1!B58","v":"Fr"},{"$f":"Tabelle1!C58","v":"Sa"},{"$f":"Tabelle1!D58","v":"So"},{"$f":"Tabelle1!E58","v":"Mo"},{"$f":"Tabelle1!F58","v":"Di"},{"$f":"Tabelle1!G58","v":"Mi"},{"$f":"Tabelle1!H58","v":"Do"},{"$f":"B58","v":"Fr"},"Sa","So","Mo","Di","Mi","Do","Fr","Sa","So","Mo","Di","Mi","Do","Fr","Sa","So","Mo","Di","Mi","Do","Fr","Sa",null,"gesamt"]
[{"$f":"Start!$B$5","v":"Arbeitsstunden"},null,null,null,null,null,null,null,null,null,null,null,null,null,null,null,null,null,null,null,null,null,null,null,null,null,null,null,null,null,null,null,{"$f":"SUM(B59:AF59)","v":0}]
[{"$f":"Start!$B$6","v":"Kurzarbeit"},null,null,null,null,null,null,null,null,null,null,null,null,null,null,null,null,null,null,null,null,null,null,null,null,null,null,null,null,null,null,null,0]
[{"$f":"Start!$B$7","v":"bez. Freistellung"},null,null,null,null,null,null,null,null,null,null,null,null,null,null,null,null,null,null,null,null,null,null,null,null,null,null,null,null,null,null,null,0]
[{"$f":"Start!$B$8","v":"Urlaub"},null,null,null,null,null,null,null,null,null,null,null,null,null,null,null,null,null,null,null,null,null,null,null,null,null,null,null,null,null,null,null,0]
[{"$f":"Start!$B$9","v":"Krank mit Lfz"},null,null,null,null,null,null,null,null,null,null,null,null,null,null,null,null,null,null,null,null,null,null,null,null,null,null,null,null,null,null,null,0]
[{"$f":"Start!$B$10","v":"Krank ohne Lfz"},null,null,null,null,null,null,null,null,null,null,null,null,null,null,null,null,null,null,null,null,null,null,null,null,null,null,null,null,null,null,null,{"$f":"SUM(B64:AF64)","v":0}]
[{"$f":"Start!$B$11","v":"unentsch.Fehlen"},null,null,null,null,null,null,null,null,null,null,null,null,null,null,null,null,null,null,null,null,null,null,null,null,null,null,null,null,null,null,null,{"$f":"SUM(B65:AF65)","v":0}]
[{"$f":"Start!$B$12","v":"Weiterbildung"},null,null,null,null,null,null,null,null,null,null,null,null,null,null,null,null,null,null,null,null,null,null,null,null,null,null,null,null,null,null,null,0]
[{"$f":"Start!$B$13","v":"Stundenkonto"},null,null,null,null,null,null,null,null,null,null,null,null,null,null,null,null,null,null,null,null,null,null,null,null,null,null,null,null,null,null,null,0]
["Monat","1.","2.","3.","4.","5.","6.","7.","8.","9.","10.","11.","12.","13.","14.","15.","16.","17.","18.","19.","20.","21.","22.","23.","24.","25.","26.","27.","28.","29.","30.","31.","Stunden"]
["Juli",{"$f":"Tabelle1!B69","v":"So"},{"$f":"Tabelle1!C69","v":"Mo"},{"$f":"Tabelle1!D69","v":"Di"},{"$f":"Tabelle1!E69","v":"Mi"},{"$f":"Tabelle1!F69","v":"Do"},{"$f":"Tabelle1!G69","v":"Fr"},{"$f":"Tabelle1!H69","v":"Sa"},{"$f":"B69","v":"So"},"Mo","Di","Mi","Do","Fr","Sa","So","Mo","Di","Mi","Do","Fr","Sa","So","Mo","Di","Mi","Do","Fr","Sa","So","Mo","Di","gesamt"]
[{"$f":"Start!$B$5","v":"Arbeitsstunden"},null,null,null,null,null,null,null,null,null,null,null,null,null,null,null,null,null,null,null,null,null,null,null,null,null,null,null,null,null,null,null,{"$f":"SUM(B70:AF70)","v":0}]
[{"$f":"Start!$B$6","v":"Kurzarbeit"},null,null,null,null,null,null,null,null,null,null,null,null,null,null,null,null,null,null,null,null,null,null,null,null,null,null,null,null,null,null,null,0]
[{"$f":"Start!$B$7","v":"bez. Freistellung"},null,null,null,null,null,null,null,null,null,null,null,null,null,null,null,null,null,null,null,null,null,null,null,null,null,null,null,null,null,null,null,0]
[{"$f":"Start!$B$8","v":"Urlaub"},null,null,null,null,null,null,null,null,null,null,null,null,null,null,null,null,null,null,null,null,null,null,null,null,null,null,null,null,null,null,null,0]
[{"$f":"Start!$B$9","v":"Krank mit Lfz"},null,null,null,null,null,null,null,null,null,null,null,null,null,null,null,null,null,null,null,null,null,null,null,null,null,null,null,null,null,null,null,0]
[{"$f":"Start!$B$10","v":"Krank ohne Lfz"},null,null,null,null,null,null,null,null,null,null,null,null,null,null,null,null,null,null,null,null,null,null,null,null,null,null,null,null,null,null,null,{"$f":"SUM(B75:AF75)","v":0}]
[{"$f":"Start!$B$11","v":"unentsch.Fehlen"},null,null,null,null,null,null,null,null,null,null,null,null,null,null,null,null,null,null,null,null,null,null,null,null,null,null,null,null,null,null,null,{"$f":"SUM(B76:AF76)","v":0}]
[{"$f":"Start!$B$12","v":"Weiterbildung"},null,null,null,null,null,null,null,null,null,null,null,null,null,null,null,null,null,null,null,null,null,null,null,null,null,null,null,null,null,null,null,0]
[{"$f":"Start!$B$13","v":"Stundenkonto"},null,null,null,null,null,null,null,null,null,null,null,null,null,null,null,null,null,null,null,null,null,null,null,null,null,null,null,null,null,null,null,0]
["Monat","1.","2.","3.","4.","5.","6.","7.","8.","9.","10.","11.","12.","13.","14.","15.","16.","17.","18.","19.","20.","21.","22.","23.","24.","25.","26.","27.","28.","29.","30.","31.","Stunden"]
["August",{"$f":"Tabelle1!B80","v":"Mi"},{"$f":"Tabelle1!C80","v":"Do"},{"$f":"Tabelle1!D80","v":"Fr"},{"$f":"Tabelle1!E80","v":"Sa"},{"$f":"Tabelle1!F80","v":"So"},{"$f":"Tabelle1!G80","v":"Mo"},{"$f":"Tabelle1!H80","v":"Di"},{"$f":"B80","v":"Mi"},"Do","Fr","Sa","So","Mo","Di","Mi","Do","Fr","Sa","So","Mo","Di","Mi","Do","Fr","Sa","So","Mo","Di","Mi","Do","Fr","gesamt"]
[{"$f":"Start!$B$5","v":"Arbeitsstunden"},null,null,null,null,null,null,null,null,null,null,null,null,null,null,null,null,null,null,null,null,null,null,null,null,null,null,null,null,null,null,null,{"$f":"SUM(B81:AF81)","v":0}]
[{"$f":"Start!$B$6","v":"Kurzarbeit"},null,null,null,null,null,null,null,null,null,null,null,null,null,null,null,null,null,null,null,null,null,null,null,null,null,null,null,null,null,null,null,0]
[{"$f":"Start!$B$7","v":"bez. Freistellung"},null,null,null,null,null,null,null,null,null,null,null,null,null,null,null,null,null,null,null,null,null,null,null,null,null,null,null,null,null,null,null,0]
[{"$f":"Start!$B$8","v":"Urlaub"},null,null,null,null,null,null,null,null,null,null,null,null,null,null,null,null,null,null,null,null,null,null,null,null,null,null,null,null,null,null,null,0]
[{"$f":"Start!$B$9","v":"Krank mit Lfz"},null,null,null,null,null,null,null,null,null,null,null,null,null,null,null,null,null,null,null,null,null,null,null,null,null,null,null,null,null,null,null,0]
[{"$f":"Start!$B$10","v":"Krank ohne Lfz"},null,null,null,null,null,null,null,null,null,null,null,null,null,null,null,null,null,null,null,null,null,null,null,null,null,null,null,null,null,null,null,{"$f":"SUM(B86:AF86)","v":0}]
[{"$f":"Start!$B$11","v":"unentsch.Fehlen"},null,null,null,null,null,null,null,null,null,null,null,null,null,null,null,null,null,null,null,null,null,null,null,null,null,null,null,null,null,null,null,{"$f":"SUM(B87:AF87)","v":0}]
[{"$f":"Start!$B$12","v":"Weiterbildung"},null,null,null,null,null,null,null,null,null,null,null,null,null,null,null,null,null,null,null,null,null,null,null,null,null,null,null,null,null,null,null,0]
[{"$f":"Start!$B$13","v":"Stundenkonto"},null,null,null,null,null,null,null,null,null,null,null,null,null,null,null,null,null,null,null,null,null,null,null,null,null,null,null,null,null,null,null,0]
["Monat","1.","2.","3.","4.","5.","6.","7.","8.","9.","10.","11.","12.","13.","14.","15.","16.","17.","18.","19.","20.","21.","22.","23.","24.","25.","26.","27.","28.","29.","30.",null,"Stunden"]
["September",{"$f":"Tabelle1!B91","v":"Sa"},{"$f":"Tabelle1!C91","v":"So"},{"$f":"Tabelle1!D91","v":"Mo"},{"$f":"Tabelle1!E91","v":"Di"},{"$f":"Tabelle1!F91","v":"Mi"},{"$f":"Tabelle1!G91","v":"Do"},{"$f":"Tabelle1!H91","v":"Fr"},{"$f":"B91","v":"Sa"},"So","Mo","Di","Mi","Do","Fr","Sa","So","Mo","Di","Mi","Do","Fr","Sa","So","Mo","Di","Mi","Do","Fr","Sa","So",null,"gesamt"]
[{"$f":"Start!$B$5","v":"Arbeitsstunden"},null,null,null,null,null,null,null,null,null,null,null,null,null,null,null,null,null,null,null,null,null,null,null,null,null,null,null,null,null,null,null,{"$f":"SUM(B92:AF92)","v":0}]
[{"$f":"Start!$B$6","v":"Kurzarbeit"},null,null,null,null,null,null,null,null,null,null,null,null,null,null,null,null,null,null,null,null,null,null,null,null,null,null,null,null,null,null,null,0]
[{"$f":"Start!$B$7","v":"bez. Freistellung"},null,null,null,null,null,null,null,null,null,null,null,null,null,null,null,null,null,null,null,null,null,null,null,null,null,null,null,null,null,null,null,0]
[{"$f":"Start!$B$8","v":"Urlaub"},null,null,null,null,null,null,null,null,null,null,null,null,null,null,null,null,null,null,null,null,null,null,null,null,null,null,null,null,null,null,null,0]
[{"$f":"Start!$B$9","v":"Krank mit Lfz"},null,null,null,null,null,null,null,null,null,null,null,null,null,null,null,null,null,null,null,null,null,null,null,null,null,null,null,null,null,null,null,0]
[{"$f":"Start!$B$10","v":"Krank ohne Lfz"},null,null,null,null,null,null,null,null,null,null,null,null,null,null,null,null,null,null,null,null,null,null,null,null,null,null,null,null,null,null,null,{"$f":"SUM(B97:AF97)","v":0}]
[{"$f":"Start!$B$11","v":"unentsch.Fehlen"},null,null,null,null,null,null,null,null,null,null,null,null,null,null,null,null,null,null,null,null,null,null,null,null,null,null,null,null,null,null,null,{"$f":"SUM(B98:AF98)","v":0}]
[{"$f":"Start!$B$12","v":"Weiterbildung"},null,null,null,null,null,null,null,null,null,null,null,null,null,null,null,null,null,null,null,null,null,null,null,null,null,null,null,null,null,null,null,0]
[{"$f":"Start!$B$13","v":"Stundenkonto"},null,null,null,null,null,null,null,null,null,null,null,null,null,null,null,null,null,null,null,null,null,null,null,null,null,null,null,null,null,null,null,0]
["Monat","1.","2.","3.","4.","5.","6.","7.","8.","9.","10.","11.","12.","13.","14.","15.","16.","17.","18.","19.","20.","21.","22.","23.","24.","25.","26.","27.","28.","29.","30.","31.","Stunden"]
["Oktober",{"$f":"Tabelle1!B102","v":"Mo"},{"$f":"Tabelle1!C102","v":"Di"},{"$f":"Tabelle1!D102","v":"Mi"},{"$f":"Tabelle1!E102","v":"Do"},{"$f":"Tabelle1!F102","v":"Fr"},{"$f":"Tabelle1!G102","v":"Sa"},{"$f":"Tabelle1!H102","v":"So"},{"$f":"B102","v":"Mo"},"Di","Mi","Do","Fr","Sa","So","Mo","Di","Mi","Do","Fr","Sa","So","Mo","Di","Mi","Do","Fr","Sa","So","Mo","Di","Mi","gesamt"]
[{"$f":"Start!$B$5","v":"Arbeitsstunden"},null,null,null,null,null,null,null,null,null,null,null,null,null,null,null,null,null,null,null,null,null,null,null,null,null,null,null,null,null,null,null,{"$f":"SUM(B103:AF103)","v":0}]
[{"$f":"Start!$B$6","v":"Kurzarbeit"},null,null,null,null,null,null,null,null,null,null,null,null,null,null,null,null,null,null,null,null,null,null,null,null,null,null,null,null,null,null,null,0]
[{"$f":"Start!$B$7","v":"bez. Freistellung"},null,null,null,null,null,null,null,null,null,null,null,null,null,null,null,null,null,null,null,null,null,null,null,null,null,null,null,null,null,null,null,0]
[{"$f":"Start!$B$8","v":"Urlaub"},null,null,null,null,null,null,null,null,null,null,null,null,null,null,null,null,null,null,null,null,null,null,null,null,null,null,null,null,null,null,null,0]
[{"$f":"Start!$B$9","v":"Krank mit Lfz"},null,null,null,null,null,null,null,null,null,null,null,null,null,null,null,null,null,null,null,null,null,null,null,null,null,null,null,null,null,null,null,0]
[{"$f":"Start!$B$10","v":"Krank ohne Lfz"},null,null,null,null,null,null,null,null,null,null,null,null,null,null,null,null,null,null,null,null,null,null,null,null,null,null,null,null,null,null,null,{"$f":"SUM(B108:AF108)","v":0}]
[{"$f":"Start!$B$11","v":"unentsch.Fehlen"},null,null,null,null,null,null,null,null,null,null,null,null,null,null,null,null,null,null,null,null,null,null,null,null,null,null,null,null,null,null,null,{"$f":"SUM(B109:AF109)","v":0}]
[{"$f":"Start!$B$12","v":"Weiterbildung"},null,null,null,null,null,null,null,null,null,null,null,null,null,null,null,null,null,null,null,null,null,null,null,null,null,null,null,null,null,null,null,0]
[{"$f":"Start!$B$13","v":"Stundenkonto"},null,null,null,null,null,null,null,null,null,null,null,null,null,null,null,null,null,null,null,null,null,null,null,null,null,null,null,null,null,null,null,0]
["Monat","1.","2.","3.","4.","5.","6.","7.","8.","9.","10.","11.","12.","13.","14.","15.","16.","17.","18.","19.","20.","21.","22.","23.","24.","25.","26.","27.","28.","29.","30.",null,"Stunden"]
["November",{"$f":"Tabelle1!B113","v":"Do"},{"$f":"Tabelle1!C113","v":"Fr"},{"$f":"Tabelle1!D113","v":"Sa"},{"$f":"Tabelle1!E113","v":"So"},{"$f":"Tabelle1!F113","v":"Mo"},{"$f":"Tabelle1!G113","v":"Di"},{"$f":"Tabelle1!H113","v":"Mi"},{"$f":"B113","v":"Do"},"Fr","Sa","So","Mo","Di","Mi","Do","Fr","Sa","So","Mo","Di","Mi","Do","Fr","Sa","So","Mo","Di","Mi","Do","Fr",null,"gesamt"]
[{"$f":"Start!$B$5","v":"Arbeitsstunden"},null,null,null,null,null,null,null,null,null,null,null,null,null,null,null,null,null,null,null,null,null,null,null,null,null,null,null,null,null,null,null,{"$f":"SUM(B114:AF114)","v":0}]
[{"$f":"Start!$B$6","v":"Kurzarbeit"},null,null,null,null,null,null,null,null,null,null,null,null,null,null,null,null,null,null,null,null,null,null,null,null,null,null,null,null,null,null,null,0]
[{"$f":"Start!$B$7","v":"bez. Freistellung"},null,null,null,null,null,null,null,null,null,null,null,null,null,null,null,null,null,null,null,null,null,null,null,null,null,null,null,null,null,null,null,0]
[{"$f":"Start!$B$8","v":"Urlaub"},null,null,null,null,null,null,null,null,null,null,null,null,null,null,null,null,null,null,null,null,null,null,null,null,null,null,null,null,null,null,null,0]
[{"$f":"Start!$B$9","v":"Krank mit Lfz"},null,null,null,null,null,null,null,null,null,null,null,null,null,null,null,null,null,null,null,null,null,null,null,null,null,null,null,null,null,null,null,0]
[{"$f":"Start!$B$10","v":"Krank ohne Lfz"},null,null,null,null,null,null,null,null,null,null,null,null,null,null,null,null,null,null,null,null,null,null,null,null,null,null,null,null,null,null,null,{"$f":"SUM(B119:AF119)","v":0}]
[{"$f":"Start!$B$11","v":"unentsch.Fehlen"},null,null,null,null,null,null,null,null,null,null,null,null,null,null,null,null,null,null,null,null,null,null,null,null,null,null,null,null,null,null,null,{"$f":"SUM(B120:AF120)","v":0}]
[{"$f":"Start!$B$12","v":"Weiterbildung"},null,null,null,null,null,null,null,null,null,null,null,null,null,null,null,null,null,null,null,null,null,null,null,null,null,null,null,null,null,null,null,0]
[{"$f":"Start!$B$13","v":"Stundenkonto"},null,null,null,null,null,null,null,null,null,null,null,null,null,null,null,null,null,null,null,null,null,null,null,null,null,null,null,null,null,null,null,0]
["Monat","1.","2.","3.","4.","5.","6.","7.","8.","9.","10.","11.","12.","13.","14.","15.","16.","17.","18.","19.","20.","21.","22.","23.","24.","25.","26.","27.","28.","29.","30.","31.","Stunden"]
["Dezember",{"$f":"Tabelle1!B124","v":"Sa"},{"$f":"Tabelle1!C124","v":"So"},{"$f":"Tabelle1!D124","v":"Mo"},{"$f":"Tabelle1!E124","v":"Di"},{"$f":"Tabelle1!F124","v":"Mi"},{"$f":"Tabelle1!G124","v":"Do"},{"$f":"Tabelle1!H124","v":"Fr"},{"$f":"B124","v":"Sa"},"So","Mo","Di","Mi","Do","Fr","Sa","So","Mo","Di","Mi","Do","Fr","Sa","So","Mo","Di","Mi","Do","Fr","Sa","So","Mo","gesamt"]
[{"$f":"Start!$B$5","v":"Arbeitsstunden"},null,null,null,null,null,null,null,null,null,null,null,null,null,null,null,null,null,null,null,null,null,null,null,null,null,null,null,null,null,null,null,{"$f":"SUM(B125:AF125)","v":0}]
[{"$f":"Start!$B$6","v":"Kurzarbeit"},null,null,null,null,null,null,null,null,null,null,null,null,null,null,null,null,null,null,null,null,null,null,null,null,null,null,null,null,null,null,null,0]
[{"$f":"Start!$B$7","v":"bez. Freistellung"},null,null,null,null,null,null,null,null,null,null,null,null,null,null,null,null,null,null,null,null,null,null,null,null,null,null,null,null,null,null,null,0]
[{"$f":"Start!$B$8","v":"Urlaub"},null,null,null,null,null,null,null,null,null,null,null,null,null,null,null,null,null,null,null,null,null,null,null,null,null,null,null,null,null,null,null,0]
[{"$f":"Start!$B$9","v":"Krank mit Lfz"},null,null,null,null,null,null,null,null,null,null,null,null,null,null,null,null,null,null,null,null,null,null,null,null,null,null,null,null,null,null,null,0]
[{"$f":"Start!$B$10","v":"Krank ohne Lfz"},null,null,null,null,null,null,null,null,null,null,null,null,null,null,null,null,null,null,null,null,null,null,null,null,null,null,null,null,null,null,null,{"$f":"SUM(B130:AF130)","v":0}]
[{"$f":"Start!$B$11","v":"unentsch.Fehlen"},null,null,null,null,null,null,null,null,null,null,null,null,null,null,null,null,null,null,null,null,null,null,null,null,null,null,null,null,null,null,null,{"$f":"SUM(B131:AF131)","v":0}]
[{"$f":"Start!$B$12","v":"Weiterbildung"},null,null,null,null,null,null,null,null,null,null,null,null,null,null,null,null,null,null,null,null,null,null,null,null,null,null,null,null,null,null,null,0]
[{"$f":"Start!$B$13","v":"Stundenkonto"},null,null,null,null,null,null,null,null,null,null,null,null,null,null,null,null,null,null,null,null,null,null,null,null,null,null,null,null,null,null,null,0]
[]
["Jahresrechnung:"]
[{"$f":"Start!$B$5","v":"Arbeitsstunden"},null,null,null,null,null,null,{"$f":"SUM(AG4+AG15+AG26+AG37+AG48+AG59+AG70+AG81+AG92+AG103+AG114+AG125)","v":0}]
[{"$f":"Start!$B$6","v":"Kurzarbeit"},null,null,null,null,null,null,{"$f":"SUM(AG5+AG16+AG27+AG38+AG49+AG60+AG71+AG82+AG93+AG104+AG115+AG126)","v":0}]
[{"$f":"Start!$B$7","v":"bez. Freistellung"},null,null,null,null,null,null,{"$f":"SUM(AG6+AG17+AG28+AG39+AG50+AG61+AG72+AG83+AG94+AG105+AG116+AG127)","v":0}]
[{"$f":"Start!$B$8","v":"Urlaub"},null,null,null,null,null,null,{"$f":"SUM(AG7+AG18+AG29+AG39+AG51+AG62+AG73+AG84+AG95+AG106+AG117+AG128)","v":0}]
[{"$f":"Start!$B$9","v":"Krank mit Lfz"},null,null,null,null,null,null,{"$f":"SUM(AG8+AG19+AG30+AG41+AG52+AG63+AG74+AG85+AG96+AG107+AG118+AG129)","v":0}]
[{"$f":"Start!$B$10","v":"Krank ohne Lfz"},null,null,null,null,null,null,{"$f":"SUM(AG9+AG20+AG31+AG42+AG53+AG64+AG75+AG86+AG97+AG108+AG119+AG130)","v":0}]
[{"$f":"Start!$B$11","v":"unentsch.Fehlen"},null,null,null,null,null,null,{"$f":"SUM(AG10+AG21+AG32+AG43+AG54+AG65+AG76+AG87+AG98+AG109+AG120+AG131)","v":0}]
[{"$f":"Start!$B$12","v":"Weiterbildung"},null,null,null,null,null,null,{"$f":"SUM(AG11+AG22+AG33+AG44+AG55+AG66+AG77+AG88+AG99+AG110+AG121+AG132)","v":0}]
[{"$f":"Start!$B$13","v":"Stundenkonto"},null,null,null,null,null,null,{"$f":"SUM(AG12+AG23+AG34+AG45+AG56+AG67+AG78+AG89+AG100+AG111+AG122+AG133)","v":0}]
[null,null,null,null,null,null," ",{"$f":"SUM(H136:AG144)","v":0}]
["Statistik: Prozentualer Anteil zur Gesamtzeit "]
[{"$f":"Start!$B$5","v":"Arbeitsstunden"},null,null,null,{"$f":"IF(H145=0,G145,H136/H145)","v":" "}]
[{"$f":"Start!$B$6","v":"Kurzarbeit"},null,null,null,{"$f":"IF(H145=0,G145,H137/H145)","v":" "}]
[{"$f":"Start!$B$7","v":"bez. Freistellung"},null,null,null,{"$f":"IF(H145=0,G145,H138/H145)","v":" "}]
[{"$f":"Start!$B$8","v":"Urlaub"},null,null,null,{"$f":"IF(H145=0,G145,H139/H145)","v":" "}]
[{"$f":"Start!$B$9","v":"Krank mit Lfz"},null,null,null,{"$f":"IF(H145=0,G145,H140/H145)","v":" "}]
[{"$f":"Start!$B$10","v":"Krank ohne Lfz"},null,null,null,{"$f":"IF(H145=0,G145,H141/H145)","v":" "}]
[{"$f":"Start!$B$11","v":"unentsch.Fehlen"},null,null,null,{"$f":"IF(H145=0,G145,H142/H145)","v":" "}]
[{"$f":"Start!$B$12","v":"Weiterbildung"},null,null,null,{"$f":"IF(H145=0,G145,H143/H145)","v":" "}]
[{"$f":"Start!$B$13","v":"Stundenkonto"},null,null,null,{"$f":"IF(H145=0,G145,H144/H145)","v":" "}]

{"sheet":"Info","index":6,"n_rows":0,"n_cols":0,"rows_kept":0,"cut":false,"hidden":false,"merged":[]}

{"sheet":"Säulendiagramm","index":7,"n_rows":11,"n_cols":9,"rows_kept":11,"cut":false,"hidden":false,"merged":[[23,1,23,2],[1,1,1,7],[1,8,1,10]]}
[null,"zurück"]
[null,"Prozentualer Zeitanteil",null,null,null,null,null,null,{"$f":"Start!$B$1","v":2012}]
[null,{"$f":"Start!B426","v":"Arbeitsstunden"},{"$f":"Start!D426","v":0}]
[null,{"$f":"Start!B427","v":"Kurzarbeit"},{"$f":"Start!D427","v":0}]
[null,{"$f":"Start!B428","v":"bez. Freistellung"},{"$f":"Start!D428","v":0}]
[null,{"$f":"Start!B429","v":"Urlaub"},{"$f":"Start!D429","v":1}]
[null,{"$f":"Start!B430","v":"Krank mit Lfz"},{"$f":"Start!D430","v":0}]
[null,{"$f":"Start!B431","v":"Krank ohne Lfz"},{"$f":"Start!D431","v":0}]
[null,{"$f":"Start!B432","v":"unentsch.Fehlen"},{"$f":"Start!D432","v":0}]
[null,{"$f":"Start!B433","v":"Weiterbildung"},{"$f":"Start!D433","v":0}]
[null,{"$f":"Start!B434","v":"Stundenkonto"},{"$f":"Start!D434","v":0}]

{"sheet":"Balkendiagramm","index":8,"n_rows":12,"n_cols":9,"rows_kept":12,"cut":false,"hidden":false,"merged":[[24,1,24,2],[2,1,2,7],[2,8,2,10]]}
[null,"zurück"]
[]
[null,"Prozentualer Zeitanteil",null,null,null,null,null,null,{"$f":"Start!$B$1","v":2012}]
[null,{"$f":"Start!B426","v":"Arbeitsstunden"},{"$f":"Start!D426","v":0}]
[null,{"$f":"Start!B427","v":"Kurzarbeit"},{"$f":"Start!D427","v":0}]
[null,{"$f":"Start!B428","v":"bez. Freistellung"},{"$f":"Start!D428","v":0}]
[null,{"$f":"Start!B429","v":"Urlaub"},{"$f":"Start!D429","v":1}]
[null,{"$f":"Start!B430","v":"Krank mit Lfz"},{"$f":"Start!D430","v":0}]
[null,{"$f":"Start!B431","v":"Krank ohne Lfz"},{"$f":"Start!D431","v":0}]
[null,{"$f":"Start!B432","v":"unentsch.Fehlen"},{"$f":"Start!D432","v":0}]
[null,{"$f":"Start!B433","v":"Weiterbildung"},{"$f":"Start!D433","v":0}]
[null,{"$f":"Start!B434","v":"Stundenkonto"},{"$f":"Start!D434","v":0}]

{"sheet":"Kreisdiagramm","index":9,"n_rows":12,"n_cols":9,"rows_kept":12,"cut":false,"hidden":false,"merged":[[24,1,24,2],[2,1,2,7],[2,8,2,10]]}
[null,"zurück"]
[]
[null,"Prozentualer Zeitanteil",null,null,null,null,null,null,{"$f":"Start!$B$1","v":2012}]
[null,{"$f":"Start!B426","v":"Arbeitsstunden"},{"$f":"Start!D426","v":0}]
[null,{"$f":"Start!B427","v":"Kurzarbeit"},{"$f":"Start!D427","v":0}]
[null,{"$f":"Start!B428","v":"bez. Freistellung"},{"$f":"Start!D428","v":0}]
[null,{"$f":"Start!B429","v":"Urlaub"},{"$f":"Start!D429","v":1}]
[null,{"$f":"Start!B430","v":"Krank mit Lfz"},{"$f":"Start!D430","v":0}]
[null,{"$f":"Start!B431","v":"Krank ohne Lfz"},{"$f":"Start!D431","v":0}]
[null,{"$f":"Start!B432","v":"unentsch.Fehlen"},{"$f":"Start!D432","v":0}]
[null,{"$f":"Start!B433","v":"Weiterbildung"},{"$f":"Start!D433","v":0}]
[null,{"$f":"Start!B434","v":"Stundenkonto"},{"$f":"Start!D434","v":0}]